Workbook

Sheet Menu
F2: This file contains the excel tables of the rates contained in the published Schedule of Standard Prices for Eskom tariffs.
F4: 2020/21 SCHEDULE OF STANDARD PRICES FOR ESKOM TARIFFS 1 April 2020 to 31 March 2021 for Non-Local Authority supplies, and 1 July 2020 to 30 June 2021 for Local Authority supplies.
H6: Click on the arrow to select the tariff
H7: Non-local authority (NLA) | J7: Local Authority (Munic)
G8: WEPS | H8: u | J8: u
F9: ê | G9: Megaflex | H9: u | J9: u
F10: ê | G10: Nightsave Large Urban | H10: u | J10: u
F11: ê | G11: Miniflex | H11: u | J11: u
F12: ê | G12: Nightsave Small Urban | H12: u | J12: u
F13: ê | G13: Businessrate | H13: u | J13: u
F14: ê | G14: Public lighting | H14: u | J14: u
F15: ê | G15: Ruraflex | H15: u | J15: u
F16: ê | G16: Nightsave Rural | H16: u | J16: u
F17: ê | G17: Landrate tariffs | H17: u | J17: u
F18: ê | G18: Homepower tariffs | H18: u | J18: u
F19: ê | G19: Homelight tariffs | H19: u | J19: n/a
F20: ê | G20: Excess NCC charges | H20: u | J20: u
F21: ê | G21: Loss factors | H21: u | J21: u
F22: ê | G22: Transmission use of system charges | H22: u | J22: n/a
F23: ê | G23: Distribution use of system charges | H23: u | J23: n/a
F24: ê | G24: Megaflex Gen | H24: u | J24: n/a
F25: ê | G25: Ruraflex Gen | H25: u | J25: n/a
F27: ê

Sheet WEPS NLA
G1: Back to menu
A2: Non-municipal | G2: WEPS – Non-local Authority
J4: Active energy charge [c/kWh] | V4: Transmission network charges [R/kVA/m]
H5: Transmission zone | J5: High demand season [Jun - Aug] | P5: Low demand season [Sep - May]
I6: Voltage | J6: Peak | L6: Standard | N6: Off Peak | P6: Peak | R6: Standard | T6: Off Peak
A7: Tariff | B7: Tariff nameBillcode | C7: Tx zone | D7: Voltage | E7: Billcode | K7: VAT incl | M7: VAT incl | O7: VAT incl | Q7: VAT incl | S7: VAT incl | U7: VAT incl | W7: VAT incl
A8: WEPS | B8: We | C8: 0 | D8: 1 | E8: =B8&C8&D8&IF($A$2="Non-municipal","N",IF($A$2="Municiple","Y","error")) -> We01N | H8: ≤ 300km | I8: < 500V | J8: 362.73 | K8: =ROUND(J8 * (1 + VAT), 2) -> 417.14 | L8: 110.36 | M8: =ROUND(L8 * (1 + VAT), 2) -> 126.91 | N8: 60.26 | O8: =ROUND(N8 * (1 + VAT), 2) -> 69.3 | P8: 118.78 | Q8: =ROUND(P8 * (1 + VAT), 2) -> 136.6 | R8: 81.96 | S8: =ROUND(R8 * (1 + VAT), 2) -> 94.25 | T8: 52.25 | U8: =ROUND(T8 * (1 + VAT), 2) -> 60.09 | V8: 10.38 | W8: =ROUND(V8 * (1 + VAT), 2) -> 11.94
A9: WEPS | B9: We | C9: 0 | D9: 2 | E9: We02N | I9: ≥ 500V & < 66kV | J9: 357.04 | K9: =ROUND(J9 * (1 + VAT), 2) -> 410.6 | L9: 108.16 | M9: 124.38 | N9: 58.74 | O9: 67.55 | P9: 116.45 | Q9: 133.92 | R9: 80.17 | S9: 92.2 | T9: 50.86 | U9: 58.49 | V9: 9.48 | W9: 10.9
A10: WEPS | B10: We | C10: 0 | D10: 3 | E10: We03N | I10: ≥ 66kV & ≤ 132kV | J10: 345.73 | K10: 397.59 | L10: 104.73 | M10: 120.44 | N10: 56.88 | O10: 65.41 | P10: 112.79 | Q10: 129.71 | R10: 77.61 | S10: 89.25 | T10: 49.26 | U10: 56.65 | V10: 9.23 | W10: 10.61
A11: WEPS | B11: We | C11: 0 | D11: 4 | E11: We04N | I11: > 132kV* | J11: 325.84 | K11: 374.72 | L11: 98.7 | M11: 113.51 | N11: 53.61 | O11: 61.65 | P11: 106.32 | Q11: 122.27 | R11: 73.15 | S11: 84.12 | T11: 46.42 | U11: 53.38 | V11: 11.67 | W11: 13.42
A12: WEPS | B12: We | C12: 1 | D12: 1 | E12: We11N | H12: > 300km and ≤ 600km | I12: < 500V | J12: 365.69 | K12: 420.54 | L12: 110.8 | M12: 127.42 | N12: 60.16 | O12: 69.18 | P12: 119.3 | Q12: 137.2 | R12: 82.14 | S12: 94.46 | T12: 52.11 | U12: 59.93 | V12: 10.45 | W12: 12.02
A13: WEPS | B13: We | C13: 1 | D13: 2 | E13: We12N | I13: ≥ 500V & < 66kV | J13: 360.6 | K13: 414.69 | L13: 109.23 | M13: 125.61 | N13: 59.32 | O13: 68.22 | P13: 117.65 | Q13: 135.3 | R13: 80.96 | S13: 93.1 | T13: 51.36 | U13: 59.06 | V13: 9.57 | W13: 11.01
A14: WEPS | B14: We | C14: 1 | D14: 3 | E14: We13N | I14: ≥ 66kV & ≤ 132kV | J14: 349.13 | K14: 401.5 | L14: 105.75 | M14: 121.61 | N14: 57.41 | O14: 66.02 | P14: 113.88 | Q14: 130.96 | R14: 78.38 | S14: 90.14 | T14: 49.73 | U14: 57.19 | V14: 9.3 | W14: 10.7
A15: WEPS | B15: We | C15: 1 | D15: 4 | E15: We14N | I15: > 132kV* | J15: 329.11 | K15: 378.48 | L15: 99.71 | M15: 114.67 | N15: 54.11 | O15: 62.23 | P15: 107.34 | Q15: 123.44 | R15: 73.87 | S15: 84.95 | T15: 46.85 | U15: 53.88 | V15: 11.78 | W15: 13.55
A16: WEPS | B16: We | C16: 2 | D16: 1 | E16: We21N | H16: > 600km and ≤ 900km | I16: < 500V | J16: 369.33 | K16: 424.73 | L16: 111.88 | M16: 128.66 | N16: 60.73 | O16: 69.84 | P16: 120.48 | Q16: 138.55 | R16: 82.93 | S16: 95.37 | T16: 52.59 | U16: 60.48 | V16: 10.57 | W16: 12.16
A17: WEPS | B17: We | C17: 2 | D17: 2 | E17: We22N | I17: ≥ 500V & < 66kV | J17: 364.23 | K17: 418.86 | L17: 110.35 | M17: 126.9 | N17: 59.92 | O17: 68.91 | P17: 118.81 | Q17: 136.63 | R17: 81.78 | S17: 94.05 | T17: 51.88 | U17: 59.66 | V17: 9.66 | W17: 11.11
A18: WEPS | B18: We | C18: 2 | D18: 3 | E18: We23N | I18: ≥ 66kV & ≤ 132kV | J18: 352.69 | K18: 405.59 | L18: 106.85 | M18: 122.88 | N18: 58.01 | O18: 66.71 | P18: 115.04 | Q18: 132.3 | R18: 79.19 | S18: 91.07 | T18: 50.24 | U18: 57.78 | V18: 9.36 | W18: 10.76
A19: WEPS | B19: We | C19: 2 | D19: 4 | E19: We24N | I19: > 132kV* | J19: 332.42 | K19: 382.28 | L19: 100.69 | M19: 115.79 | N19: 54.71 | O19: 62.92 | P19: 108.43 | Q19: 124.69 | R19: 74.62 | S19: 85.81 | T19: 47.35 | U19: 54.45 | V19: 11.95 | W19: 13.74
A20: WEPS | B20: We | C20: 3 | D20: 1 | E20: We31N | H20: > 900km | I20: < 500V | J20: 373.05 | K20: 429.01 | L20: 113.05 | M20: 130.01 | N20: 61.36 | O20: 70.56 | P20: 121.7 | Q20: 139.96 | R20: 83.75 | S20: 96.31 | T20: 53.15 | U20: 61.12 | V20: 10.64 | W20: 12.24
A21: WEPS | B21: We | C21: 3 | D21: 2 | E21: We32N | I21: ≥ 500V & < 66kV | J21: 367.85 | K21: 423.03 | L21: 111.42 | M21: 128.13 | N21: 60.48 | O21: 69.55 | P21: 119.97 | Q21: 137.97 | R21: 82.56 | S21: 94.94 | T21: 52.39 | U21: 60.25 | V21: 9.77 | W21: 11.24
A22: WEPS | B22: We | C22: 3 | D22: 3 | E22: We33N | I22: ≥ 66kV & ≤ 132kV | J22: 356.23 | K22: 409.66 | L22: 107.9 | M22: 124.09 | N22: 58.59 | O22: 67.38 | P22: 116.19 | Q22: 133.62 | R22: 79.98 | S22: 91.98 | T22: 50.74 | U22: 58.35 | V22: 9.45 | W22: 10.87
A23: WEPS | B23: We | C23: 3 | D23: 4 | E23: We34N | I23: > 132kV* | J23: 335.66 | K23: 386.01 | L23: 101.72 | M23: 116.98 | N23: 55.27 | O23: 63.56 | P23: 109.56 | Q23: 125.99 | R23: 75.44 | S23: 86.76 | T23: 47.88 | U23: 55.06 | V23: 12.04 | W23: 13.85
I24: * 132 kV or Transmission connected
H25: Distribution network charges
H26: Voltage | J26: Network capacity charge [R/kVA/m] | L26: Network demand charge [R/kVA/m] | N26: Urban low voltage subsidy charge [R/kVA/m]
Q27: Voltage | S27: Ancillary service charge [c/kWh]
A28: Tariff | B28: Tariff nameBillcode | C28: Tx zone | D28: Voltage | E28: Billcode | K28: VAT incl | M28: VAT incl | O28: VAT incl | T28: VAT incl
A29: WEPS | B29: We | C29: 0 | D29: 1 | E29: We01N | H29: < 500V | J29: 20.62 | K29: =ROUND(J29 * (1 + VAT), 2) -> 23.71 | L29: 39.1 | M29: =ROUND(L29 * (1 + VAT), 2) -> 44.97 | N29: 0 | O29: =ROUND(N29 * (1 + VAT), 2) -> 0 | Q29: < 500V | S29: 0.48 | T29: =ROUND(S29 * (1 + VAT), 2) -> 0.55
A30: WEPS | B30: We | C30: 0 | D30: 2 | E30: We02N | H30: ≥ 500V & < 66kV | J30: 18.91 | K30: =ROUND(J30 * (1 + VAT), 2) -> 21.75 | L30: 35.87 | M30: =ROUND(L30 * (1 + VAT), 2) -> 41.25 | N30: 0 | O30: =ROUND(N30 * (1 + VAT), 2) -> 0 | Q30: ≥ 500V & < 66kV | S30: 0.47 | T30: =ROUND(S30 * (1 + VAT), 2) -> 0.54
A31: WEPS | B31: We | C31: 0 | D31: 3 | E31: We03N | H31: ≥ 66kV & ≤ 132kV | J31: 6.75 | K31: =ROUND(J31 * (1 + VAT), 2) -> 7.76 | L31: 12.51 | M31: =ROUND(L31 * (1 + VAT), 2) -> 14.39 | N31: 16.66 | O31: =ROUND(N31 * (1 + VAT), 2) -> 19.16 | Q31: ≥ 66kV & ≤ 132kV | S31: 0.45 | T31: =ROUND(S31 * (1 + VAT), 2) -> 0.52
A32: WEPS | B32: We | C32: 0 | D32: 4 | E32: We04N | H32: > 132kV* | J32: 0 | K32: =ROUND(J32 * (1 + VAT), 2) -> 0 | L32: 0 | M32: =ROUND(L32 * (1 + VAT), 2) -> 0 | N32: 16.66 | O32: =ROUND(N32 * (1 + VAT), 2) -> 19.16 | Q32: > 132kV* | S32: 0.42 | T32: =ROUND(S32 * (1 + VAT), 2) -> 0.48
H33: * 132 kV or Transmission connected | Q33: * 132 kV or Transmission connected
H35: Customer categories | J35: Service charge [R/account/day] | L35: Administration charge [R/POD/day] | Q35: Reactive energy charge [c/kVArh]
A37: Tariff | B37: Tariff nameBillcode | C37: Tx zone | D37: Voltage | E37: Billcode | K37: VAT incl | M37: VAT incl | Q37: High season | S37: Low season
A38: WEPS | B38: We | C38: 0 | D38: 1 | E38: We01N | H38: ≤ 100 kVA | J38: 16.85 | K38: =ROUND(J38 * (1 + VAT), 2) -> 19.38 | L38: 3.7 | M38: =ROUND(L38 * (1 + VAT), 2) -> 4.26 | R38: VAT incl | T38: VAT incl
A39: WEPS | B39: We | C39: 0 | D39: 1 | E39: We01N | H39: > 100 kVA & ≤ 500 kVA | J39: 76.94 | K39: =ROUND(J39 * (1 + VAT), 2) -> 88.48 | L39: 21.58 | M39: =ROUND(L39 * (1 + VAT), 2) -> 24.82 | Q39: 16.68 | R39: =ROUND(Q39 * (1 + VAT), 2) -> 19.18 | S39: 0 | T39: =ROUND(S39 * (1 + VAT), 2) -> 0
A40: WEPS | B40: We | C40: 0 | D40: 1 | E40: We01N | H40: > 500 kVA & ≤ 1 MVA | J40: 236.74 | K40: =ROUND(J40 * (1 + VAT), 2) -> 272.25 | L40: 42.85 | M40: =ROUND(L40 * (1 + VAT), 2) -> 49.28
A41: WEPS | B41: We | C41: 0 | D41: 1 | E41: We01N | H41: > 1 MVA | J41: 236.74 | K41: =ROUND(J41 * (1 + VAT), 2) -> 272.25 | L41: 106.69 | M41: =ROUND(L41 * (1 + VAT), 2) -> 122.69
A42: WEPS | B42: We | C42: 0 | D42: 1 | E42: We01N | H42: Key customers | J42: 4639.2 | K42: =ROUND(J42 * (1 + VAT), 2) -> 5335.08 | L42: 148.16 | M42: =ROUND(L42 * (1 + VAT), 2) -> 170.38
H45: Electrification and rural network subsidy charge [c/kWh] | J45: Affordability subsidy charge [c/kWh] Only payable by non-local authority tariffs
A48: Tariff | B48: Tariff nameBillcode | C48: Tx zone | D48: Voltage | E48: Billcode | I48: VAT incl | K48: VAT incl
A49: WEPS | B49: We | C49: 0 | D49: 1 | E49: We01N | H49: 9.22 | I49: =ROUND(H49 * (1 + VAT), 2) -> 10.6 | J49: 4.34 | K49: =ROUND(J49 * (1 + VAT), 2) -> 4.99
H52: Active energy charge excluding losses [c/kWh]
H53: High demand season [Jun - Aug] | N53: Low demand season [Sep - May]
H54: Peak | J54: Standard | L54: Off Peak | N54: Peak | P54: Standard | R54: Off Peak
A55: Tariff | B55: Tariff nameBillcode | C55: Tx zone | D55: Voltage | E55: Billcode | I55: VAT incl | K55: VAT incl | M55: VAT incl | O55: VAT incl | Q55: VAT incl | S55: VAT incl
A56: WEPS | B56: We | C56: 0 | D56: 1 | E56: We01N | H56: =ROUND(J11/'Loss Factors'!$T$6, 2) -> 322.39 | I56: =ROUND(H56 * (1 + VAT), 2) -> 370.75 | J56: =ROUND(L11/'Loss Factors'!$T$6, 2) -> 97.66 | K56: =ROUND(J56 * (1 + VAT), 2) -> 112.31 | L56: =ROUND(N11/'Loss Factors'!$T$6, 2) -> 53.04 | M56: =ROUND(L56 * (1 + VAT), 2) -> 61 | N56: =ROUND(P11/'Loss Factors'!$T$6, 2) -> 105.19 | O56: =ROUND(N56 * (1 + VAT), 2) -> 120.97 | P56: =ROUND(R11/'Loss Factors'!$T$6, 2) -> 72.38 | Q56: =ROUND(P56 * (1 + VAT), 2) -> 83.24 | R56: =ROUND(T11/'Loss Factors'!$T$6, 2) -> 45.93 | S56: =ROUND(R56 * (1 + VAT), 2) -> 52.82
H58: Active energy charge excluding losses and enviromental levy [c/kWh]
H59: High demand season [Jun - Aug] | N59: Low demand season [Sep - May]
H60: Peak | J60: Standard | L60: Off Peak | N60: Peak | P60: Standard | R60: Off Peak
A61: Tariff | B61: Tariff nameBillcode | C61: Tx zone | D61: Voltage | E61: Billcode | I61: VAT incl | K61: VAT incl | M61: VAT incl | O61: VAT incl | Q61: VAT incl | S61: VAT incl
A62: WEPS | B62: We | C62: 0 | D62: 1 | E62: We01N | H62: =H56-ROUND(#REF!,2) ->  | I62: =ROUND(H62 * (1 + VAT), 2) ->  | J62: =J56-ROUND(#REF!,2) ->  | K62: =ROUND(J62 * (1 + VAT), 2) ->  | L62: =L56-ROUND(#REF!,2) ->  | M62: =ROUND(L62 * (1 + VAT), 2) ->  | N62: =N56-ROUND(#REF!,2) ->  | O62: =ROUND(N62 * (1 + VAT), 2) ->  | P62: =P56-ROUND(#REF!,2) ->  | Q62: =ROUND(P62 * (1 + VAT), 2) ->  | R62: =R56-ROUND(#REF!,2) ->  | S62: =ROUND(R62 * (1 + VAT), 2) -> 

Sheet WEPS Munic
G1: Back to menu
A2: Municiple | G2: WEPS – Local Authority
J4: Active energy charge [c/kWh] | V4: Transmission network charges [R/kVA/m]
H5: Transmission zone | J5: High demand season [Jun - Aug] | P5: Low demand season [Sep - May]
I6: Voltage | J6: Peak | L6: Standard | N6: Off Peak | P6: Peak | R6: Standard | T6: Off Peak
A7: Tariff | B7: Tariff nameBillcode | C7: Tx zone | D7: Voltage | E7: Billcode | K7: VAT incl | M7: VAT incl | O7: VAT incl | Q7: VAT incl | S7: VAT incl | U7: VAT incl | W7: VAT incl
A8: WEPS | B8: We | C8: 0 | D8: 1 | E8: =B8&C8&D8&IF($A$2="Non-municipal","N",IF($A$2="Municiple","Y","error")) -> We01Y | H8: ≤ 300km | I8: < 500V | J8: 371.05 | K8: =ROUND(J8 * (1 + VAT), 2) -> 426.71 | L8: 112.91 | M8: =ROUND(L8 * (1 + VAT), 2) -> 129.85 | N8: 61.61 | O8: =ROUND(N8 * (1 + VAT), 2) -> 70.85 | P8: 121.48 | Q8: =ROUND(P8 * (1 + VAT), 2) -> 139.7 | R8: 83.84 | S8: =ROUND(R8 * (1 + VAT), 2) -> 96.42 | T8: 53.44 | U8: =ROUND(T8 * (1 + VAT), 2) -> 61.46 | V8: 10.34 | W8: =ROUND(V8 * (1 + VAT), 2) -> 11.89
A9: WEPS | B9: We | C9: 0 | D9: 2 | E9: =B9&C9&D9&IF($A$2="Non-municipal","N",IF($A$2="Municiple","Y","error")) -> We02Y | I9: ≥ 500V & < 66kV | J9: 365.2 | K9: 419.98 | L9: 110.65 | M9: 127.25 | N9: 60.09 | O9: 69.1 | P9: 119.13 | Q9: 137 | R9: 81.99 | S9: 94.29 | T9: 52.03 | U9: 59.83 | V9: 9.43 | W9: 10.84
A10: WEPS | B10: We | C10: 0 | D10: 3 | E10: We03Y | I10: ≥ 66kV & ≤ 132kV | J10: 353.68 | K10: 406.73 | L10: 107.14 | M10: 123.21 | N10: 58.19 | O10: 66.92 | P10: 115.38 | Q10: 132.69 | R10: 79.42 | S10: 91.33 | T10: 50.37 | U10: 57.93 | V10: 9.18 | W10: 10.56
A11: WEPS | B11: We | C11: 0 | D11: 4 | E11: We04Y | I11: > 132kV* | J11: 333.32 | K11: 383.32 | L11: 100.98 | M11: 116.13 | N11: 54.83 | O11: 63.05 | P11: 108.73 | Q11: 125.04 | R11: 74.83 | S11: 86.05 | T11: 47.47 | U11: 54.59 | V11: 11.62 | W11: 13.36
A12: WEPS | B12: We | C12: 1 | D12: 1 | E12: We11Y | H12: > 300km and ≤ 600km | I12: < 500V | J12: 374.08 | K12: 430.19 | L12: 113.32 | M12: 130.32 | N12: 61.53 | O12: 70.76 | P12: 122.03 | Q12: 140.33 | R12: 84.01 | S12: 96.61 | T12: 53.29 | U12: 61.28 | V12: 10.38 | W12: 11.94
A13: WEPS | B13: We | C13: 1 | D13: 2 | E13: We12Y | I13: ≥ 500V & < 66kV | J13: 368.85 | K13: 424.18 | L13: 111.74 | M13: 128.5 | N13: 60.68 | O13: 69.78 | P13: 120.34 | Q13: 138.39 | R13: 82.82 | S13: 95.24 | T13: 52.53 | U13: 60.41 | V13: 9.54 | W13: 10.97
A14: WEPS | B14: We | C14: 1 | D14: 3 | E14: We13Y | I14: ≥ 66kV & ≤ 132kV | J14: 357.14 | K14: 410.71 | L14: 108.18 | M14: 124.41 | N14: 58.74 | O14: 67.55 | P14: 116.5 | Q14: 133.98 | R14: 80.18 | S14: 92.21 | T14: 50.85 | U14: 58.48 | V14: 9.25 | W14: 10.64
A15: WEPS | B15: We | C15: 1 | D15: 4 | E15: We14Y | I15: > 132kV* | J15: 336.65 | K15: 387.15 | L15: 102 | M15: 117.3 | N15: 55.37 | O15: 63.68 | P15: 109.8 | Q15: 126.27 | R15: 75.59 | S15: 86.93 | T15: 47.94 | U15: 55.13 | V15: 11.73 | W15: 13.49
A16: WEPS | B16: We | C16: 2 | D16: 1 | E16: We21Y | H16: > 600km and ≤ 900km | I16: < 500V | J16: 377.81 | K16: 434.48 | L16: 114.46 | M16: 131.63 | N16: 62.14 | O16: 71.46 | P16: 123.23 | Q16: 141.71 | R16: 84.84 | S16: 97.57 | T16: 53.82 | U16: 61.89 | V16: 10.52 | W16: 12.1
A17: WEPS | B17: We | C17: 2 | D17: 2 | E17: We22Y | I17: ≥ 500V & < 66kV | J17: 372.57 | K17: 428.46 | L17: 112.85 | M17: 129.78 | N17: 61.29 | O17: 70.48 | P17: 121.56 | Q17: 139.79 | R17: 83.61 | S17: 96.15 | T17: 53.07 | U17: 61.03 | V17: 9.6 | W17: 11.04
A18: WEPS | B18: We | C18: 2 | D18: 3 | E18: We23Y | I18: ≥ 66kV & ≤ 132kV | J18: 360.78 | K18: 414.9 | L18: 109.27 | M18: 125.66 | N18: 59.33 | O18: 68.23 | P18: 117.65 | Q18: 135.3 | R18: 80.98 | S18: 93.13 | T18: 51.35 | U18: 59.05 | V18: 9.32 | W18: 10.72
A19: WEPS | B19: We | C19: 2 | D19: 4 | E19: We24Y | I19: > 132kV* | J19: 340.02 | K19: 391.02 | L19: 103.02 | M19: 118.47 | N19: 55.93 | O19: 64.32 | P19: 110.93 | Q19: 127.57 | R19: 76.34 | S19: 87.79 | T19: 48.43 | U19: 55.69 | V19: 11.89 | W19: 13.67
A20: WEPS | B20: We | C20: 3 | D20: 1 | E20: We31Y | H20: > 900km | I20: < 500V | J20: 381.6 | K20: 438.84 | L20: 115.61 | M20: 132.95 | N20: 62.78 | O20: 72.2 | P20: 124.49 | Q20: 143.16 | R20: 85.67 | S20: 98.52 | T20: 54.36 | U20: 62.51 | V20: 10.57 | W20: 12.16
A21: WEPS | B21: We | C21: 3 | D21: 2 | E21: We32Y | I21: ≥ 500V & < 66kV | J21: 376.29 | K21: 432.73 | L21: 113.98 | M21: 131.08 | N21: 61.91 | O21: 71.2 | P21: 122.73 | Q21: 141.14 | R21: 84.47 | S21: 97.14 | T21: 53.57 | U21: 61.61 | V21: 9.71 | W21: 11.17
A22: WEPS | B22: We | C22: 3 | D22: 3 | E22: We33Y | I22: ≥ 66kV & ≤ 132kV | J22: 364.41 | K22: 419.07 | L22: 110.4 | M22: 126.96 | N22: 59.95 | O22: 68.94 | P22: 118.86 | Q22: 136.69 | R22: 81.79 | S22: 94.06 | T22: 51.89 | U22: 59.67 | V22: 9.4 | W22: 10.81
A23: WEPS | B23: We | C23: 3 | D23: 4 | E23: We34Y | I23: > 132kV* | J23: 343.37 | K23: 394.88 | L23: 104.07 | M23: 119.68 | N23: 56.55 | O23: 65.03 | P23: 112.06 | Q23: 128.87 | R23: 77.14 | S23: 88.71 | T23: 48.96 | U23: 56.3 | V23: 11.97 | W23: 13.77
I24: * 132 kV or Transmission connected
H25: Distribution network charges
H26: Voltage | J26: Network capacity charge [R/kVA/m] | L26: Network demand charge [R/kVA/m] | N26: Urban low voltage subsidy charge [R/kVA/m]
Q27: Voltage | S27: Ancillary service charge [c/kWh]
A28: Tariff | B28: Tariff nameBillcode | C28: Tx zone | D28: Voltage | E28: Billcode | K28: VAT incl | M28: VAT incl | O28: VAT incl | T28: VAT incl
A29: WEPS | B29: We | C29: 0 | D29: 1 | E29: =B29&C29&D29&IF($A$2="Non-municipal","N",IF($A$2="Municiple","Y","error")) -> We01Y | H29: < 500V | J29: 20.62 | K29: =ROUND(J29 * (1 + VAT), 2) -> 23.71 | L29: 39.07 | M29: =ROUND(L29 * (1 + VAT), 2) -> 44.93 | N29: 0 | O29: =ROUND(N29 * (1 + VAT), 2) -> 0 | Q29: < 500V | S29: 0.48 | T29: =ROUND(S29 * (1 + VAT), 2) -> 0.55
A30: WEPS | B30: We | C30: 0 | D30: 2 | E30: =B30&C30&D30&IF($A$2="Non-municipal","N",IF($A$2="Municiple","Y","error")) -> We02Y | H30: ≥ 500V & < 66kV | J30: 18.9 | K30: =ROUND(J30 * (1 + VAT), 2) -> 21.74 | L30: 35.83 | M30: =ROUND(L30 * (1 + VAT), 2) -> 41.2 | N30: 0 | O30: =ROUND(N30 * (1 + VAT), 2) -> 0 | Q30: ≥ 500V & < 66kV | S30: 0.47 | T30: =ROUND(S30 * (1 + VAT), 2) -> 0.54
A31: WEPS | B31: We | C31: 0 | D31: 3 | E31: =B31&C31&D31&IF($A$2="Non-municipal","N",IF($A$2="Municiple","Y","error")) -> We03Y | H31: ≥ 66kV & ≤ 132kV | J31: 6.76 | K31: =ROUND(J31 * (1 + VAT), 2) -> 7.77 | L31: 12.5 | M31: =ROUND(L31 * (1 + VAT), 2) -> 14.38 | N31: 16.55 | O31: =ROUND(N31 * (1 + VAT), 2) -> 19.03 | Q31: ≥ 66kV & ≤ 132kV | S31: 0.43 | T31: =ROUND(S31 * (1 + VAT), 2) -> 0.49
A32: WEPS | B32: We | C32: 0 | D32: 4 | E32: =B32&C32&D32&IF($A$2="Non-municipal","N",IF($A$2="Municiple","Y","error")) -> We04Y | H32: > 132kV* | J32: 0 | K32: =ROUND(J32 * (1 + VAT), 2) -> 0 | L32: 0 | M32: =ROUND(L32 * (1 + VAT), 2) -> 0 | N32: 16.55 | O32: =ROUND(N32 * (1 + VAT), 2) -> 19.03 | Q32: > 132kV* | S32: 0.41 | T32: =ROUND(S32 * (1 + VAT), 2) -> 0.47
H33: * 132 kV or Transmission connected | Q33: * 132 kV or Transmission connected
H35: Customer categories | J35: Service charge [R/account/day] | L35: Administration charge [R/POD/day] | Q35: Reactive energy charge [c/kVArh]
A37: Tariff | B37: Tariff nameBillcode | C37: Tx zone | D37: Voltage | E37: Billcode | K37: VAT incl | M37: VAT incl | Q37: High season | S37: Low season
A38: WEPS | B38: We | C38: 0 | D38: 1 | E38: =B38&C38&D38&IF($A$2="Non-municipal","N",IF($A$2="Municiple","Y","error")) -> We01Y | H38: ≤ 100 kVA | J38: 16.74 | K38: =ROUND(J38 * (1 + VAT), 2) -> 19.25 | L38: 3.67 | M38: =ROUND(L38 * (1 + VAT), 2) -> 4.22 | R38: VAT incl | T38: VAT incl
A39: WEPS | B39: We | C39: 0 | D39: 1 | E39: =B39&C39&D39&IF($A$2="Non-municipal","N",IF($A$2="Municiple","Y","error")) -> We01Y | H39: > 100 kVA & ≤ 500 kVA | J39: 76.5 | K39: =ROUND(J39 * (1 + VAT), 2) -> 87.98 | L39: 21.43 | M39: =ROUND(L39 * (1 + VAT), 2) -> 24.64 | Q39: 16.56 | R39: =ROUND(Q39 * (1 + VAT), 2) -> 19.04 | S39: 0 | T39: =ROUND(S39 * (1 + VAT), 2) -> 0
A40: WEPS | B40: We | C40: 0 | D40: 1 | E40: =B40&C40&D40&IF($A$2="Non-municipal","N",IF($A$2="Municiple","Y","error")) -> We01Y | H40: > 500 kVA & ≤ 1 MVA | J40: 235.44 | K40: =ROUND(J40 * (1 + VAT), 2) -> 270.76 | L40: 42.62 | M40: =ROUND(L40 * (1 + VAT), 2) -> 49.01
A41: WEPS | B41: We | C41: 0 | D41: 1 | E41: =B41&C41&D41&IF($A$2="Non-municipal","N",IF($A$2="Municiple","Y","error")) -> We01Y | H41: > 1 MVA | J41: 235.44 | K41: =ROUND(J41 * (1 + VAT), 2) -> 270.76 | L41: 106.13 | M41: =ROUND(L41 * (1 + VAT), 2) -> 122.05
A42: WEPS | B42: We | C42: 0 | D42: 1 | E42: =B42&C42&D42&IF($A$2="Non-municipal","N",IF($A$2="Municiple","Y","error")) -> We01Y | H42: Key customers | J42: 4613.69 | K42: =ROUND(J42 * (1 + VAT), 2) -> 5305.74 | L42: 147.34 | M42: =ROUND(L42 * (1 + VAT), 2) -> 169.44
H45: Electrification and rural network subsidy charge [c/kWh]
A48: Tariff | B48: Tariff nameBillcode | C48: Tx zone | D48: Voltage | E48: Billcode | I48: VAT incl
A49: WEPS | B49: We | C49: 0 | D49: 1 | E49: =B49&C49&D49&IF($A$2="Non-municipal","N",IF($A$2="Municiple","Y","error")) -> We01Y | H49: 9.17 | I49: =ROUND(H49 * (1 + VAT), 2) -> 10.55
H52: Active energy charge excluding losses [c/kWh]
H53: High demand season [Jun - Aug] | N53: Low demand season [Sep - May]
H54: Peak | J54: Standard | L54: Off Peak | N54: Peak | P54: Standard | R54: Off Peak
A55: Tariff | B55: Tariff nameBillcode | C55: Tx zone | D55: Voltage | E55: Billcode | I55: VAT incl | K55: VAT incl | M55: VAT incl | O55: VAT incl | Q55: VAT incl | S55: VAT incl
A56: WEPS | B56: We | C56: 0 | D56: 1 | E56: =B56&C56&D56&IF($A$2="Non-municipal","N",IF($A$2="Municiple","Y","error")) -> We01Y | H56: =ROUND(J11/'Loss Factors'!$T$6, 2) -> 329.79 | I56: =ROUND(H56 * (1 + VAT), 2) -> 379.26 | J56: =ROUND(L11/'Loss Factors'!$T$6, 2) -> 99.91 | K56: =ROUND(J56 * (1 + VAT), 2) -> 114.9 | L56: =ROUND(N11/'Loss Factors'!$T$6, 2) -> 54.25 | M56: =ROUND(L56 * (1 + VAT), 2) -> 62.39 | N56: =ROUND(P11/'Loss Factors'!$T$6, 2) -> 107.58 | O56: =ROUND(N56 * (1 + VAT), 2) -> 123.72 | P56: =ROUND(R11/'Loss Factors'!$T$6, 2) -> 74.04 | Q56: =ROUND(P56 * (1 + VAT), 2) -> 85.15 | R56: =ROUND(T11/'Loss Factors'!$T$6, 2) -> 46.97 | S56: =ROUND(R56 * (1 + VAT), 2) -> 54.02
H58: Active energy charge excluding losses and enviromental levy [c/kWh]
H59: High demand season [Jun - Aug] | N59: Low demand season [Sep - May]
H60: Peak | J60: Standard | L60: Off Peak | N60: Peak | P60: Standard | R60: Off Peak
A61: Tariff | B61: Tariff nameBillcode | C61: Tx zone | D61: Voltage | E61: Billcode | I61: VAT incl | K61: VAT incl | M61: VAT incl | O61: VAT incl | Q61: VAT incl | S61: VAT incl
A62: WEPS | B62: We | C62: 0 | D62: 1 | E62: =B62&C62&D62&IF($A$2="Non-municipal","N",IF($A$2="Municiple","Y","error")) -> We01Y | H62: 326.3 | I62: =ROUND(H62 * (1 + VAT), 2) -> 375.25 | J62: 96.42 | K62: =ROUND(J62 * (1 + VAT), 2) -> 110.88 | L62: 50.76 | M62: =ROUND(L62 * (1 + VAT), 2) -> 58.37 | N62: 104.09 | O62: =ROUND(N62 * (1 + VAT), 2) -> 119.7 | P62: 70.55 | Q62: =ROUND(P62 * (1 + VAT), 2) -> 81.13 | R62: 43.48 | S62: =ROUND(R62 * (1 + VAT), 2) -> 50

Sheet Nightsave Large NLA
H1: Back to menu
A2: Non-municipal | G2: Nightsave Urban Large – Non-local Authority | AG2: check value
J4: Active energy charge [c/kWh] | N4: Energy demand charge [R/kVA/m] | R4: Transmission network charges [R/kVA/m]
H5: Transmission zone | J5: High demand season [Jun - Aug] | L5: Low demand season [Sep - May] | N5: High demand season [Jun - Aug] | P5: Low demand season [Sep - May]
I6: Voltage
A7: Tariff | B7: Tariff nameBillcode | C7: Tx zone | D7: Voltage | E7: Billcode | K7: VAT incl | M7: VAT incl | O7: VAT incl | Q7: VAT incl | S7: VAT incl
A8: Nightsave Large | B8: NL | C8: 0 | D8: 1 | E8: =B8&C8&D8&IF($A$2="Non-municipal","N",IF($A$2="Municiple","Y","error")) -> NL01N | H8: ≤ 300km | I8: < 500V | J8: 89.59 | K8: =ROUND(J8 * (1 + VAT), 2) -> 103.03 | L8: 69.64 | M8: =ROUND(L8 * (1 + VAT), 2) -> 80.09 | N8: 272.6 | O8: =ROUND(N8 * (1 + VAT), 2) -> 313.49 | P8: 38.1 | Q8: =ROUND(P8 * (1 + VAT), 2) -> 43.82 | R8: 10.38 | S8: =ROUND(R8 * (1 + VAT), 2) -> 11.94
A9: Nightsave Large | B9: NL | C9: 0 | D9: 2 | E9: =B9&C9&D9&IF($A$2="Non-municipal","N",IF($A$2="Municiple","Y","error")) -> NL02N | I9: ≥ 500V & < 66kV | J9: 84.83 | K9: 97.55 | L9: 66.22 | M9: 76.15 | N9: 263.84 | O9: 303.42 | P9: 36.88 | Q9: 42.41 | R9: 9.48 | S9: 10.9
A10: Nightsave Large | B10: NL | C10: 0 | D10: 3 | E10: NL03N | I10: ≥ 66kV & ≤ 132kV | J10: 84.21 | K10: 96.84 | L10: 65.43 | M10: 75.24 | N10: 254.23 | O10: 292.36 | P10: 35.54 | Q10: 40.87 | R10: 9.23 | S10: 10.61
A11: Nightsave Large | B11: NL | C11: 0 | D11: 4 | E11: NL04N | I11: > 132kV* | J11: 78.77 | K11: 90.59 | L11: 61.25 | M11: 70.44 | N11: 245.24 | O11: 282.03 | P11: 34.28 | Q11: 39.42 | R11: 11.67 | S11: 13.42
A12: Nightsave Large | B12: NL | C12: 1 | D12: 1 | E12: NL11N | H12: > 300km and ≤ 600km | I12: < 500V | J12: 90.79 | K12: 104.41 | L12: 70.41 | M12: 80.97 | N12: 275.4 | O12: 316.71 | P12: 38.47 | Q12: 44.24 | R12: 10.45 | S12: 12.02
A13: Nightsave Large | B13: NL | C13: 1 | D13: 2 | E13: NL12N | I13: ≥ 500V & < 66kV | J13: 86.62 | K13: 99.61 | L13: 67.57 | M13: 77.71 | N13: 266.52 | O13: 306.5 | P13: 37.21 | Q13: 42.79 | R13: 9.57 | S13: 11.01
A14: Nightsave Large | B14: NL | C14: 1 | D14: 3 | E14: NL13N | I14: ≥ 66kV & ≤ 132kV | J14: 85.97 | K14: 98.87 | L14: 66.76 | M14: 76.77 | N14: 256.74 | O14: 295.25 | P14: 35.87 | Q14: 41.25 | R14: 9.3 | S14: 10.7
A15: Nightsave Large | B15: NL | C15: 1 | D15: 4 | E15: NL14N | I15: > 132kV* | J15: 80.44 | K15: 92.51 | L15: 62.5 | M15: 71.88 | N15: 247.74 | O15: 284.9 | P15: 34.59 | Q15: 39.78 | R15: 11.78 | S15: 13.55
A16: Nightsave Large | B16: NL | C16: 2 | D16: 1 | E16: NL21N | H16: > 600km and ≤ 900km | I16: < 500V | J16: 91.63 | K16: 105.37 | L16: 71.09 | M16: 81.75 | N16: 278.23 | O16: 319.96 | P16: 38.86 | Q16: 44.69 | R16: 10.57 | S16: 12.16
A17: Nightsave Large | B17: NL | C17: 2 | D17: 2 | E17: NL22N | I17: ≥ 500V & < 66kV | J17: 87.48 | K17: 100.6 | L17: 68.27 | M17: 78.51 | N17: 269.19 | O17: 309.57 | P17: 37.62 | Q17: 43.26 | R17: 9.66 | S17: 11.11
A18: Nightsave Large | B18: NL | C18: 2 | D18: 3 | E18: NL23N | I18: ≥ 66kV & ≤ 132kV | J18: 86.81 | K18: 99.83 | L18: 67.42 | M18: 77.53 | N18: 259.33 | O18: 298.23 | P18: 36.23 | Q18: 41.66 | R18: 9.36 | S18: 10.76
A19: Nightsave Large | B19: NL | C19: 2 | D19: 4 | E19: NL24N | I19: > 132kV* | J19: 81.22 | K19: 93.4 | L19: 63.14 | M19: 72.61 | N19: 250.21 | O19: 287.74 | P19: 34.93 | Q19: 40.17 | R19: 11.95 | S19: 13.74
A20: Nightsave Large | B20: NL | C20: 3 | D20: 1 | E20: NL31N | H20: > 900km | I20: < 500V | J20: 92.61 | K20: 106.5 | L20: 71.81 | M20: 82.58 | N20: 280.92 | O20: 323.06 | P20: 39.23 | Q20: 45.11 | R20: 10.64 | S20: 12.24
A21: Nightsave Large | B21: NL | C21: 3 | D21: 2 | E21: NL32N | I21: ≥ 500V & < 66kV | J21: 88.32 | K21: 101.57 | L21: 68.93 | M21: 79.27 | N21: 271.89 | O21: 312.67 | P21: 37.95 | Q21: 43.64 | R21: 9.77 | S21: 11.24
A22: Nightsave Large | B22: NL | C22: 3 | D22: 3 | E22: NL33N | I22: ≥ 66kV & ≤ 132kV | J22: 87.71 | K22: 100.87 | L22: 68.07 | M22: 78.28 | N22: 261.98 | O22: 301.28 | P22: 36.6 | Q22: 42.09 | R22: 9.45 | S22: 10.87
A23: Nightsave Large | B23: NL | C23: 3 | D23: 4 | E23: NL34N | I23: > 132kV* | J23: 82.08 | K23: 94.39 | L23: 63.83 | M23: 73.4 | N23: 252.75 | O23: 290.66 | P23: 35.29 | Q23: 40.58 | R23: 12.04 | S23: 13.85
I24: * 132 kV or Transmission connected
H26: Distribution network charges
H27: Voltage | J27: Network capacity charge [R/kVA/m] | L27: Network demand charge [R/kVA/m] | N27: Urban low voltage subsidy charge [R/kVA/m]
Q28: Voltage | R28: Ancillary service charge [c/kWh]
A29: Tariff | B29: Tariff nameBillcode | C29: Tx zone | D29: Voltage | E29: Billcode | K29: VAT incl | M29: VAT incl | O29: VAT incl | S29: VAT incl
A30: Nightsave Large | B30: NL | C30: 0 | D30: 1 | E30: =B30&C30&D30&IF($A$2="Non-municipal","N",IF($A$2="Municiple","Y","error")) -> NL01N | H30: < 500V | J30: 20.62 | K30: =ROUND(J30 * (1 + VAT), 2) -> 23.71 | L30: 39.1 | M30: =ROUND(L30 * (1 + VAT), 2) -> 44.97 | N30: 0 | O30: =ROUND(N30 * (1 + VAT), 2) -> 0 | Q30: < 500V | R30: 0.48 | S30: =ROUND(R30 * (1 + VAT), 2) -> 0.55
A31: Nightsave Large | B31: NL | C31: 0 | D31: 2 | E31: =B31&C31&D31&IF($A$2="Non-municipal","N",IF($A$2="Municiple","Y","error")) -> NL02N | H31: ≥ 500V & < 66kV | J31: 18.91 | K31: =ROUND(J31 * (1 + VAT), 2) -> 21.75 | L31: 35.87 | M31: =ROUND(L31 * (1 + VAT), 2) -> 41.25 | N31: 0 | O31: =ROUND(N31 * (1 + VAT), 2) -> 0 | Q31: ≥ 500V & < 66kV | R31: 0.47 | S31: =ROUND(R31 * (1 + VAT), 2) -> 0.54
A32: Nightsave Large | B32: NL | C32: 0 | D32: 3 | E32: =B32&C32&D32&IF($A$2="Non-municipal","N",IF($A$2="Municiple","Y","error")) -> NL03N | H32: ≥ 66kV & ≤ 132kV | J32: 6.75 | K32: =ROUND(J32 * (1 + VAT), 2) -> 7.76 | L32: 12.51 | M32: =ROUND(L32 * (1 + VAT), 2) -> 14.39 | N32: 16.66 | O32: =ROUND(N32 * (1 + VAT), 2) -> 19.16 | Q32: ≥ 66kV & ≤ 132kV | R32: 0.45 | S32: =ROUND(R32 * (1 + VAT), 2) -> 0.52
A33: Nightsave Large | B33: NL | C33: 0 | D33: 4 | E33: =B33&C33&D33&IF($A$2="Non-municipal","N",IF($A$2="Municiple","Y","error")) -> NL04N | H33: > 132kV / Transmission connected | J33: 0 | K33: =ROUND(J33 * (1 + VAT), 2) -> 0 | L33: 0 | M33: =ROUND(L33 * (1 + VAT), 2) -> 0 | N33: 16.66 | O33: =ROUND(N33 * (1 + VAT), 2) -> 19.16 | Q33: > 132kV* | R33: 0.42 | S33: =ROUND(R33 * (1 + VAT), 2) -> 0.48
Q34: * 132 kV or Transmission connected
H36: Customer categories | I36: Service charge [R/account/day] | K36: Administration charge [R/POD/day] | N36: Electrification and rural network subsidy charge [c/kWh] | P36: Affordability subsidy charge [c/kWh] Only payable by non-local authority tariffs
A38: Tariff | B38: Tariff nameBillcode | C38: Tx zone | D38: Voltage | E38: Billcode | J38: VAT incl | L38: VAT incl
A39: Nightsave Large | B39: NL | C39: 0 | D39: 1 | E39: =B39&C39&D39&IF($A$2="Non-municipal","N",IF($A$2="Municiple","Y","error")) -> NL01N | H39: >1 MVA | I39: 236.74 | J39: =ROUND(I39 * (1 + VAT), 2) -> 272.25 | K39: 106.69 | L39: =ROUND(K39 * (1 + VAT), 2) -> 122.69 | O39: VAT incl | Q39: VAT incl
A40: Nightsave Large | B40: NL | C40: 0 | D40: 1 | E40: =B40&C40&D40&IF($A$2="Non-municipal","N",IF($A$2="Municiple","Y","error")) -> NL01N | H40: Key customers | I40: 4639.2 | J40: =ROUND(I40 * (1 + VAT), 2) -> 5335.08 | K40: 148.16 | L40: =ROUND(K40 * (1 + VAT), 2) -> 170.38 | N40: 9.22 | O40: =ROUND(N40 * (1 + VAT), 2) -> 10.6 | P40: 4.34 | Q40: =ROUND(P40 * (1 + VAT), 2) -> 4.99
A46: Tariff | B46: Tariff nameBillcode | C46: Tx zone | D46: Voltage | E46: Billcode
A47: Nightsave Large | B47: NL | C47: 0 | D47: 1 | E47: =B47&C47&D47&IF($A$2="Non-municipal","N",IF($A$2="Municiple","Y","error")) -> NL01N

Sheet Nightsave Large Munic
H1: Back to menu
A2: Municiple | G2: Nightsave Urban Large – Local Authority | AG2: check value
J4: Active energy charge [c/kWh] | N4: Energy demand charge [R/kVA/m] | R4: Transmission network charges [R/kVA/m]
H5: Transmission zone | J5: High demand season [Jun - Aug] | L5: Low demand season [Sep - May] | N5: High demand season [Jun - Aug] | P5: Low demand season [Sep - May]
I6: Voltage
A7: Tariff | B7: Tariff nameBillcode | C7: Tx zone | D7: Voltage | E7: Billcode | K7: VAT incl | M7: VAT incl | O7: VAT incl | Q7: VAT incl | S7: VAT incl
A8: Nightsave Large | B8: NL | C8: 0 | D8: 1 | E8: NL01Y | H8: ≤ 300km | I8: < 500V | J8: 91.65 | K8: =ROUND(J8 * (1 + VAT), 2) -> 105.4 | L8: 71.26 | M8: =ROUND(L8 * (1 + VAT), 2) -> 81.95 | N8: 273.62 | O8: =ROUND(N8 * (1 + VAT), 2) -> 314.66 | P8: 38.23 | Q8: =ROUND(P8 * (1 + VAT), 2) -> 43.96 | R8: 10.34 | S8: =ROUND(R8 * (1 + VAT), 2) -> 11.89
A9: Nightsave Large | B9: NL | C9: 0 | D9: 2 | E9: NL02Y | I9: ≥ 500V & < 66kV | J9: 86.78 | K9: 99.8 | L9: 67.74 | M9: 77.9 | N9: 264.83 | O9: 304.55 | P9: 37.03 | Q9: 42.58 | R9: 9.43 | S9: 10.84
A10: Nightsave Large | B10: NL | C10: 0 | D10: 3 | E10: NL03Y | I10: ≥ 66kV & ≤ 132kV | J10: 86.14 | K10: 99.06 | L10: 66.9 | M10: 76.94 | N10: 255.19 | O10: 293.47 | P10: 35.66 | Q10: 41.01 | R10: 9.18 | S10: 10.56
A11: Nightsave Large | B11: NL | C11: 0 | D11: 4 | E11: NL04Y | I11: > 132kV* | J11: 80.59 | K11: 92.68 | L11: 62.66 | M11: 72.06 | N11: 246.17 | O11: 283.1 | P11: 34.39 | Q11: 39.55 | R11: 11.62 | S11: 13.36
A12: Nightsave Large | B12: NL | C12: 1 | D12: 1 | E12: NL11Y | H12: > 300km and ≤ 600km | I12: < 500V | J12: 92.84 | K12: 106.77 | L12: 72.03 | M12: 82.83 | N12: 276.45 | O12: 317.92 | P12: 38.6 | Q12: 44.39 | R12: 10.38 | S12: 11.94
A13: Nightsave Large | B13: NL | C13: 1 | D13: 2 | E13: NL12Y | I13: ≥ 500V & < 66kV | J13: 88.59 | K13: 101.88 | L13: 69.1 | M13: 79.47 | N13: 267.5 | O13: 307.63 | P13: 37.35 | Q13: 42.95 | R13: 9.54 | S13: 10.97
A14: Nightsave Large | B14: NL | C14: 1 | D14: 3 | E14: NL13Y | I14: ≥ 66kV & ≤ 132kV | J14: 87.94 | K14: 101.13 | L14: 68.3 | M14: 78.55 | N14: 257.73 | O14: 296.39 | P14: 36.01 | Q14: 41.41 | R14: 9.25 | S14: 10.64
A15: Nightsave Large | B15: NL | C15: 1 | D15: 4 | E15: NL14Y | I15: > 132kV* | J15: 82.25 | K15: 94.59 | L15: 63.95 | M15: 73.54 | N15: 248.67 | O15: 285.97 | P15: 34.73 | Q15: 39.94 | R15: 11.73 | S15: 13.49
A16: Nightsave Large | B16: NL | C16: 2 | D16: 1 | E16: NL21Y | H16: > 600km and ≤ 900km | I16: < 500V | J16: 93.73 | K16: 107.79 | L16: 72.71 | M16: 83.62 | N16: 279.25 | O16: 321.14 | P16: 39.01 | Q16: 44.86 | R16: 10.52 | S16: 12.1
A17: Nightsave Large | B17: NL | C17: 2 | D17: 2 | E17: NL22Y | I17: ≥ 500V & < 66kV | J17: 89.48 | K17: 102.9 | L17: 69.82 | M17: 80.29 | N17: 270.22 | O17: 310.75 | P17: 37.76 | Q17: 43.42 | R17: 9.6 | S17: 11.04
A18: Nightsave Large | B18: NL | C18: 2 | D18: 3 | E18: NL23Y | I18: ≥ 66kV & ≤ 132kV | J18: 88.81 | K18: 102.13 | L18: 68.98 | M18: 79.33 | N18: 260.32 | O18: 299.37 | P18: 36.36 | Q18: 41.81 | R18: 9.32 | S18: 10.72
A19: Nightsave Large | B19: NL | C19: 2 | D19: 4 | E19: NL24Y | I19: > 132kV* | J19: 83.07 | K19: 95.53 | L19: 64.59 | M19: 74.28 | N19: 251.18 | O19: 288.86 | P19: 35.1 | Q19: 40.37 | R19: 11.89 | S19: 13.67
A20: Nightsave Large | B20: NL | C20: 3 | D20: 1 | E20: NL31Y | H20: > 900km | I20: < 500V | J20: 94.73 | K20: 108.94 | L20: 73.45 | M20: 84.47 | N20: 282 | O20: 324.3 | P20: 39.39 | Q20: 45.3 | R20: 10.57 | S20: 12.16
A21: Nightsave Large | B21: NL | C21: 3 | D21: 2 | E21: NL32Y | I21: ≥ 500V & < 66kV | J21: 90.37 | K21: 103.93 | L21: 70.49 | M21: 81.06 | N21: 272.92 | O21: 313.86 | P21: 38.1 | Q21: 43.82 | R21: 9.71 | S21: 11.17
A22: Nightsave Large | B22: NL | C22: 3 | D22: 3 | E22: NL33Y | I22: ≥ 66kV & ≤ 132kV | J22: 89.7 | K22: 103.16 | L22: 69.65 | M22: 80.1 | N22: 262.95 | O22: 302.39 | P22: 36.75 | Q22: 42.26 | R22: 9.4 | S22: 10.81
A23: Nightsave Large | B23: NL | C23: 3 | D23: 4 | E23: NL34Y | I23: > 132kV* | J23: 83.98 | K23: 96.58 | L23: 65.31 | M23: 75.11 | N23: 253.71 | O23: 291.77 | P23: 35.42 | Q23: 40.73 | R23: 11.97 | S23: 13.77
I24: * 132 kV or Transmission connected
H26: Distribution network charges
H27: Voltage | J27: Network capacity charge [R/kVA/m] | L27: Network demand charge [R/kVA/m] | N27: Urban low voltage subsidy charge [R/kVA/m]
Q28: Voltage | R28: Ancillary service charge [c/kWh]
A29: Tariff | B29: Tariff nameBillcode | C29: Tx zone | D29: Voltage | E29: Billcode | K29: VAT incl | M29: VAT incl | O29: VAT incl | S29: VAT incl
A30: Nightsave Large | B30: NL | C30: 0 | D30: 1 | E30: NL01Y | H30: < 500V | J30: 20.62 | K30: =ROUND(J30 * (1 + VAT), 2) -> 23.71 | L30: 39.07 | M30: =ROUND(L30 * (1 + VAT), 2) -> 44.93 | N30: 0 | O30: =ROUND(N30 * (1 + VAT), 2) -> 0 | Q30: < 500V | R30: 0.48 | S30: =ROUND(R30 * (1 + VAT), 2) -> 0.55
A31: Nightsave Large | B31: NL | C31: 0 | D31: 2 | E31: NL02Y | H31: ≥ 500V & < 66kV | J31: 18.9 | K31: =ROUND(J31 * (1 + VAT), 2) -> 21.74 | L31: 35.83 | M31: =ROUND(L31 * (1 + VAT), 2) -> 41.2 | N31: 0 | O31: =ROUND(N31 * (1 + VAT), 2) -> 0 | Q31: ≥ 500V & < 66kV | R31: 0.47 | S31: =ROUND(R31 * (1 + VAT), 2) -> 0.54
A32: Nightsave Large | B32: NL | C32: 0 | D32: 3 | E32: NL03Y | H32: ≥ 66kV & ≤ 132kV | J32: 6.76 | K32: =ROUND(J32 * (1 + VAT), 2) -> 7.77 | L32: 12.5 | M32: =ROUND(L32 * (1 + VAT), 2) -> 14.38 | N32: 16.55 | O32: =ROUND(N32 * (1 + VAT), 2) -> 19.03 | Q32: ≥ 66kV & ≤ 132kV | R32: 0.43 | S32: =ROUND(R32 * (1 + VAT), 2) -> 0.49
A33: Nightsave Large | B33: NL | C33: 0 | D33: 4 | E33: NL04Y | H33: > 132kV / Transmission connected | J33: 0 | K33: =ROUND(J33 * (1 + VAT), 2) -> 0 | L33: 0 | M33: =ROUND(L33 * (1 + VAT), 2) -> 0 | N33: 16.55 | O33: =ROUND(N33 * (1 + VAT), 2) -> 19.03 | Q33: > 132kV* | R33: 0.41 | S33: =ROUND(R33 * (1 + VAT), 2) -> 0.47
Q34: * 132 kV or Transmission connected
H36: Customer categories | I36: Service charge [R/account/day] | K36: Administration charge [R/POD/day] | N36: Electrification and rural network subsidy charge [c/kWh]
A38: Tariff | B38: Tariff nameBillcode | C38: Tx zone | D38: Voltage | E38: Billcode | J38: VAT incl | L38: VAT incl
A39: Nightsave Large | B39: NL | C39: 0 | D39: 1 | E39: NL01Y | H39: >1 MVA | I39: 235.44 | J39: =ROUND(I39 * (1 + VAT), 2) -> 270.76 | K39: 106.13 | L39: =ROUND(K39 * (1 + VAT), 2) -> 122.05 | O39: VAT incl
A40: Nightsave Large | B40: NL | C40: 0 | D40: 1 | E40: NL01Y | H40: Key customers | I40: 4613.69 | J40: =ROUND(I40 * (1 + VAT), 2) -> 5305.74 | K40: 147.34 | L40: =ROUND(K40 * (1 + VAT), 2) -> 169.44 | N40: 9.17 | O40: =ROUND(N40 * (1 + VAT), 2) -> 10.55
A46: Tariff | B46: Tariff nameBillcode | C46: Tx zone | D46: Voltage | E46: Billcode
A47: Nightsave Large | B47: NL | C47: 0 | D47: 1 | E47: NL01Y

Sheet Nightsave Small NLA
G1: Back to menu
A2: Non-municipal | G2: Nightsave Urban Small – Non-local Authority | AF2: =SUM(#REF!,#REF!,#REF!,#REF!,#REF!,#REF!,#REF!,#REF!,#REF!) ->  | AG2: check value
J4: Active energy charge [c/kWh] | N4: Energy demand charge [R/kVA/m] | R4: Transmission network charges [R/kVA/m]
H5: Transmission zone | J5: High demand season [Jun - Aug] | L5: Low demand season [Sep - May] | N5: High demand season [Jun - Aug] | P5: Low demand season [Sep - May]
I6: Voltage
A7: Tariff | B7: Tariff nameBillcode | C7: Tx zone | D7: Voltage | E7: Billcode | K7: VAT incl | M7: VAT incl | O7: VAT incl | Q7: VAT incl | S7: VAT incl
A8: Nightsave Small | B8: NS | C8: 0 | D8: 1 | E8: =B8&C8&D8&IF($A$2="Non-municipal","N",IF($A$2="Municiple","Y","error")) -> NS01N | H8: ≤ 300km | I8: < 500V | J8: 89.59 | K8: =ROUND(J8 * (1 + VAT), 2) -> 103.03 | L8: 69.64 | M8: =ROUND(L8 * (1 + VAT), 2) -> 80.09 | N8: 191.44 | O8: =ROUND(N8 * (1 + VAT), 2) -> 220.16 | P8: 24.67 | Q8: =ROUND(P8 * (1 + VAT), 2) -> 28.37 | R8: 10.38 | S8: =ROUND(R8 * (1 + VAT), 2) -> 11.94
A9: Nightsave Small | B9: NS | C9: 0 | D9: 2 | E9: =B9&C9&D9&IF($A$2="Non-municipal","N",IF($A$2="Municiple","Y","error")) -> NS02N | I9: ≥ 500V & < 66kV | J9: 84.83 | K9: 97.55 | L9: 66.22 | M9: 76.15 | N9: 185.28 | O9: 213.07 | P9: 23.84 | Q9: 27.42 | R9: 9.48 | S9: 10.9
A10: Nightsave Small | B10: NS | C10: 0 | D10: 3 | E10: NS03N | I10: ≥ 66kV & ≤ 132kV | J10: 84.21 | K10: 96.84 | L10: 65.43 | M10: 75.24 | N10: 178.46 | O10: 205.23 | P10: 22.95 | Q10: 26.39 | R10: 9.23 | S10: 10.61
A11: Nightsave Small | B11: NS | C11: 0 | D11: 4 | E11: NS04N | I11: > 132kV* | J11: 78.77 | K11: 90.59 | L11: 61.25 | M11: 70.44 | N11: 172.22 | O11: 198.05 | P11: 22.15 | Q11: 25.47 | R11: 11.67 | S11: 13.42
A12: Nightsave Small | B12: NS | C12: 1 | D12: 1 | E12: NS11N | H12: > 300km and ≤ 600km | I12: < 500V | J12: 90.79 | K12: 104.41 | L12: 70.41 | M12: 80.97 | N12: 193.4 | O12: 222.41 | P12: 24.87 | Q12: 28.6 | R12: 10.45 | S12: 12.02
A13: Nightsave Small | B13: NS | C13: 1 | D13: 2 | E13: NS12N | I13: ≥ 500V & < 66kV | J13: 86.62 | K13: 99.61 | L13: 67.57 | M13: 77.71 | N13: 187.14 | O13: 215.21 | P13: 24.08 | Q13: 27.69 | R13: 9.57 | S13: 11.01
A14: Nightsave Small | B14: NS | C14: 1 | D14: 3 | E14: NS13N | I14: ≥ 66kV & ≤ 132kV | J14: 85.97 | K14: 98.87 | L14: 66.76 | M14: 76.77 | N14: 180.3 | O14: 207.35 | P14: 23.2 | Q14: 26.68 | R14: 9.3 | S14: 10.7
A15: Nightsave Small | B15: NS | C15: 1 | D15: 4 | E15: NS14N | I15: > 132kV* | J15: 80.44 | K15: 92.51 | L15: 62.5 | M15: 71.88 | N15: 173.94 | O15: 200.03 | P15: 22.38 | Q15: 25.74 | R15: 11.78 | S15: 13.55
A16: Nightsave Small | B16: NS | C16: 2 | D16: 1 | E16: NS21N | H16: > 600km and ≤ 900km | I16: < 500V | J16: 91.63 | K16: 105.37 | L16: 71.09 | M16: 81.75 | N16: 195.3 | O16: 224.6 | P16: 25.1 | Q16: 28.87 | R16: 10.57 | S16: 12.16
A17: Nightsave Small | B17: NS | C17: 2 | D17: 2 | E17: NS22N | I17: ≥ 500V & < 66kV | J17: 87.48 | K17: 100.6 | L17: 68.27 | M17: 78.51 | N17: 189.06 | O17: 217.42 | P17: 24.32 | Q17: 27.97 | R17: 9.66 | S17: 11.11
A18: Nightsave Small | B18: NS | C18: 2 | D18: 3 | E18: NS23N | I18: ≥ 66kV & ≤ 132kV | J18: 86.81 | K18: 99.83 | L18: 67.42 | M18: 77.53 | N18: 182.12 | O18: 209.44 | P18: 23.43 | Q18: 26.94 | R18: 9.36 | S18: 10.76
A19: Nightsave Small | B19: NS | C19: 2 | D19: 4 | E19: NS24N | I19: > 132kV* | J19: 81.22 | K19: 93.4 | L19: 63.14 | M19: 72.61 | N19: 175.66 | O19: 202.01 | P19: 22.6 | Q19: 25.99 | R19: 11.95 | S19: 13.74
A20: Nightsave Small | B20: NS | C20: 3 | D20: 1 | E20: NS31N | H20: > 900km | I20: < 500V | J20: 92.61 | K20: 106.5 | L20: 71.81 | M20: 82.58 | N20: 197.3 | O20: 226.9 | P20: 25.37 | Q20: 29.18 | R20: 10.64 | S20: 12.24
A21: Nightsave Small | B21: NS | C21: 3 | D21: 2 | E21: NS32N | I21: ≥ 500V & < 66kV | J21: 88.32 | K21: 101.57 | L21: 68.93 | M21: 79.27 | N21: 190.91 | O21: 219.55 | P21: 24.57 | Q21: 28.26 | R21: 9.77 | S21: 11.24
A22: Nightsave Small | B22: NS | C22: 3 | D22: 3 | E22: NS33N | I22: ≥ 66kV & ≤ 132kV | J22: 87.71 | K22: 100.87 | L22: 68.07 | M22: 78.28 | N22: 183.97 | O22: 211.57 | P22: 23.68 | Q22: 27.23 | R22: 9.45 | S22: 10.87
A23: Nightsave Small | B23: NS | C23: 3 | D23: 4 | E23: NS34N | I23: > 132kV* | J23: 82.08 | K23: 94.39 | L23: 63.83 | M23: 73.4 | N23: 177.5 | O23: 204.13 | P23: 22.86 | Q23: 26.29 | R23: 12.04 | S23: 13.85
I24: * 132 kV or Transmission connected
H26: Distribution network charges
J27: Network capacity charge [R/kVA/m] | L27: Network demand charge [R/kVA/m] | N27: Urban low voltage subsidy charge [R/kVA/m]
H28: Voltage | Q28: Voltage | R28: Ancillary service charge [c/kWh]
A29: Tariff | B29: Tariff nameBillcode | C29: Tx zone | D29: Voltage | E29: Billcode | K29: VAT incl | M29: VAT incl | O29: VAT incl | S29: VAT incl
A30: Nightsave Small | B30: NS | C30: 0 | D30: 1 | E30: =B30&C30&D30&IF($A$2="Non-municipal","N",IF($A$2="Municiple","Y","error")) -> NS01N | H30: < 500V | J30: 20.62 | K30: =ROUND(J30 * (1 + VAT), 2) -> 23.71 | L30: 39.1 | M30: =ROUND(L30 * (1 + VAT), 2) -> 44.97 | N30: 0 | O30: =ROUND(N30 * (1 + VAT), 2) -> 0 | Q30: < 500V | R30: 0.48 | S30: =ROUND(R30 * (1 + VAT), 2) -> 0.55
A31: Nightsave Small | B31: NS | C31: 0 | D31: 2 | E31: =B31&C31&D31&IF($A$2="Non-municipal","N",IF($A$2="Municiple","Y","error")) -> NS02N | H31: ≥ 500V & < 66kV | J31: 18.91 | K31: =ROUND(J31 * (1 + VAT), 2) -> 21.75 | L31: 35.87 | M31: =ROUND(L31 * (1 + VAT), 2) -> 41.25 | N31: 0 | O31: =ROUND(N31 * (1 + VAT), 2) -> 0 | Q31: ≥ 500V & < 66kV | R31: 0.47 | S31: =ROUND(R31 * (1 + VAT), 2) -> 0.54
A32: Nightsave Small | B32: NS | C32: 0 | D32: 3 | E32: =B32&C32&D32&IF($A$2="Non-municipal","N",IF($A$2="Municiple","Y","error")) -> NS03N | H32: ≥ 66kV & ≤ 132kV | J32: 6.75 | K32: =ROUND(J32 * (1 + VAT), 2) -> 7.76 | L32: 12.51 | M32: =ROUND(L32 * (1 + VAT), 2) -> 14.39 | N32: 16.66 | O32: =ROUND(N32 * (1 + VAT), 2) -> 19.16 | Q32: ≥ 66kV & ≤ 132kV | R32: 0.45 | S32: =ROUND(R32 * (1 + VAT), 2) -> 0.52
A33: Nightsave Small | B33: NS | C33: 0 | D33: 4 | E33: =B33&C33&D33&IF($A$2="Non-municipal","N",IF($A$2="Municiple","Y","error")) -> NS04N | H33: > 132kV / Transmission connected | J33: 0 | K33: =ROUND(J33 * (1 + VAT), 2) -> 0 | L33: 0 | M33: =ROUND(L33 * (1 + VAT), 2) -> 0 | N33: 16.66 | O33: =ROUND(N33 * (1 + VAT), 2) -> 19.16 | Q33: > 132kV* | R33: 0.42 | S33: =ROUND(R33 * (1 + VAT), 2) -> 0.48
Q34: * 132 kV or Transmission connected
H36: Customer categories | I36: Service charge [R/account/day] | K36: Administration charge [R/POD/day] | N36: Electrification and rural network subsidy charge [c/kWh] | P36: Affordability subsidy charge [c/kWh] Only payable by non-local authority tariffs
A38: Tariff | B38: Tariff nameBillcode | C38: Tx zone | D38: Voltage | E38: Billcode | J38: VAT incl | L38: VAT incl
A39: Nightsave Small | B39: NS | C39: 0 | D39: 1 | E39: =B39&C39&D39&IF($A$2="Non-municipal","N",IF($A$2="Municiple","Y","error")) -> NS01N | H39: ≤ 100 kVA | I39: 16.85 | J39: =ROUND(I39 * (1 + VAT), 2) -> 19.38 | K39: 3.7 | L39: =ROUND(K39 * (1 + VAT), 2) -> 4.26 | O39: VAT incl | Q39: VAT incl
A40: Nightsave Small | B40: NS | C40: 0 | D40: 1 | E40: =B40&C40&D40&IF($A$2="Non-municipal","N",IF($A$2="Municiple","Y","error")) -> NS01N | H40: > 100 kVA & ≤ 500 kVA | I40: 76.94 | J40: =ROUND(I40 * (1 + VAT), 2) -> 88.48 | K40: 21.58 | L40: =ROUND(K40 * (1 + VAT), 2) -> 24.82 | N40: 9.22 | O40: =ROUND(N40 * (1 + VAT), 2) -> 10.6 | P40: 4.34 | Q40: =ROUND(P40 * (1 + VAT), 2) -> 4.99
A41: Nightsave Small | B41: NS | C41: 0 | D41: 1 | E41: =B41&C41&D41&IF($A$2="Non-municipal","N",IF($A$2="Municiple","Y","error")) -> NS01N | H41: > 500 kVA & ≤ 1 MVA | I41: 236.74 | J41: =ROUND(I41 * (1 + VAT), 2) -> 272.25 | K41: 42.85 | L41: =ROUND(K41 * (1 + VAT), 2) -> 49.28
A42: Nightsave Small | B42: NS | C42: 0 | D42: 1 | E42: =B42&C42&D42&IF($A$2="Non-municipal","N",IF($A$2="Municiple","Y","error")) -> NS01N | H42: Key customers | I42: 4639.2 | J42: =ROUND(I42 * (1 + VAT), 2) -> 5335.08 | K42: 148.16 | L42: =ROUND(K42 * (1 + VAT), 2) -> 170.38
A47: Tariff | B47: Tariff nameBillcode | C47: Tx zone | D47: Voltage | E47: Billcode
A48: Nightsave Small | B48: NS | C48: 0 | D48: 1 | E48: =B48&C48&D48&IF($A$2="Non-municipal","N",IF($A$2="Municiple","Y","error")) -> NS01N

Sheet Nightsave Small Munic
G1: Back to menu
A2: Municiple | G2: Nightsave Urban Small – Local Authority | AF2: =SUM(#REF!,#REF!,#REF!,#REF!,#REF!,#REF!,#REF!,#REF!,#REF!) ->  | AG2: check value
J4: Active energy charge [c/kWh] | N4: Energy demand charge [R/kVA/m] | R4: Transmission network charges [R/kVA/m]
H5: Transmission zone | J5: High demand season [Jun - Aug] | L5: Low demand season [Sep - May] | N5: High demand season [Jun - Aug] | P5: Low demand season [Sep - May]
I6: Voltage
A7: Tariff | B7: Tariff nameBillcode | C7: Tx zone | D7: Voltage | E7: Billcode | K7: VAT incl | M7: VAT incl | O7: VAT incl | Q7: VAT incl | S7: VAT incl
A8: Nightsave Small | B8: NS | C8: 0 | D8: 1 | E8: NS01Y | H8: ≤ 300km | I8: < 500V | J8: 91.65 | K8: =ROUND(J8 * (1 + VAT), 2) -> 105.4 | L8: 71.26 | M8: =ROUND(L8 * (1 + VAT), 2) -> 81.95 | N8: 192.15 | O8: =ROUND(N8 * (1 + VAT), 2) -> 220.97 | P8: 24.78 | Q8: =ROUND(P8 * (1 + VAT), 2) -> 28.5 | R8: 10.34 | S8: =ROUND(R8 * (1 + VAT), 2) -> 11.89
A9: Nightsave Small | B9: NS | C9: 0 | D9: 2 | E9: NS02Y | I9: ≥ 500V & < 66kV | J9: 86.78 | K9: 99.8 | L9: 67.74 | M9: 77.9 | N9: 185.96 | O9: 213.85 | P9: 23.93 | Q9: 27.52 | R9: 9.43 | S9: 10.84
A10: Nightsave Small | B10: NS | C10: 0 | D10: 3 | E10: NS03Y | I10: ≥ 66kV & ≤ 132kV | J10: 86.14 | K10: 99.06 | L10: 66.9 | M10: 76.94 | N10: 179.15 | O10: 206.02 | P10: 23.03 | Q10: 26.48 | R10: 9.18 | S10: 10.56
A11: Nightsave Small | B11: NS | C11: 0 | D11: 4 | E11: NS04Y | I11: > 132kV* | J11: 80.59 | K11: 92.68 | L11: 62.66 | M11: 72.06 | N11: 172.87 | O11: 198.8 | P11: 22.24 | Q11: 25.58 | R11: 11.62 | S11: 13.36
A12: Nightsave Small | B12: NS | C12: 1 | D12: 1 | E12: NS11Y | H12: > 300km and ≤ 600km | I12: < 500V | J12: 92.84 | K12: 106.77 | L12: 72.03 | M12: 82.83 | N12: 194.13 | O12: 223.25 | P12: 24.98 | Q12: 28.73 | R12: 10.38 | S12: 11.94
A13: Nightsave Small | B13: NS | C13: 1 | D13: 2 | E13: NS12Y | I13: ≥ 500V & < 66kV | J13: 88.59 | K13: 101.88 | L13: 69.1 | M13: 79.47 | N13: 187.89 | O13: 216.07 | P13: 24.15 | Q13: 27.77 | R13: 9.54 | S13: 10.97
A14: Nightsave Small | B14: NS | C14: 1 | D14: 3 | E14: NS13Y | I14: ≥ 66kV & ≤ 132kV | J14: 87.94 | K14: 101.13 | L14: 68.3 | M14: 78.55 | N14: 181 | O14: 208.15 | P14: 23.26 | Q14: 26.75 | R14: 9.25 | S14: 10.64
A15: Nightsave Small | B15: NS | C15: 1 | D15: 4 | E15: NS14Y | I15: > 132kV* | J15: 82.25 | K15: 94.59 | L15: 63.95 | M15: 73.54 | N15: 174.6 | O15: 200.79 | P15: 22.46 | Q15: 25.83 | R15: 11.73 | S15: 13.49
A16: Nightsave Small | B16: NS | C16: 2 | D16: 1 | E16: NS21Y | H16: > 600km and ≤ 900km | I16: < 500V | J16: 93.73 | K16: 107.79 | L16: 72.71 | M16: 83.62 | N16: 196.07 | O16: 225.48 | P16: 25.21 | Q16: 28.99 | R16: 10.52 | S16: 12.1
A17: Nightsave Small | B17: NS | C17: 2 | D17: 2 | E17: NS22Y | I17: ≥ 500V & < 66kV | J17: 89.48 | K17: 102.9 | L17: 69.82 | M17: 80.29 | N17: 189.75 | O17: 218.21 | P17: 24.42 | Q17: 28.08 | R17: 9.6 | S17: 11.04
A18: Nightsave Small | B18: NS | C18: 2 | D18: 3 | E18: NS23Y | I18: ≥ 66kV & ≤ 132kV | J18: 88.81 | K18: 102.13 | L18: 68.98 | M18: 79.33 | N18: 182.82 | O18: 210.24 | P18: 23.51 | Q18: 27.04 | R18: 9.32 | S18: 10.72
A19: Nightsave Small | B19: NS | C19: 2 | D19: 4 | E19: NS24Y | I19: > 132kV* | J19: 83.07 | K19: 95.53 | L19: 64.59 | M19: 74.28 | N19: 176.33 | O19: 202.78 | P19: 22.67 | Q19: 26.07 | R19: 11.89 | S19: 13.67
A20: Nightsave Small | B20: NS | C20: 3 | D20: 1 | E20: NS31Y | H20: > 900km | I20: < 500V | J20: 94.73 | K20: 108.94 | L20: 73.45 | M20: 84.47 | N20: 198.04 | O20: 227.75 | P20: 25.45 | Q20: 29.27 | R20: 10.57 | S20: 12.16
A21: Nightsave Small | B21: NS | C21: 3 | D21: 2 | E21: NS32Y | I21: ≥ 500V & < 66kV | J21: 90.37 | K21: 103.93 | L21: 70.49 | M21: 81.06 | N21: 191.63 | O21: 220.37 | P21: 24.65 | Q21: 28.35 | R21: 9.71 | S21: 11.17
A22: Nightsave Small | B22: NS | C22: 3 | D22: 3 | E22: NS33Y | I22: ≥ 66kV & ≤ 132kV | J22: 89.7 | K22: 103.16 | L22: 69.65 | M22: 80.1 | N22: 184.66 | O22: 212.36 | P22: 23.75 | Q22: 27.31 | R22: 9.4 | S22: 10.81
A23: Nightsave Small | B23: NS | C23: 3 | D23: 4 | E23: NS34Y | I23: > 132kV* | J23: 83.98 | K23: 96.58 | L23: 65.31 | M23: 75.11 | N23: 178.18 | O23: 204.91 | P23: 22.94 | Q23: 26.38 | R23: 11.97 | S23: 13.77
I24: * 132 kV or Transmission connected
H26: Distribution network charges
J27: Network capacity charge [R/kVA/m] | L27: Network demand charge [R/kVA/m] | N27: Urban low voltage subsidy charge [R/kVA/m]
H28: Voltage | Q28: Voltage | R28: Ancillary service charge [c/kWh]
A29: Tariff | B29: Tariff nameBillcode | C29: Tx zone | D29: Voltage | E29: Billcode | K29: VAT incl | M29: VAT incl | O29: VAT incl | S29: VAT incl
A30: Nightsave Small | B30: NS | C30: 0 | D30: 1 | E30: NS01Y | H30: < 500V | J30: 20.62 | K30: =ROUND(J30 * (1 + VAT), 2) -> 23.71 | L30: 39.07 | M30: =ROUND(L30 * (1 + VAT), 2) -> 44.93 | N30: 0 | O30: =ROUND(N30 * (1 + VAT), 2) -> 0 | Q30: < 500V | R30: 0.48 | S30: =ROUND(R30 * (1 + VAT), 2) -> 0.55
A31: Nightsave Small | B31: NS | C31: 0 | D31: 2 | E31: NS02Y | H31: ≥ 500V & < 66kV | J31: 18.9 | K31: =ROUND(J31 * (1 + VAT), 2) -> 21.74 | L31: 35.83 | M31: =ROUND(L31 * (1 + VAT), 2) -> 41.2 | N31: 0 | O31: =ROUND(N31 * (1 + VAT), 2) -> 0 | Q31: ≥ 500V & < 66kV | R31: 0.47 | S31: =ROUND(R31 * (1 + VAT), 2) -> 0.54
A32: Nightsave Small | B32: NS | C32: 0 | D32: 3 | E32: NS03Y | H32: ≥ 66kV & ≤ 132kV | J32: 6.76 | K32: =ROUND(J32 * (1 + VAT), 2) -> 7.77 | L32: 12.5 | M32: =ROUND(L32 * (1 + VAT), 2) -> 14.38 | N32: 16.55 | O32: =ROUND(N32 * (1 + VAT), 2) -> 19.03 | Q32: ≥ 66kV & ≤ 132kV | R32: 0.43 | S32: =ROUND(R32 * (1 + VAT), 2) -> 0.49
A33: Nightsave Small | B33: NS | C33: 0 | D33: 4 | E33: NS04Y | H33: > 132kV / Transmission connected | J33: 0 | K33: =ROUND(J33 * (1 + VAT), 2) -> 0 | L33: 0 | M33: =ROUND(L33 * (1 + VAT), 2) -> 0 | N33: 16.55 | O33: =ROUND(N33 * (1 + VAT), 2) -> 19.03 | Q33: > 132kV* | R33: 0.41 | S33: =ROUND(R33 * (1 + VAT), 2) -> 0.47
Q34: * 132 kV or Transmission connected
H36: Customer categories | I36: Service charge [R/account/day] | K36: Administration charge [R/POD/day] | N36: Electrification and rural network subsidy charge [c/kWh]
A38: Tariff | B38: Tariff nameBillcode | C38: Tx zone | D38: Voltage | E38: Billcode | J38: VAT incl | L38: VAT incl
A39: Nightsave Small | B39: NS | C39: 0 | D39: 1 | E39: NS01Y | H39: ≤ 100 kVA | I39: 16.74 | J39: =ROUND(I39 * (1 + VAT), 2) -> 19.25 | K39: 3.67 | L39: =ROUND(K39 * (1 + VAT), 2) -> 4.22 | O39: VAT incl
A40: Nightsave Small | B40: NS | C40: 0 | D40: 1 | E40: NS01Y | H40: > 100 kVA & ≤ 500 kVA | I40: 76.5 | J40: =ROUND(I40 * (1 + VAT), 2) -> 87.98 | K40: 21.43 | L40: =ROUND(K40 * (1 + VAT), 2) -> 24.64 | N40: 9.17 | O40: =ROUND(N40 * (1 + VAT), 2) -> 10.55
A41: Nightsave Small | B41: NS | C41: 0 | D41: 1 | E41: NS01Y | H41: > 500 kVA & ≤ 1 MVA | I41: 235.44 | J41: =ROUND(I41 * (1 + VAT), 2) -> 270.76 | K41: 42.62 | L41: =ROUND(K41 * (1 + VAT), 2) -> 49.01
A42: Nightsave Small | B42: NS | C42: 0 | D42: 1 | E42: NS01Y | H42: Key customers | I42: 4613.69 | J42: =ROUND(I42 * (1 + VAT), 2) -> 5305.74 | K42: 147.34 | L42: =ROUND(K42 * (1 + VAT), 2) -> 169.44
A47: Tariff | B47: Tariff nameBillcode | C47: Tx zone | D47: Voltage | E47: Billcode
A48: Nightsave Small | B48: NS | C48: 0 | D48: 1 | E48: NS01Y

Sheet Megaflex NLA
G1: Back to menu
A2: Non-municipal | G2: Megaflex – Non-local Authority | AF2: =SUM(J8:T23,V8:V23,#REF!,#REF!,#REF!,#REF!,H26:J26,L26) ->  | AG2: check value
J4: Active energy charge [c/kWh] | V4: Transmission network charges [R/kVA/m]
H5: Transmission zone | J5: High demand season [Jun - Aug] | P5: Low demand season [Sep - May]
I6: Voltage | J6: Peak | L6: Standard | N6: Off Peak | P6: Peak | R6: Standard | T6: Off Peak
A7: Tariff | B7: Tariff nameBillcode | C7: Tx zone | D7: Voltage | E7: Billcode | K7: VAT incl | M7: VAT incl | O7: VAT incl | Q7: VAT incl | S7: VAT incl | U7: VAT incl | W7: VAT incl
A8: Megaflex | B8: Me | C8: 0 | D8: 1 | E8: =B8&C8&D8&IF($A$2="Non-municipal","N",IF($A$2="Municiple","Y","error")) -> Me01N | H8: ≤ 300km | I8: < 500V | J8: 362.73 | K8: =ROUND(J8 * (1 + VAT), 2) -> 417.14 | L8: 110.36 | M8: =ROUND(L8 * (1 + VAT), 2) -> 126.91 | N8: 60.26 | O8: =ROUND(N8 * (1 + VAT), 2) -> 69.3 | P8: 118.78 | Q8: =ROUND(P8 * (1 + VAT), 2) -> 136.6 | R8: 81.96 | S8: =ROUND(R8 * (1 + VAT), 2) -> 94.25 | T8: 52.25 | U8: =ROUND(T8 * (1 + VAT), 2) -> 60.09 | V8: 10.38 | W8: =ROUND(V8 * (1 + VAT), 2) -> 11.94
A9: Megaflex | B9: Me | C9: 0 | D9: 2 | E9: =B9&C9&D9&IF($A$2="Non-municipal","N",IF($A$2="Municiple","Y","error")) -> Me02N | I9: ≥ 500V & < 66kV | J9: 357.04 | K9: 410.6 | L9: 108.16 | M9: 124.38 | N9: 58.74 | O9: 67.55 | P9: 116.45 | Q9: 133.92 | R9: 80.17 | S9: 92.2 | T9: 50.86 | U9: 58.49 | V9: 9.48 | W9: 10.9
A10: Megaflex | B10: Me | C10: 0 | D10: 3 | E10: Me03N | I10: ≥ 66kV & ≤ 132kV | J10: 345.73 | K10: 397.59 | L10: 104.73 | M10: 120.44 | N10: 56.88 | O10: 65.41 | P10: 112.79 | Q10: 129.71 | R10: 77.61 | S10: 89.25 | T10: 49.26 | U10: 56.65 | V10: 9.23 | W10: 10.61
A11: Megaflex | B11: Me | C11: 0 | D11: 4 | E11: Me04N | I11: > 132kV* | J11: 325.84 | K11: 374.72 | L11: 98.7 | M11: 113.51 | N11: 53.61 | O11: 61.65 | P11: 106.32 | Q11: 122.27 | R11: 73.15 | S11: 84.12 | T11: 46.42 | U11: 53.38 | V11: 11.67 | W11: 13.42
A12: Megaflex | B12: Me | C12: 1 | D12: 1 | E12: Me11N | H12: > 300km and ≤ 600km | I12: < 500V | J12: 365.69 | K12: 420.54 | L12: 110.8 | M12: 127.42 | N12: 60.16 | O12: 69.18 | P12: 119.3 | Q12: 137.2 | R12: 82.14 | S12: 94.46 | T12: 52.11 | U12: 59.93 | V12: 10.45 | W12: 12.02
A13: Megaflex | B13: Me | C13: 1 | D13: 2 | E13: Me12N | I13: ≥ 500V & < 66kV | J13: 360.6 | K13: 414.69 | L13: 109.23 | M13: 125.61 | N13: 59.32 | O13: 68.22 | P13: 117.65 | Q13: 135.3 | R13: 80.96 | S13: 93.1 | T13: 51.36 | U13: 59.06 | V13: 9.57 | W13: 11.01
A14: Megaflex | B14: Me | C14: 1 | D14: 3 | E14: Me13N | I14: ≥ 66kV & ≤ 132kV | J14: 349.13 | K14: 401.5 | L14: 105.75 | M14: 121.61 | N14: 57.41 | O14: 66.02 | P14: 113.88 | Q14: 130.96 | R14: 78.38 | S14: 90.14 | T14: 49.73 | U14: 57.19 | V14: 9.3 | W14: 10.7
A15: Megaflex | B15: Me | C15: 1 | D15: 4 | E15: Me14N | I15: > 132kV* | J15: 329.11 | K15: 378.48 | L15: 99.71 | M15: 114.67 | N15: 54.11 | O15: 62.23 | P15: 107.34 | Q15: 123.44 | R15: 73.87 | S15: 84.95 | T15: 46.85 | U15: 53.88 | V15: 11.78 | W15: 13.55
A16: Megaflex | B16: Me | C16: 2 | D16: 1 | E16: Me21N | H16: > 600km and ≤ 900km | I16: < 500V | J16: 369.33 | K16: 424.73 | L16: 111.88 | M16: 128.66 | N16: 60.73 | O16: 69.84 | P16: 120.48 | Q16: 138.55 | R16: 82.93 | S16: 95.37 | T16: 52.59 | U16: 60.48 | V16: 10.57 | W16: 12.16
A17: Megaflex | B17: Me | C17: 2 | D17: 2 | E17: Me22N | I17: ≥ 500V & < 66kV | J17: 364.23 | K17: 418.86 | L17: 110.35 | M17: 126.9 | N17: 59.92 | O17: 68.91 | P17: 118.81 | Q17: 136.63 | R17: 81.78 | S17: 94.05 | T17: 51.88 | U17: 59.66 | V17: 9.66 | W17: 11.11
A18: Megaflex | B18: Me | C18: 2 | D18: 3 | E18: Me23N | I18: ≥ 66kV & ≤ 132kV | J18: 352.69 | K18: 405.59 | L18: 106.85 | M18: 122.88 | N18: 58.01 | O18: 66.71 | P18: 115.04 | Q18: 132.3 | R18: 79.19 | S18: 91.07 | T18: 50.24 | U18: 57.78 | V18: 9.36 | W18: 10.76
A19: Megaflex | B19: Me | C19: 2 | D19: 4 | E19: Me24N | I19: > 132kV* | J19: 332.42 | K19: 382.28 | L19: 100.69 | M19: 115.79 | N19: 54.71 | O19: 62.92 | P19: 108.43 | Q19: 124.69 | R19: 74.62 | S19: 85.81 | T19: 47.35 | U19: 54.45 | V19: 11.95 | W19: 13.74
A20: Megaflex | B20: Me | C20: 3 | D20: 1 | E20: Me31N | H20: > 900km | I20: < 500V | J20: 373.05 | K20: 429.01 | L20: 113.05 | M20: 130.01 | N20: 61.36 | O20: 70.56 | P20: 121.7 | Q20: 139.96 | R20: 83.75 | S20: 96.31 | T20: 53.15 | U20: 61.12 | V20: 10.64 | W20: 12.24
A21: Megaflex | B21: Me | C21: 3 | D21: 2 | E21: Me32N | I21: ≥ 500V & < 66kV | J21: 367.85 | K21: 423.03 | L21: 111.42 | M21: 128.13 | N21: 60.48 | O21: 69.55 | P21: 119.97 | Q21: 137.97 | R21: 82.56 | S21: 94.94 | T21: 52.39 | U21: 60.25 | V21: 9.77 | W21: 11.24
A22: Megaflex | B22: Me | C22: 3 | D22: 3 | E22: Me33N | I22: ≥ 66kV & ≤ 132kV | J22: 356.23 | K22: 409.66 | L22: 107.9 | M22: 124.09 | N22: 58.59 | O22: 67.38 | P22: 116.19 | Q22: 133.62 | R22: 79.98 | S22: 91.98 | T22: 50.74 | U22: 58.35 | V22: 9.45 | W22: 10.87
A23: Megaflex | B23: Me | C23: 3 | D23: 4 | E23: Me34N | I23: > 132kV* | J23: 335.66 | K23: 386.01 | L23: 101.72 | M23: 116.98 | N23: 55.27 | O23: 63.56 | P23: 109.56 | Q23: 125.99 | R23: 75.44 | S23: 86.76 | T23: 47.88 | U23: 55.06 | V23: 12.04 | W23: 13.85
I24: * 132 kV or Transmission connected
H26: Distribution network charges
J27: Network capacity charge [R/kVA/m] | L27: Network demand charge [R/kVA/m] | N27: Urban low voltage subsidy charge [R/kVA/m]
H28: Voltage | Q28: Voltage | S28: Ancillary service charge [c/kWh]
A29: Tariff | B29: Tariff nameBillcode | C29: Tx zone | D29: Voltage | E29: Billcode | K29: VAT incl | M29: VAT incl | O29: VAT incl | T29: VAT incl
A30: Megaflex | B30: Me | C30: 0 | D30: 1 | E30: =B30&C30&D30&IF($A$2="Non-municipal","N",IF($A$2="Municiple","Y","error")) -> Me01N | H30: < 500V | J30: 20.62 | K30: =ROUND(J30 * (1 + VAT), 2) -> 23.71 | L30: 39.1 | M30: =ROUND(L30 * (1 + VAT), 2) -> 44.97 | N30: 0 | O30: =ROUND(N30 * (1 + VAT), 2) -> 0 | Q30: < 500V | S30: 0.48 | T30: =ROUND(S30 * (1 + VAT), 2) -> 0.55
A31: Megaflex | B31: Me | C31: 0 | D31: 2 | E31: =B31&C31&D31&IF($A$2="Non-municipal","N",IF($A$2="Municiple","Y","error")) -> Me02N | H31: ≥ 500V & < 66kV | J31: 18.91 | K31: =ROUND(J31 * (1 + VAT), 2) -> 21.75 | L31: 35.87 | M31: =ROUND(L31 * (1 + VAT), 2) -> 41.25 | N31: 0 | O31: =ROUND(N31 * (1 + VAT), 2) -> 0 | Q31: ≥ 500V & < 66kV | S31: 0.47 | T31: =ROUND(S31 * (1 + VAT), 2) -> 0.54
A32: Megaflex | B32: Me | C32: 0 | D32: 3 | E32: =B32&C32&D32&IF($A$2="Non-municipal","N",IF($A$2="Municiple","Y","error")) -> Me03N | H32: ≥ 66kV & ≤ 132kV | J32: 6.75 | K32: =ROUND(J32 * (1 + VAT), 2) -> 7.76 | L32: 12.51 | M32: =ROUND(L32 * (1 + VAT), 2) -> 14.39 | N32: 16.66 | O32: =ROUND(N32 * (1 + VAT), 2) -> 19.16 | Q32: ≥ 66kV & ≤ 132kV | S32: 0.45 | T32: =ROUND(S32 * (1 + VAT), 2) -> 0.52
A33: Megaflex | B33: Me | C33: 0 | D33: 4 | E33: =B33&C33&D33&IF($A$2="Non-municipal","N",IF($A$2="Municiple","Y","error")) -> Me04N | H33: > 132kV* | J33: 0 | K33: =ROUND(J33 * (1 + VAT), 2) -> 0 | L33: 0 | M33: =ROUND(L33 * (1 + VAT), 2) -> 0 | N33: 16.66 | O33: =ROUND(N33 * (1 + VAT), 2) -> 19.16 | Q33: > 132kV* | S33: 0.42 | T33: =ROUND(S33 * (1 + VAT), 2) -> 0.48
H34: * 132 kV or Transmission connected | Q34: * 132 kV or Transmission connected
H36: Customer categories | J36: Service charge [R/account/day] | L36: Administration charge [R/POD/day] | Q36: Reactive energy charge [c/kVArh]
Q37: High season | S37: Low season
A38: Tariff | B38: Tariff nameBillcode | C38: Tx zone | D38: Voltage | E38: Billcode | K38: VAT incl | M38: VAT incl | R38: VAT incl | T38: VAT incl
A39: Megaflex | B39: Me | C39: 0 | D39: 1 | E39: =B39&C39&D39&IF($A$2="Non-municipal","N",IF($A$2="Municiple","Y","error")) -> Me01N | H39: > 1 MVA | J39: 236.74 | K39: =ROUND(J39 * (1 + VAT), 2) -> 272.25 | L39: 106.69 | M39: =ROUND(L39 * (1 + VAT), 2) -> 122.69 | Q39: 16.68 | R39: =ROUND(Q39 * (1 + VAT), 2) -> 19.18 | S39: 0 | T39: =ROUND(S39 * (1 + VAT), 2) -> 0
A40: Megaflex | B40: Me | C40: 0 | D40: 1 | E40: =B40&C40&D40&IF($A$2="Non-municipal","N",IF($A$2="Municiple","Y","error")) -> Me01N | H40: Key customers | J40: 4639.2 | K40: =ROUND(J40 * (1 + VAT), 2) -> 5335.08 | L40: 148.16 | M40: =ROUND(L40 * (1 + VAT), 2) -> 170.38
H42: Electrification and rural network subsidy charge [c/kWh] | J42: Affordability subsidy charge [c/kWh] Only payable by non-local authority tariffs
A45: Tariff | B45: Tariff nameBillcode | C45: Tx zone | D45: Voltage | E45: Billcode | I45: VAT incl | K45: VAT incl
A46: Megaflex | B46: Me | C46: 0 | D46: 1 | E46: =B46&C46&D46&IF($A$2="Non-municipal","N",IF($A$2="Municiple","Y","error")) -> Me01N | H46: 9.22 | I46: =ROUND(H46 * (1 + VAT), 2) -> 10.6 | J46: 4.34 | K46: =ROUND(J46 * (1 + VAT), 2) -> 4.99

Sheet Megaflex Munic
G1: Back to menu
A2: Municiple | G2: Megaflex – Local Authority | AF2: =SUM(J8:T23,V8:V23,#REF!,#REF!,#REF!,#REF!,H26:J26,L26) ->  | AG2: check value
J4: Active energy charge [c/kWh] | V4: Transmission network charges [R/kVA/m]
H5: Transmission zone | J5: High demand season [Jun - Aug] | P5: Low demand season [Sep - May]
I6: Voltage | J6: Peak | L6: Standard | N6: Off Peak | P6: Peak | R6: Standard | T6: Off Peak
A7: Tariff | B7: Tariff nameBillcode | C7: Tx zone | D7: Voltage | E7: Billcode | K7: VAT incl | M7: VAT incl | O7: VAT incl | Q7: VAT incl | S7: VAT incl | U7: VAT incl | W7: VAT incl
A8: Megaflex | B8: Me | C8: 0 | D8: 1 | E8: Me01Y | H8: ≤ 300km | I8: < 500V | J8: 371.05 | K8: =ROUND(J8 * (1 + VAT), 2) -> 426.71 | L8: 112.91 | M8: =ROUND(L8 * (1 + VAT), 2) -> 129.85 | N8: 61.61 | O8: =ROUND(N8 * (1 + VAT), 2) -> 70.85 | P8: 121.48 | Q8: =ROUND(P8 * (1 + VAT), 2) -> 139.7 | R8: 83.84 | S8: =ROUND(R8 * (1 + VAT), 2) -> 96.42 | T8: 53.44 | U8: =ROUND(T8 * (1 + VAT), 2) -> 61.46 | V8: 10.34 | W8: =ROUND(V8 * (1 + VAT), 2) -> 11.89
A9: Megaflex | B9: Me | C9: 0 | D9: 2 | E9: Me02Y | I9: ≥ 500V & < 66kV | J9: 365.2 | K9: 419.98 | L9: 110.65 | M9: 127.25 | N9: 60.09 | O9: 69.1 | P9: 119.13 | Q9: 137 | R9: 81.99 | S9: 94.29 | T9: 52.03 | U9: 59.83 | V9: 9.43 | W9: 10.84
A10: Megaflex | B10: Me | C10: 0 | D10: 3 | E10: Me03Y | I10: ≥ 66kV & ≤ 132kV | J10: 353.68 | K10: 406.73 | L10: 107.14 | M10: 123.21 | N10: 58.19 | O10: 66.92 | P10: 115.38 | Q10: 132.69 | R10: 79.42 | S10: 91.33 | T10: 50.37 | U10: 57.93 | V10: 9.18 | W10: 10.56
A11: Megaflex | B11: Me | C11: 0 | D11: 4 | E11: Me04Y | I11: > 132kV* | J11: 333.32 | K11: 383.32 | L11: 100.98 | M11: 116.13 | N11: 54.83 | O11: 63.05 | P11: 108.73 | Q11: 125.04 | R11: 74.83 | S11: 86.05 | T11: 47.47 | U11: 54.59 | V11: 11.62 | W11: 13.36
A12: Megaflex | B12: Me | C12: 1 | D12: 1 | E12: Me11Y | H12: > 300km and ≤ 600km | I12: < 500V | J12: 374.08 | K12: 430.19 | L12: 113.32 | M12: 130.32 | N12: 61.53 | O12: 70.76 | P12: 122.03 | Q12: 140.33 | R12: 84.01 | S12: 96.61 | T12: 53.29 | U12: 61.28 | V12: 10.38 | W12: 11.94
A13: Megaflex | B13: Me | C13: 1 | D13: 2 | E13: Me12Y | I13: ≥ 500V & < 66kV | J13: 368.85 | K13: 424.18 | L13: 111.74 | M13: 128.5 | N13: 60.68 | O13: 69.78 | P13: 120.34 | Q13: 138.39 | R13: 82.82 | S13: 95.24 | T13: 52.53 | U13: 60.41 | V13: 9.54 | W13: 10.97
A14: Megaflex | B14: Me | C14: 1 | D14: 3 | E14: Me13Y | I14: ≥ 66kV & ≤ 132kV | J14: 357.14 | K14: 410.71 | L14: 108.18 | M14: 124.41 | N14: 58.74 | O14: 67.55 | P14: 116.5 | Q14: 133.98 | R14: 80.18 | S14: 92.21 | T14: 50.85 | U14: 58.48 | V14: 9.25 | W14: 10.64
A15: Megaflex | B15: Me | C15: 1 | D15: 4 | E15: Me14Y | I15: > 132kV* | J15: 336.65 | K15: 387.15 | L15: 102 | M15: 117.3 | N15: 55.37 | O15: 63.68 | P15: 109.8 | Q15: 126.27 | R15: 75.59 | S15: 86.93 | T15: 47.94 | U15: 55.13 | V15: 11.73 | W15: 13.49
A16: Megaflex | B16: Me | C16: 2 | D16: 1 | E16: Me21Y | H16: > 600km and ≤ 900km | I16: < 500V | J16: 377.81 | K16: 434.48 | L16: 114.46 | M16: 131.63 | N16: 62.14 | O16: 71.46 | P16: 123.23 | Q16: 141.71 | R16: 84.84 | S16: 97.57 | T16: 53.82 | U16: 61.89 | V16: 10.52 | W16: 12.1
A17: Megaflex | B17: Me | C17: 2 | D17: 2 | E17: Me22Y | I17: ≥ 500V & < 66kV | J17: 372.57 | K17: 428.46 | L17: 112.85 | M17: 129.78 | N17: 61.29 | O17: 70.48 | P17: 121.56 | Q17: 139.79 | R17: 83.61 | S17: 96.15 | T17: 53.07 | U17: 61.03 | V17: 9.6 | W17: 11.04
A18: Megaflex | B18: Me | C18: 2 | D18: 3 | E18: Me23Y | I18: ≥ 66kV & ≤ 132kV | J18: 360.78 | K18: 414.9 | L18: 109.27 | M18: 125.66 | N18: 59.33 | O18: 68.23 | P18: 117.65 | Q18: 135.3 | R18: 80.98 | S18: 93.13 | T18: 51.35 | U18: 59.05 | V18: 9.32 | W18: 10.72
A19: Megaflex | B19: Me | C19: 2 | D19: 4 | E19: Me24Y | I19: > 132kV* | J19: 340.02 | K19: 391.02 | L19: 103.02 | M19: 118.47 | N19: 55.93 | O19: 64.32 | P19: 110.93 | Q19: 127.57 | R19: 76.34 | S19: 87.79 | T19: 48.43 | U19: 55.69 | V19: 11.89 | W19: 13.67
A20: Megaflex | B20: Me | C20: 3 | D20: 1 | E20: Me31Y | H20: > 900km | I20: < 500V | J20: 381.6 | K20: 438.84 | L20: 115.61 | M20: 132.95 | N20: 62.78 | O20: 72.2 | P20: 124.49 | Q20: 143.16 | R20: 85.67 | S20: 98.52 | T20: 54.36 | U20: 62.51 | V20: 10.57 | W20: 12.16
A21: Megaflex | B21: Me | C21: 3 | D21: 2 | E21: Me32Y | I21: ≥ 500V & < 66kV | J21: 376.29 | K21: 432.73 | L21: 113.98 | M21: 131.08 | N21: 61.91 | O21: 71.2 | P21: 122.73 | Q21: 141.14 | R21: 84.47 | S21: 97.14 | T21: 53.57 | U21: 61.61 | V21: 9.71 | W21: 11.17
A22: Megaflex | B22: Me | C22: 3 | D22: 3 | E22: Me33Y | I22: ≥ 66kV & ≤ 132kV | J22: 364.41 | K22: 419.07 | L22: 110.4 | M22: 126.96 | N22: 59.95 | O22: 68.94 | P22: 118.86 | Q22: 136.69 | R22: 81.79 | S22: 94.06 | T22: 51.89 | U22: 59.67 | V22: 9.4 | W22: 10.81
A23: Megaflex | B23: Me | C23: 3 | D23: 4 | E23: Me34Y | I23: > 132kV* | J23: 343.37 | K23: 394.88 | L23: 104.07 | M23: 119.68 | N23: 56.55 | O23: 65.03 | P23: 112.06 | Q23: 128.87 | R23: 77.14 | S23: 88.71 | T23: 48.96 | U23: 56.3 | V23: 11.97 | W23: 13.77
I24: * 132 kV or Transmission connected
H26: Distribution network charges
J27: Network capacity charge [R/kVA/m] | L27: Network demand charge [R/kVA/m] | N27: Urban low voltage subsidy charge [R/kVA/m]
H28: Voltage | Q28: Voltage | S28: Ancillary service charge [c/kWh]
A29: Tariff | B29: Tariff nameBillcode | C29: Tx zone | D29: Voltage | E29: Billcode | K29: VAT incl | M29: VAT incl | O29: VAT incl | T29: VAT incl
A30: Megaflex | B30: Me | C30: 0 | D30: 1 | E30: Me01Y | H30: < 500V | J30: 20.62 | K30: =ROUND(J30 * (1 + VAT), 2) -> 23.71 | L30: 39.07 | M30: =ROUND(L30 * (1 + VAT), 2) -> 44.93 | N30: 0 | O30: =ROUND(N30 * (1 + VAT), 2) -> 0 | Q30: < 500V | S30: 0.48 | T30: =ROUND(S30 * (1 + VAT), 2) -> 0.55
A31: Megaflex | B31: Me | C31: 0 | D31: 2 | E31: Me02Y | H31: ≥ 500V & < 66kV | J31: 18.9 | K31: =ROUND(J31 * (1 + VAT), 2) -> 21.74 | L31: 35.83 | M31: =ROUND(L31 * (1 + VAT), 2) -> 41.2 | N31: 0 | O31: =ROUND(N31 * (1 + VAT), 2) -> 0 | Q31: ≥ 500V & < 66kV | S31: 0.47 | T31: =ROUND(S31 * (1 + VAT), 2) -> 0.54
A32: Megaflex | B32: Me | C32: 0 | D32: 3 | E32: Me03Y | H32: ≥ 66kV & ≤ 132kV | J32: 6.76 | K32: =ROUND(J32 * (1 + VAT), 2) -> 7.77 | L32: 12.5 | M32: =ROUND(L32 * (1 + VAT), 2) -> 14.38 | N32: 16.55 | O32: =ROUND(N32 * (1 + VAT), 2) -> 19.03 | Q32: ≥ 66kV & ≤ 132kV | S32: 0.43 | T32: =ROUND(S32 * (1 + VAT), 2) -> 0.49
A33: Megaflex | B33: Me | C33: 0 | D33: 4 | E33: Me04Y | H33: > 132kV* | J33: 0 | K33: =ROUND(J33 * (1 + VAT), 2) -> 0 | L33: 0 | M33: =ROUND(L33 * (1 + VAT), 2) -> 0 | N33: 16.55 | O33: =ROUND(N33 * (1 + VAT), 2) -> 19.03 | Q33: > 132kV* | S33: 0.41 | T33: =ROUND(S33 * (1 + VAT), 2) -> 0.47
H34: * 132 kV or Transmission connected | Q34: * 132 kV or Transmission connected
H36: Customer categories | J36: Service charge [R/account/day] | L36: Administration charge [R/POD/day] | Q36: Reactive energy charge [c/kVArh]
Q37: High season | S37: Low season
A38: Tariff | B38: Tariff nameBillcode | C38: Tx zone | D38: Voltage | E38: Billcode | K38: VAT incl | M38: VAT incl | R38: VAT incl | T38: VAT incl
A39: Megaflex | B39: Me | C39: 0 | D39: 1 | E39: Me01Y | H39: > 1 MVA | J39: 235.44 | K39: =ROUND(J39 * (1 + VAT), 2) -> 270.76 | L39: 106.13 | M39: =ROUND(L39 * (1 + VAT), 2) -> 122.05 | Q39: 16.56 | R39: =ROUND(Q39 * (1 + VAT), 2) -> 19.04 | S39: 0 | T39: =ROUND(S39 * (1 + VAT), 2) -> 0
A40: Megaflex | B40: Me | C40: 0 | D40: 1 | E40: Me01Y | H40: Key customers | J40: 4613.69 | K40: =ROUND(J40 * (1 + VAT), 2) -> 5305.74 | L40: 147.34 | M40: =ROUND(L40 * (1 + VAT), 2) -> 169.44
H42: Electrification and rural network subsidy charge [c/kWh]
A45: Tariff | B45: Tariff nameBillcode | C45: Tx zone | D45: Voltage | E45: Billcode | I45: VAT incl
A46: Megaflex | B46: Me | C46: 0 | D46: 1 | E46: Me01Y | H46: 9.17 | I46: =ROUND(H46 * (1 + VAT), 2) -> 10.55

Sheet Megaflex Gen NLA
G1: Back to menu
A2: Non-municipal | G2: Megaflex Gen - Non-local authority
J4: Active energy charge for loads [c/kWh] | V4: Transmission network charges [R/kVA/m]
H5: Transmission zone | J5: High demand season [Jun - Aug] | P5: Low demand season [Sep - May]
I6: Voltage | J6: Peak | L6: Standard | N6: Off Peak | P6: Peak | R6: Standard | T6: Off Peak
A7: Tariff | B7: Tariff nameBillcode | C7: Tx zone | D7: Voltage | E7: Billcode | K7: VAT incl | M7: VAT incl | O7: VAT incl | Q7: VAT incl | S7: VAT incl | U7: VAT incl | W7: VAT incl
A8: Genflex urban loads | B8: GU | C8: 0 | D8: 1 | E8: =B8&C8&D8&IF($A$2="Non-municipal","N",IF($A$2="Municiple","Y","error")) -> GU01N | H8: ≤ 300km | I8: < 500V | J8: 362.73 | K8: =ROUND(J8 * (1 + VAT), 2) -> 417.14 | L8: 110.36 | M8: =ROUND(L8 * (1 + VAT), 2) -> 126.91 | N8: 60.26 | O8: =ROUND(N8 * (1 + VAT), 2) -> 69.3 | P8: 118.78 | Q8: =ROUND(P8 * (1 + VAT), 2) -> 136.6 | R8: 81.96 | S8: =ROUND(R8 * (1 + VAT), 2) -> 94.25 | T8: 52.25 | U8: =ROUND(T8 * (1 + VAT), 2) -> 60.09 | V8: 10.38 | W8: =ROUND(V8 * (1 + VAT), 2) -> 11.94
A9: Genflex urban loads | B9: GU | C9: 0 | D9: 2 | E9: =B9&C9&D9&IF($A$2="Non-municipal","N",IF($A$2="Municiple","Y","error")) -> GU02N | I9: ≥ 500V & < 66kV | J9: 357.04 | K9: 410.6 | L9: 108.16 | M9: 124.38 | N9: 58.74 | O9: 67.55 | P9: 116.45 | Q9: 133.92 | R9: 80.17 | S9: 92.2 | T9: 50.86 | U9: 58.49 | V9: 9.48 | W9: 10.9
A10: Genflex urban loads | B10: GU | C10: 0 | D10: 3 | E10: GU03N | I10: ≥ 66kV & ≤ 132kV | J10: 345.73 | K10: 397.59 | L10: 104.73 | M10: 120.44 | N10: 56.88 | O10: 65.41 | P10: 112.79 | Q10: 129.71 | R10: 77.61 | S10: 89.25 | T10: 49.26 | U10: 56.65 | V10: 9.23 | W10: 10.61
A11: Genflex urban loads | B11: GU | C11: 0 | D11: 4 | E11: GU04N | I11: > 132kV* | J11: 325.84 | K11: 374.72 | L11: 98.7 | M11: 113.51 | N11: 53.61 | O11: 61.65 | P11: 106.32 | Q11: 122.27 | R11: 73.15 | S11: 84.12 | T11: 46.42 | U11: 53.38 | V11: 11.67 | W11: 13.42
A12: Genflex urban loads | B12: GU | C12: 1 | D12: 1 | E12: GU11N | H12: > 300km and ≤ 600km | I12: < 500V | J12: 365.69 | K12: 420.54 | L12: 110.8 | M12: 127.42 | N12: 60.16 | O12: 69.18 | P12: 119.3 | Q12: 137.2 | R12: 82.14 | S12: 94.46 | T12: 52.11 | U12: 59.93 | V12: 10.45 | W12: 12.02
A13: Genflex urban loads | B13: GU | C13: 1 | D13: 2 | E13: GU12N | I13: ≥ 500V & < 66kV | J13: 360.6 | K13: 414.69 | L13: 109.23 | M13: 125.61 | N13: 59.32 | O13: 68.22 | P13: 117.65 | Q13: 135.3 | R13: 80.96 | S13: 93.1 | T13: 51.36 | U13: 59.06 | V13: 9.57 | W13: 11.01
A14: Genflex urban loads | B14: GU | C14: 1 | D14: 3 | E14: GU13N | I14: ≥ 66kV & ≤ 132kV | J14: 349.13 | K14: 401.5 | L14: 105.75 | M14: 121.61 | N14: 57.41 | O14: 66.02 | P14: 113.88 | Q14: 130.96 | R14: 78.38 | S14: 90.14 | T14: 49.73 | U14: 57.19 | V14: 9.3 | W14: 10.7
A15: Genflex urban loads | B15: GU | C15: 1 | D15: 4 | E15: GU14N | I15: > 132kV* | J15: 329.11 | K15: 378.48 | L15: 99.71 | M15: 114.67 | N15: 54.11 | O15: 62.23 | P15: 107.34 | Q15: 123.44 | R15: 73.87 | S15: 84.95 | T15: 46.85 | U15: 53.88 | V15: 11.78 | W15: 13.55
A16: Genflex urban loads | B16: GU | C16: 2 | D16: 1 | E16: GU21N | H16: > 600km and ≤ 900km | I16: < 500V | J16: 369.33 | K16: 424.73 | L16: 111.88 | M16: 128.66 | N16: 60.73 | O16: 69.84 | P16: 120.48 | Q16: 138.55 | R16: 82.93 | S16: 95.37 | T16: 52.59 | U16: 60.48 | V16: 10.57 | W16: 12.16
A17: Genflex urban loads | B17: GU | C17: 2 | D17: 2 | E17: GU22N | I17: ≥ 500V & < 66kV | J17: 364.23 | K17: 418.86 | L17: 110.35 | M17: 126.9 | N17: 59.92 | O17: 68.91 | P17: 118.81 | Q17: 136.63 | R17: 81.78 | S17: 94.05 | T17: 51.88 | U17: 59.66 | V17: 9.66 | W17: 11.11
A18: Genflex urban loads | B18: GU | C18: 2 | D18: 3 | E18: GU23N | I18: ≥ 66kV & ≤ 132kV | J18: 352.69 | K18: 405.59 | L18: 106.85 | M18: 122.88 | N18: 58.01 | O18: 66.71 | P18: 115.04 | Q18: 132.3 | R18: 79.19 | S18: 91.07 | T18: 50.24 | U18: 57.78 | V18: 9.36 | W18: 10.76
A19: Genflex urban loads | B19: GU | C19: 2 | D19: 4 | E19: GU24N | I19: > 132kV* | J19: 332.42 | K19: 382.28 | L19: 100.69 | M19: 115.79 | N19: 54.71 | O19: 62.92 | P19: 108.43 | Q19: 124.69 | R19: 74.62 | S19: 85.81 | T19: 47.35 | U19: 54.45 | V19: 11.95 | W19: 13.74
A20: Genflex urban loads | B20: GU | C20: 3 | D20: 1 | E20: GU31N | H20: > 900km | I20: < 500V | J20: 373.05 | K20: 429.01 | L20: 113.05 | M20: 130.01 | N20: 61.36 | O20: 70.56 | P20: 121.7 | Q20: 139.96 | R20: 83.75 | S20: 96.31 | T20: 53.15 | U20: 61.12 | V20: 10.64 | W20: 12.24
A21: Genflex urban loads | B21: GU | C21: 3 | D21: 2 | E21: GU32N | I21: ≥ 500V & < 66kV | J21: 367.85 | K21: 423.03 | L21: 111.42 | M21: 128.13 | N21: 60.48 | O21: 69.55 | P21: 119.97 | Q21: 137.97 | R21: 82.56 | S21: 94.94 | T21: 52.39 | U21: 60.25 | V21: 9.77 | W21: 11.24
A22: Genflex urban loads | B22: GU | C22: 3 | D22: 3 | E22: GU33N | I22: ≥ 66kV & ≤ 132kV | J22: 356.23 | K22: 409.66 | L22: 107.9 | M22: 124.09 | N22: 58.59 | O22: 67.38 | P22: 116.19 | Q22: 133.62 | R22: 79.98 | S22: 91.98 | T22: 50.74 | U22: 58.35 | V22: 9.45 | W22: 10.87
A23: Genflex urban loads | B23: GU | C23: 3 | D23: 4 | E23: GU34N | I23: > 132kV* | J23: 335.66 | K23: 386.01 | L23: 101.72 | M23: 116.98 | N23: 55.27 | O23: 63.56 | P23: 109.56 | Q23: 125.99 | R23: 75.44 | S23: 86.76 | T23: 47.88 | U23: 55.06 | V23: 12.04 | W23: 13.85
A24: Gen-purchase | B24: NLPurchADJ | C24: 0 | D24: 4 | E24: NLPurchADJ04N | H24: WEPS energy rate excluding losses | J24: 322.3904225 | K24: 370.75 | L24: 97.65509053 | M24: =ROUND(L24 * (1 + VAT), 2) -> 112.3 | N24: 53.04244583 | O24: =ROUND(N24 * (1 + VAT), 2) -> 61 | P24: 105.1944197 | Q24: =ROUND(P24 * (1 + VAT), 2) -> 120.97 | R24: 72.37558128 | S24: =ROUND(R24 * (1 + VAT), 2) -> 83.23 | T24: 45.92856436 | U24: =ROUND(T24 * (1 + VAT), 2) -> 52.82
A25: TUoS network charges for Transmission connected generators | B25: GenTUOS | C25: Cape | D25: 4 | E25: GenTUOSCape4N | I25: * 132 kV or Transmission connected
A26: TUoS network charges for Transmission connected generators | B26: GenTUOS | C26: Karoo | D26: 4 | E26: GenTUOSKaroo4N
A27: TUoS network charges for Transmission connected generators | B27: GenTUOS | C27: Kwazulu-Natal | D27: 4 | E27: GenTUOSKwazulu-Natal4N | H27: Distribution network charges for loads | Q27: Transmission network charges for generators | U27: Distribution network charges for generators*
A28: TUoS network charges for Transmission connected generators | B28: GenTUOS | C28: Vaal | D28: 4 | E28: GenTUOSVaal4N | J28: Network capacity charge [R/kVA/m] | L28: Network demand charge [R/kVA/m] | N28: Urban low voltage subsidy charge [R/kVA/m]
A29: TUoS network charges for Transmission connected generators | B29: GenTUOS | C29: Waterburg | D29: 4 | E29: GenTUOSWaterburg4N | H29: Voltage | Q29: TUoS [ > 132kV] | S29: Network charge [R/kW] | U29: Voltage | W29: Network capacity charge [R/kW/m]
A30: TUoS network charges for Transmission connected generators | B30: GenTUOS | C30: Mpumalanga | D30: 4 | E30: GenTUOSMpumalanga4N | H30: Voltage | K30: VAT incl | M30: VAT incl | O30: VAT incl | T30: VAT incl
A31: Genflex urban loads | B31: GU | C31: 0 | D31: 1 | E31: =B31&C31&D31&IF($A$2="Non-municipal","N",IF($A$2="Municiple","Y","error")) -> GU01N | H31: < 500V | J31: 20.62 | K31: =ROUND(J31 * (1 + VAT), 2) -> 23.71 | L31: 39.1 | M31: =ROUND(L31 * (1 + VAT), 2) -> 44.97 | N31: 0 | O31: =ROUND(N31 * (1 + VAT), 2) -> 0 | Q31: Cape | S31: 0 | T31: =ROUND(S31 * (1 + VAT), 2) -> 0 | X31: VAT incl
A32: Genflex urban loads | B32: GU | C32: 0 | D32: 2 | E32: =B32&C32&D32&IF($A$2="Non-municipal","N",IF($A$2="Municiple","Y","error")) -> GU02N | H32: ≥ 500V & < 66kV | J32: 18.91 | K32: =ROUND(J32 * (1 + VAT), 2) -> 21.75 | L32: 35.87 | M32: =ROUND(L32 * (1 + VAT), 2) -> 41.25 | N32: 0 | O32: =ROUND(N32 * (1 + VAT), 2) -> 0 | Q32: Karoo | S32: 0 | T32: 0 | U32: < 500V
A33: Genflex urban loads | B33: GU | C33: 0 | D33: 3 | E33: =B33&C33&D33&IF($A$2="Non-municipal","N",IF($A$2="Municiple","Y","error")) -> GU03N | H33: ≥ 66kV & ≤ 132kV | J33: 6.75 | K33: =ROUND(J33 * (1 + VAT), 2) -> 7.76 | L33: 12.51 | M33: =ROUND(L33 * (1 + VAT), 2) -> 14.39 | N33: 16.66 | O33: =ROUND(N33 * (1 + VAT), 2) -> 19.16 | Q33: Kwazulu-Natal | S33: 2.45 | T33: 2.82 | U33: ≥ 500V & < 66kV
A34: Genflex urban loads | B34: GU | C34: 0 | D34: 4 | E34: =B34&C34&D34&IF($A$2="Non-municipal","N",IF($A$2="Municiple","Y","error")) -> GU04N | H34: > 132kV / Transmission connected | J34: 0 | K34: =ROUND(J34 * (1 + VAT), 2) -> 0 | L34: 0 | M34: =ROUND(L34 * (1 + VAT), 2) -> 0 | N34: 16.66 | O34: =ROUND(N34 * (1 + VAT), 2) -> 19.16 | Q34: Vaal | S34: 8.16 | T34: 9.38 | U34: ≥ 66kV & ≤ 132kV | W34: 16.68 | X34: =ROUND(W34 * (1 + VAT), 2) -> 19.18
A35: Gen-DUoS urban | B35: NEGenDUoSU | C35: 0 | D35: 3 | E35: =B35&C35&D35&IF($A$2="Non-municipal","N",IF($A$2="Municiple","Y","error")) -> NEGenDUoSU03N | Q35: Waterberg | S35: 10.45 | T35: 12.02 | U35: * The Distribution network charge will be rebated by the Losses charge, but not beyond extintion
Q36: Mpumalanga | S36: 9.7 | T36: 11.16
H37: Customer categories | J37: Service charge [R/account/day] | L37: Administration charge [R/POD/day]
H38: [kVA or MVA = loads] | Q38: Ancillary service charge for loads and generators
A39: Tariff | B39: Tariff nameBillcode | C39: Tx zone | D39: Voltage | E39: Billcode | H39: [kW or MW = generators] | K39: VAT incl | M39: VAT incl
A40: Genflex urban loads | B40: GU | C40: 0 | D40: 1 | E40: =B40&C40&D40&IF($A$2="Non-municipal","N",IF($A$2="Municiple","Y","error")) -> GU01N | H40: ≤ 100 KVA/ kW | J40: 16.85 | K40: =ROUND(J40 * (1 + VAT), 2) -> 19.38 | L40: 3.7 | M40: =ROUND(L40 * (1 + VAT), 2) -> 4.26 | Q40: Voltage | S40: Ancillary service charge [c/kWh]
A41: Genflex urban loads | B41: GU | C41: 0 | D41: 1 | E41: =B41&C41&D41&IF($A$2="Non-municipal","N",IF($A$2="Municiple","Y","error")) -> GU01N | H41: > 100 kVA/ kW & ≤ 500 kVA/ kW | J41: 76.94 | K41: =ROUND(J41 * (1 + VAT), 2) -> 88.48 | L41: 21.58 | M41: =ROUND(L41 * (1 + VAT), 2) -> 24.82 | T41: VAT incl
A42: Genflex urban loads | B42: GU | C42: 0 | D42: 1 | E42: =B42&C42&D42&IF($A$2="Non-municipal","N",IF($A$2="Municiple","Y","error")) -> GU01N | H42: > 500 kVA/ kW & ≤ 1 MVA/MW | J42: 236.74 | K42: =ROUND(J42 * (1 + VAT), 2) -> 272.25 | L42: 42.85 | M42: =ROUND(L42 * (1 + VAT), 2) -> 49.28 | Q42: < 500V | S42: 0.48 | T42: =ROUND(S42 * (1 + VAT), 2) -> 0.55
A43: Genflex urban loads | B43: GU | C43: 0 | D43: 1 | E43: =B43&C43&D43&IF($A$2="Non-municipal","N",IF($A$2="Municiple","Y","error")) -> GU01N | H43: > 1 MVA/MW | J43: 236.74 | K43: =ROUND(J43 * (1 + VAT), 2) -> 272.25 | L43: 106.69 | M43: =ROUND(L43 * (1 + VAT), 2) -> 122.69 | Q43: ≥ 500V & < 66kV | S43: 0.47 | T43: =ROUND(S43 * (1 + VAT), 2) -> 0.54
A44: Genflex urban loads | B44: GU | C44: 0 | D44: 1 | E44: =B44&C44&D44&IF($A$2="Non-municipal","N",IF($A$2="Municiple","Y","error")) -> GU01N | H44: Key customers or Transmission connected generators | J44: 4639.2 | K44: =ROUND(J44 * (1 + VAT), 2) -> 5335.08 | L44: 148.16 | M44: =ROUND(L44 * (1 + VAT), 2) -> 170.38 | Q44: ≥ 66kV & ≤ 132kV | S44: 0.45 | T44: =ROUND(S44 * (1 + VAT), 2) -> 0.52
Q45: > 132kV | S45: 0.42 | T45: =ROUND(S45 * (1 + VAT), 2) -> 0.48 | Y45: ='Loss Factors'!R10 -> 0
H46: Applicable to loads | Q46: * 132 kV or Transmission connected
H47: Electrification and rural network subsidy charge [c/kWh] | J47: Affordability subsidy charge [c/kWh] Only payable by non-local authority tariffs
M48: Reactive energy charge [c/kVArh] (loads)
M49: High season | O49: Low season
A50: Tariff | B50: Tariff nameBillcode | C50: Tx zone | D50: Voltage | E50: Billcode | I50: VAT incl | K50: VAT incl | N50: VAT incl | P50: VAT incl
A51: Genflex urban loads | B51: GU | C51: 0 | D51: 1 | E51: =B51&C51&D51&IF($A$2="Non-municipal","N",IF($A$2="Municiple","Y","error")) -> GU01N | H51: 9.22 | I51: =ROUND(H51 * (1 + VAT), 2) -> 10.6 | J51: 4.34 | K51: =ROUND(J51 * (1 + VAT), 2) -> 4.99 | M51: 16.68 | N51: =ROUND(M51 * (1 + VAT), 2) -> 19.18 | O51: 0 | P51: =ROUND(O51 * (1 + VAT), 2) -> 0
H54: Losses charge for generators
H55: Distribution connected generators | M55: Transmission connected generators
H56: Formula | M56: Formula
H57: Distribution = - ((Energy produced x WEPS rate excluding losses) x (Distribution loss factor x Transmission loss factor-1)) in each TOU period | M57: Transmission = (Energy produced x WEPS rate excluding losses) x (Transmission loss factor-1/Transmission loss factor) in each TOU period
H58: Transmission loss factors for Distribution connected | K58: Distribution loss factors | M58: Generator loss factor
H59: Distance from Johannesburg | K59: ='Loss Factors'!N5 -> Voltage | M59: =' TUoS NLA'!I38 -> Cape | O59: =' TUoS NLA'!J38 -> 0.971
H60: ='Loss Factors'!R6 -> ≤ 300km | J60: ='Loss Factors'!T6 -> 1.0107 | K60: < 500V | L60: ='Loss Factors'!O6 -> 1.1111 | M60: =' TUoS NLA'!I39 -> Karoo | O60: =' TUoS NLA'!J39 -> 0.995
H61: ='Loss Factors'!R7 -> > 300km & ≤ 600km | J61: ='Loss Factors'!T7 -> 1.0208 | K61: ≥ 500V & < 66kV | L61: ='Loss Factors'!O7 -> 1.0957 | M61: =' TUoS NLA'!I40 -> Kwazulu-Natal | O61: =' TUoS NLA'!J40 -> 1.004
H62: ='Loss Factors'!R8 -> > 600km & ≤ 900km | J62: ='Loss Factors'!T8 -> 1.031 | K62: ≥ 66kV & ≤ 132kV | L62: ='Loss Factors'!O8 -> 1.0611 | M62: =' TUoS NLA'!I41 -> Vaal | O62: =' TUoS NLA'!J41 -> 1.02
H63: ='Loss Factors'!R9 -> > 900km | J63: ='Loss Factors'!T9 -> 1.0413 | K63: > 132kV* | L63: ='Loss Factors'!O9 -> 1 | M63: =' TUoS NLA'!I42 -> Waterberg | O63: =' TUoS NLA'!J42 -> 1.023
H64: * 132 kV or Transmission connected | M64: =' TUoS NLA'!I43 -> Mpumalanga | O64: =' TUoS NLA'!J43 -> 1.021

Sheet Miniflex NLA
G1: Back to menu
A2: Non-municipal | G2: Miniflex - Non-Local Authority
J4: Active energy charge [c/kWh] | V4: Network capacity charge [R/kVA/m]
H5: Transmission zone | J5: High demand season [Jun - Aug] | P5: Low demand season [Sep - May]
I6: Voltage | J6: Peak | L6: Standard | N6: Off Peak | P6: Peak | R6: Standard | T6: Off Peak
A7: Tariff | B7: Tariff nameBillcode | C7: Tx zone | D7: Voltage | E7: Billcode | K7: VAT incl | M7: VAT incl | O7: VAT incl | Q7: VAT incl | S7: VAT incl | U7: VAT incl | W7: VAT incl
A8: Miniflex | B8: Mi | C8: 0 | D8: 1 | E8: =B8&C8&D8&IF($A$2="Non-municipal","N",IF($A$2="Municiple","Y","error")) -> Mi01N | H8: ≤ 300km | I8: < 500V | J8: 362.73 | K8: =ROUND(J8 * (1 + VAT), 2) -> 417.14 | L8: 110.36 | M8: =ROUND(L8 * (1 + VAT), 2) -> 126.91 | N8: 60.26 | O8: =ROUND(N8 * (1 + VAT), 2) -> 69.3 | P8: 118.78 | Q8: =ROUND(P8 * (1 + VAT), 2) -> 136.6 | R8: 81.96 | S8: =ROUND(R8 * (1 + VAT), 2) -> 94.25 | T8: 52.25 | U8: =ROUND(T8 * (1 + VAT), 2) -> 60.09 | V8: 30.96 | W8: =ROUND(V8 * (1 + VAT), 2) -> 35.6
A9: Miniflex | B9: Mi | C9: 0 | D9: 2 | E9: =B9&C9&D9&IF($A$2="Non-municipal","N",IF($A$2="Municiple","Y","error")) -> Mi02N | I9: ≥ 500V & < 66kV | J9: 357.04 | K9: 410.6 | L9: 108.16 | M9: 124.38 | N9: 58.74 | O9: 67.55 | P9: 116.45 | Q9: 133.92 | R9: 80.17 | S9: 92.2 | T9: 50.86 | U9: 58.49 | V9: 28.38 | W9: 32.64
A10: Miniflex | B10: Mi | C10: 0 | D10: 3 | E10: Mi03N | I10: ≥ 66kV & ≤ 132kV | J10: 345.73 | K10: 397.59 | L10: 104.73 | M10: 120.44 | N10: 56.88 | O10: 65.41 | P10: 112.79 | Q10: 129.71 | R10: 77.61 | S10: 89.25 | T10: 49.26 | U10: 56.65 | V10: 15.94 | W10: 18.33
A11: Miniflex | B11: Mi | C11: 0 | D11: 4 | E11: Mi04N | I11: > 132kV* | J11: 325.84 | K11: 374.72 | L11: 98.7 | M11: 113.51 | N11: 53.61 | O11: 61.65 | P11: 106.32 | Q11: 122.27 | R11: 73.15 | S11: 84.12 | T11: 46.42 | U11: 53.38 | V11: 11.62 | W11: 13.36
A12: Miniflex | B12: Mi | C12: 1 | D12: 1 | E12: Mi11N | H12: > 300km and ≤ 600km | I12: < 500V | J12: 365.69 | K12: 420.54 | L12: 110.8 | M12: 127.42 | N12: 60.16 | O12: 69.18 | P12: 119.3 | Q12: 137.2 | R12: 82.14 | S12: 94.46 | T12: 52.11 | U12: 59.93 | V12: 31.04 | W12: 35.7
A13: Miniflex | B13: Mi | C13: 1 | D13: 2 | E13: Mi12N | I13: ≥ 500V & < 66kV | J13: 360.6 | K13: 414.69 | L13: 109.23 | M13: 125.61 | N13: 59.32 | O13: 68.22 | P13: 117.65 | Q13: 135.3 | R13: 80.96 | S13: 93.1 | T13: 51.36 | U13: 59.06 | V13: 28.46 | W13: 32.73
A14: Miniflex | B14: Mi | C14: 1 | D14: 3 | E14: Mi13N | I14: ≥ 66kV & ≤ 132kV | J14: 349.13 | K14: 401.5 | L14: 105.75 | M14: 121.61 | N14: 57.41 | O14: 66.02 | P14: 113.88 | Q14: 130.96 | R14: 78.38 | S14: 90.14 | T14: 49.73 | U14: 57.19 | V14: 16 | W14: 18.4
A15: Miniflex | B15: Mi | C15: 1 | D15: 4 | E15: Mi14N | I15: > 132kV* | J15: 329.11 | K15: 378.48 | L15: 99.71 | M15: 114.67 | N15: 54.11 | O15: 62.23 | P15: 107.34 | Q15: 123.44 | R15: 73.87 | S15: 84.95 | T15: 46.85 | U15: 53.88 | V15: 11.74 | W15: 13.5
A16: Miniflex | B16: Mi | C16: 2 | D16: 1 | E16: Mi21N | H16: > 600km and ≤ 900km | I16: < 500V | J16: 369.33 | K16: 424.73 | L16: 111.88 | M16: 128.66 | N16: 60.73 | O16: 69.84 | P16: 120.48 | Q16: 138.55 | R16: 82.93 | S16: 95.37 | T16: 52.59 | U16: 60.48 | V16: 31.18 | W16: 35.86
A17: Miniflex | B17: Mi | C17: 2 | D17: 2 | E17: Mi22N | I17: ≥ 500V & < 66kV | J17: 364.23 | K17: 418.86 | L17: 110.35 | M17: 126.9 | N17: 59.92 | O17: 68.91 | P17: 118.81 | Q17: 136.63 | R17: 81.78 | S17: 94.05 | T17: 51.88 | U17: 59.66 | V17: 28.55 | W17: 32.83
A18: Miniflex | B18: Mi | C18: 2 | D18: 3 | E18: Mi23N | I18: ≥ 66kV & ≤ 132kV | J18: 352.69 | K18: 405.59 | L18: 106.85 | M18: 122.88 | N18: 58.01 | O18: 66.71 | P18: 115.04 | Q18: 132.3 | R18: 79.19 | S18: 91.07 | T18: 50.24 | U18: 57.78 | V18: 16.1 | W18: 18.52
A19: Miniflex | B19: Mi | C19: 2 | D19: 4 | E19: Mi24N | I19: > 132kV* | J19: 332.42 | K19: 382.28 | L19: 100.69 | M19: 115.79 | N19: 54.71 | O19: 62.92 | P19: 108.43 | Q19: 124.69 | R19: 74.62 | S19: 85.81 | T19: 47.35 | U19: 54.45 | V19: 11.91 | W19: 13.7
A20: Miniflex | B20: Mi | C20: 3 | D20: 1 | E20: Mi31N | H20: > 900km | I20: < 500V | J20: 373.05 | K20: 429.01 | L20: 113.05 | M20: 130.01 | N20: 61.36 | O20: 70.56 | P20: 121.7 | Q20: 139.96 | R20: 83.75 | S20: 96.31 | T20: 53.15 | U20: 61.12 | V20: 31.21 | W20: 35.89
A21: Miniflex | B21: Mi | C21: 3 | D21: 2 | E21: Mi32N | I21: ≥ 500V & < 66kV | J21: 367.85 | K21: 423.03 | L21: 111.42 | M21: 128.13 | N21: 60.48 | O21: 69.55 | P21: 119.97 | Q21: 137.97 | R21: 82.56 | S21: 94.94 | T21: 52.39 | U21: 60.25 | V21: 28.65 | W21: 32.95
A22: Miniflex | B22: Mi | C22: 3 | D22: 3 | E22: Mi33N | I22: ≥ 66kV & ≤ 132kV | J22: 356.23 | K22: 409.66 | L22: 107.9 | M22: 124.09 | N22: 58.59 | O22: 67.38 | P22: 116.19 | Q22: 133.62 | R22: 79.98 | S22: 91.98 | T22: 50.74 | U22: 58.35 | V22: 16.16 | W22: 18.58
A23: Miniflex | B23: Mi | C23: 3 | D23: 4 | E23: Mi34N | I23: > 132kV* | J23: 335.66 | K23: 386.01 | L23: 101.72 | M23: 116.98 | N23: 55.27 | O23: 63.56 | P23: 109.56 | Q23: 125.99 | R23: 75.44 | S23: 86.76 | T23: 47.88 | U23: 55.06 | V23: 11.99 | W23: 13.79
I24: * 132 kV or Transmission connected
H26: Customer categories | J26: Service charge [R/account/day] | L26: Administration charge [R/POD/day]
A28: Tariff | B28: Tariff nameBillcode | C28: Tx zone | D28: Voltage | E28: Billcode | K28: VAT incl | M28: VAT incl | P28: Ancillary service charge [c/kWh] | R28: Network demand charge [c/kWh] [Peak & Standard] | U28: Urban low voltage subsidy charge [R/kVA/m]
A29: Miniflex | B29: Mi | C29: 0 | D29: 1 | E29: =B29&C29&D29&IF($A$2="Non-municipal","N",IF($A$2="Municiple","Y","error")) -> Mi01N | H29: ≤ 100 kVA | J29: 16.85 | K29: =ROUND(J29 * (1 + VAT), 2) -> 19.38 | L29: 3.7 | M29: =ROUND(L29 * (1 + VAT), 2) -> 4.26 | O29: Voltage | Q29: VAT incl | S29: VAT incl | W29: VAT incl
A30: Miniflex | B30: Mi | C30: 0 | D30: 1 | E30: =B30&C30&D30&IF($A$2="Non-municipal","N",IF($A$2="Municiple","Y","error")) -> Mi01N | H30: > 100 kVA & ≤ 500 kVA | J30: 76.94 | K30: =ROUND(J30 * (1 + VAT), 2) -> 88.48 | L30: 21.58 | M30: =ROUND(L30 * (1 + VAT), 2) -> 24.82 | O30: < 500V | P30: 0.48 | Q30: =ROUND(P30 * (1 + VAT), 2) -> 0.55 | R30: 19.16 | S30: =ROUND(R30 * (1 + VAT), 2) -> 22.03 | U30: < 500V | V30: 0 | W30: =ROUND(V30 * (1 + VAT), 2) -> 0
A31: Miniflex | B31: Mi | C31: 0 | D31: 1 | E31: =B31&C31&D31&IF($A$2="Non-municipal","N",IF($A$2="Municiple","Y","error")) -> Mi01N | H31: > 500 kVA & ≤ 1 MVA | J31: 236.74 | K31: =ROUND(J31 * (1 + VAT), 2) -> 272.25 | L31: 42.85 | M31: =ROUND(L31 * (1 + VAT), 2) -> 49.28 | O31: ≥ 500V & < 66kV | P31: 0.47 | Q31: =ROUND(P31 * (1 + VAT), 2) -> 0.54 | R31: 8.03 | S31: =ROUND(R31 * (1 + VAT), 2) -> 9.23 | U31: ≥ 500V & < 66kV | V31: 0 | W31: =ROUND(V31 * (1 + VAT), 2) -> 0
A32: Miniflex | B32: Mi | C32: 0 | D32: 1 | E32: =B32&C32&D32&IF($A$2="Non-municipal","N",IF($A$2="Municiple","Y","error")) -> Mi01N | H32: > 1 MVA | J32: 236.74 | K32: =ROUND(J32 * (1 + VAT), 2) -> 272.25 | L32: 106.69 | M32: =ROUND(L32 * (1 + VAT), 2) -> 122.69 | O32: ≥ 66kV & ≤ 132kV | P32: 0.45 | Q32: =ROUND(P32 * (1 + VAT), 2) -> 0.52 | R32: 2.8 | S32: =ROUND(R32 * (1 + VAT), 2) -> 3.22 | U32: ≥ 66kV & ≤ 132kV | V32: 16.66 | W32: =ROUND(V32 * (1 + VAT), 2) -> 19.16
A33: Miniflex | B33: Mi | C33: 0 | D33: 1 | E33: =B33&C33&D33&IF($A$2="Non-municipal","N",IF($A$2="Municiple","Y","error")) -> Mi01N | H33: Key customers | J33: 4639.2 | K33: =ROUND(J33 * (1 + VAT), 2) -> 5335.08 | L33: 148.16 | M33: =ROUND(L33 * (1 + VAT), 2) -> 170.38 | O33: > 132kV* | P33: 0.42 | Q33: =ROUND(P33 * (1 + VAT), 2) -> 0.48 | R33: 0 | S33: =ROUND(R33 * (1 + VAT), 2) -> 0 | U33: > 132kV* | V33: 16.66 | W33: =ROUND(V33 * (1 + VAT), 2) -> 19.16
O34: * 132 kV or Transmission connected | U34: * 132 kV or Transmission connected
H36: Electrification and rural network subsidy charge [c/kWh] | J36: Affordability subsidy charge [c/kWh] Only payable by non-local authority tariffs | O36: Reactive energy charge [c/kVArh]
O38: High season | Q38: Low season
A39: Tariff | B39: Tariff nameBillcode | C39: Tx zone | D39: Voltage | E39: Billcode | I39: VAT incl | K39: VAT incl | P39: VAT incl | R39: VAT incl
A40: Miniflex | B40: Mi | C40: 0 | D40: 1 | E40: =B40&C40&D40&IF($A$2="Non-municipal","N",IF($A$2="Municiple","Y","error")) -> Mi01N | H40: 9.22 | I40: =ROUND(H40 * (1 + VAT), 2) -> 10.6 | J40: 4.34 | K40: =ROUND(J40 * (1 + VAT), 2) -> 4.99 | O40: 7.27 | P40: =ROUND(O40 * (1 + VAT), 2) -> 8.36 | Q40: 0 | R40: =ROUND(Q40 * (1 + VAT), 2) -> 0
A42: Miniflex | B42: Mi | C42: 0 | D42: 1 | E42: =B42&C42&D42&IF($A$2="Non-municipal","N",IF($A$2="Municiple","Y","error")) -> Mi01N
A43: Miniflex | B43: Mi | C43: 1 | D43: 2 | E43: =B43&C43&D43&IF($A$2="Non-municipal","N",IF($A$2="Municiple","Y","error")) -> Mi12N
A44: Miniflex | B44: Mi | C44: 2 | D44: 3 | E44: =B44&C44&D44&IF($A$2="Non-municipal","N",IF($A$2="Municiple","Y","error")) -> Mi23N
A45: Miniflex | B45: Mi | C45: 3 | D45: 4 | E45: =B45&C45&D45&IF($A$2="Non-municipal","N",IF($A$2="Municiple","Y","error")) -> Mi34N

Sheet Miniflex Munic
G1: Back to menu
A2: Municiple | G2: Miniflex - Local Authority
J4: Active energy charge [c/kWh] | V4: Network capacity charge [R/kVA/m]
H5: Transmission zone | J5: High demand season [Jun - Aug] | P5: Low demand season [Sep - May]
I6: Voltage | J6: Peak | L6: Standard | N6: Off Peak | P6: Peak | R6: Standard | T6: Off Peak
A7: Tariff | B7: Tariff nameBillcode | C7: Tx zone | D7: Voltage | E7: Billcode | K7: VAT incl | M7: VAT incl | O7: VAT incl | Q7: VAT incl | S7: VAT incl | U7: VAT incl | W7: VAT incl
A8: Miniflex | B8: Mi | C8: 0 | D8: 1 | E8: Mi01Y | H8: ≤ 300km | I8: < 500V | J8: 371.05 | K8: =ROUND(J8 * (1 + VAT), 2) -> 426.71 | L8: 112.91 | M8: =ROUND(L8 * (1 + VAT), 2) -> 129.85 | N8: 61.61 | O8: =ROUND(N8 * (1 + VAT), 2) -> 70.85 | P8: 121.48 | Q8: =ROUND(P8 * (1 + VAT), 2) -> 139.7 | R8: 83.84 | S8: =ROUND(R8 * (1 + VAT), 2) -> 96.42 | T8: 53.44 | U8: =ROUND(T8 * (1 + VAT), 2) -> 61.46 | V8: 30.94 | W8: =ROUND(V8 * (1 + VAT), 2) -> 35.58
A9: Miniflex | B9: Mi | C9: 0 | D9: 2 | E9: Mi02Y | I9: ≥ 500V & < 66kV | J9: 365.2 | K9: 419.98 | L9: 110.65 | M9: 127.25 | N9: 60.09 | O9: 69.1 | P9: 119.13 | Q9: 137 | R9: 81.99 | S9: 94.29 | T9: 52.03 | U9: 59.83 | V9: 28.34 | W9: 32.59
A10: Miniflex | B10: Mi | C10: 0 | D10: 3 | E10: Mi03Y | I10: ≥ 66kV & ≤ 132kV | J10: 353.68 | K10: 406.73 | L10: 107.14 | M10: 123.21 | N10: 58.19 | O10: 66.92 | P10: 115.38 | Q10: 132.69 | R10: 79.42 | S10: 91.33 | T10: 50.37 | U10: 57.93 | V10: 15.92 | W10: 18.31
A11: Miniflex | B11: Mi | C11: 0 | D11: 4 | E11: Mi04Y | I11: > 132kV* | J11: 333.32 | K11: 383.32 | L11: 100.98 | M11: 116.13 | N11: 54.83 | O11: 63.05 | P11: 108.73 | Q11: 125.04 | R11: 74.83 | S11: 86.05 | T11: 47.47 | U11: 54.59 | V11: 11.62 | W11: 13.36
A12: Miniflex | B12: Mi | C12: 1 | D12: 1 | E12: Mi11Y | H12: > 300km and ≤ 600km | I12: < 500V | J12: 374.08 | K12: 430.19 | L12: 113.32 | M12: 130.32 | N12: 61.53 | O12: 70.76 | P12: 122.03 | Q12: 140.33 | R12: 84.01 | S12: 96.61 | T12: 53.29 | U12: 61.28 | V12: 31 | W12: 35.65
A13: Miniflex | B13: Mi | C13: 1 | D13: 2 | E13: Mi12Y | I13: ≥ 500V & < 66kV | J13: 368.85 | K13: 424.18 | L13: 111.74 | M13: 128.5 | N13: 60.68 | O13: 69.78 | P13: 120.34 | Q13: 138.39 | R13: 82.82 | S13: 95.24 | T13: 52.53 | U13: 60.41 | V13: 28.45 | W13: 32.72
A14: Miniflex | B14: Mi | C14: 1 | D14: 3 | E14: Mi13Y | I14: ≥ 66kV & ≤ 132kV | J14: 357.14 | K14: 410.71 | L14: 108.18 | M14: 124.41 | N14: 58.74 | O14: 67.55 | P14: 116.5 | Q14: 133.98 | R14: 80.18 | S14: 92.21 | T14: 50.85 | U14: 58.48 | V14: 16 | W14: 18.4
A15: Miniflex | B15: Mi | C15: 1 | D15: 4 | E15: Mi14Y | I15: > 132kV* | J15: 336.65 | K15: 387.15 | L15: 102 | M15: 117.3 | N15: 55.37 | O15: 63.68 | P15: 109.8 | Q15: 126.27 | R15: 75.59 | S15: 86.93 | T15: 47.94 | U15: 55.13 | V15: 11.73 | W15: 13.49
A16: Miniflex | B16: Mi | C16: 2 | D16: 1 | E16: Mi21Y | H16: > 600km and ≤ 900km | I16: < 500V | J16: 377.81 | K16: 434.48 | L16: 114.46 | M16: 131.63 | N16: 62.14 | O16: 71.46 | P16: 123.23 | Q16: 141.71 | R16: 84.84 | S16: 97.57 | T16: 53.82 | U16: 61.89 | V16: 31.16 | W16: 35.83
A17: Miniflex | B17: Mi | C17: 2 | D17: 2 | E17: Mi22Y | I17: ≥ 500V & < 66kV | J17: 372.57 | K17: 428.46 | L17: 112.85 | M17: 129.78 | N17: 61.29 | O17: 70.48 | P17: 121.56 | Q17: 139.79 | R17: 83.61 | S17: 96.15 | T17: 53.07 | U17: 61.03 | V17: 28.52 | W17: 32.8
A18: Miniflex | B18: Mi | C18: 2 | D18: 3 | E18: Mi23Y | I18: ≥ 66kV & ≤ 132kV | J18: 360.78 | K18: 414.9 | L18: 109.27 | M18: 125.66 | N18: 59.33 | O18: 68.23 | P18: 117.65 | Q18: 135.3 | R18: 80.98 | S18: 93.13 | T18: 51.35 | U18: 59.05 | V18: 16.08 | W18: 18.49
A19: Miniflex | B19: Mi | C19: 2 | D19: 4 | E19: Mi24Y | I19: > 132kV* | J19: 340.02 | K19: 391.02 | L19: 103.02 | M19: 118.47 | N19: 55.93 | O19: 64.32 | P19: 110.93 | Q19: 127.57 | R19: 76.34 | S19: 87.79 | T19: 48.43 | U19: 55.69 | V19: 11.89 | W19: 13.67
A20: Miniflex | B20: Mi | C20: 3 | D20: 1 | E20: Mi31Y | H20: > 900km | I20: < 500V | J20: 381.6 | K20: 438.84 | L20: 115.61 | M20: 132.95 | N20: 62.78 | O20: 72.2 | P20: 124.49 | Q20: 143.16 | R20: 85.67 | S20: 98.52 | T20: 54.36 | U20: 62.51 | V20: 31.18 | W20: 35.86
A21: Miniflex | B21: Mi | C21: 3 | D21: 2 | E21: Mi32Y | I21: ≥ 500V & < 66kV | J21: 376.29 | K21: 432.73 | L21: 113.98 | M21: 131.08 | N21: 61.91 | O21: 71.2 | P21: 122.73 | Q21: 141.14 | R21: 84.47 | S21: 97.14 | T21: 53.57 | U21: 61.61 | V21: 28.64 | W21: 32.94
A22: Miniflex | B22: Mi | C22: 3 | D22: 3 | E22: Mi33Y | I22: ≥ 66kV & ≤ 132kV | J22: 364.41 | K22: 419.07 | L22: 110.4 | M22: 126.96 | N22: 59.95 | O22: 68.94 | P22: 118.86 | Q22: 136.69 | R22: 81.79 | S22: 94.06 | T22: 51.89 | U22: 59.67 | V22: 16.13 | W22: 18.55
A23: Miniflex | B23: Mi | C23: 3 | D23: 4 | E23: Mi34Y | I23: > 132kV* | J23: 343.37 | K23: 394.88 | L23: 104.07 | M23: 119.68 | N23: 56.55 | O23: 65.03 | P23: 112.06 | Q23: 128.87 | R23: 77.14 | S23: 88.71 | T23: 48.96 | U23: 56.3 | V23: 11.97 | W23: 13.77
I24: * 132 kV or Transmission connected
H26: Customer categories | J26: Service charge [R/account/day] | L26: Administration charge [R/POD/day]
A28: Tariff | B28: Tariff nameBillcode | C28: Tx zone | D28: Voltage | E28: Billcode | K28: VAT incl | M28: VAT incl | P28: Ancillary service charge [c/kWh] | R28: Network demand charge [c/kWh] [Peak & Standard] | U28: Urban low voltage subsidy charge [R/kVA/m]
A29: Miniflex | B29: Mi | C29: 0 | D29: 1 | E29: Mi01Y | H29: ≤ 100 kVA | J29: 16.74 | K29: =ROUND(J29 * (1 + VAT), 2) -> 19.25 | L29: 3.67 | M29: =ROUND(L29 * (1 + VAT), 2) -> 4.22 | O29: Voltage | Q29: VAT incl | S29: VAT incl | W29: VAT incl
A30: Miniflex | B30: Mi | C30: 0 | D30: 1 | E30: Mi01Y | H30: > 100 kVA & ≤ 500 kVA | J30: 76.5 | K30: =ROUND(J30 * (1 + VAT), 2) -> 87.98 | L30: 21.43 | M30: =ROUND(L30 * (1 + VAT), 2) -> 24.64 | O30: < 500V | P30: 0.48 | Q30: =ROUND(P30 * (1 + VAT), 2) -> 0.55 | R30: 19.14 | S30: =ROUND(R30 * (1 + VAT), 2) -> 22.01 | U30: < 500V | V30: 0 | W30: =ROUND(V30 * (1 + VAT), 2) -> 0
A31: Miniflex | B31: Mi | C31: 0 | D31: 1 | E31: Mi01Y | H31: > 500 kVA & ≤ 1 MVA | J31: 235.44 | K31: =ROUND(J31 * (1 + VAT), 2) -> 270.76 | L31: 42.62 | M31: =ROUND(L31 * (1 + VAT), 2) -> 49.01 | O31: ≥ 500V & < 66kV | P31: 0.47 | Q31: =ROUND(P31 * (1 + VAT), 2) -> 0.54 | R31: 8.04 | S31: =ROUND(R31 * (1 + VAT), 2) -> 9.25 | U31: ≥ 500V & < 66kV | V31: 0 | W31: =ROUND(V31 * (1 + VAT), 2) -> 0
A32: Miniflex | B32: Mi | C32: 0 | D32: 1 | E32: Mi01Y | H32: > 1 MVA | J32: 235.44 | K32: =ROUND(J32 * (1 + VAT), 2) -> 270.76 | L32: 106.13 | M32: =ROUND(L32 * (1 + VAT), 2) -> 122.05 | O32: ≥ 66kV & ≤ 132kV | P32: 0.43 | Q32: =ROUND(P32 * (1 + VAT), 2) -> 0.49 | R32: 2.78 | S32: =ROUND(R32 * (1 + VAT), 2) -> 3.2 | U32: ≥ 66kV & ≤ 132kV | V32: 16.55 | W32: =ROUND(V32 * (1 + VAT), 2) -> 19.03
A33: Miniflex | B33: Mi | C33: 0 | D33: 1 | E33: Mi01Y | H33: Key customers | J33: 4613.69 | K33: =ROUND(J33 * (1 + VAT), 2) -> 5305.74 | L33: 147.34 | M33: =ROUND(L33 * (1 + VAT), 2) -> 169.44 | O33: > 132kV* | P33: 0.41 | Q33: =ROUND(P33 * (1 + VAT), 2) -> 0.47 | R33: 0 | S33: =ROUND(R33 * (1 + VAT), 2) -> 0 | U33: > 132kV* | V33: 16.55 | W33: =ROUND(V33 * (1 + VAT), 2) -> 19.03
O34: * 132 kV or Transmission connected | U34: * 132 kV or Transmission connected
H36: Electrification and rural network subsidy charge [c/kWh] | L36: Reactive energy charge [c/kVArh]
L38: High season | N38: Low season
A39: Tariff | B39: Tariff nameBillcode | C39: Tx zone | D39: Voltage | E39: Billcode | I39: VAT incl | M39: VAT incl | O39: VAT incl
A40: Miniflex | B40: Mi | C40: 0 | D40: 1 | E40: Mi01Y | H40: 9.17 | I40: =ROUND(H40 * (1 + VAT), 2) -> 10.55 | L40: 7.26 | M40: =ROUND(L40 * (1 + VAT), 2) -> 8.35 | N40: 0 | O40: =ROUND(N40 * (1 + VAT), 2) -> 0
A42: Miniflex | B42: Mi | C42: 0 | D42: 1 | E42: Mi01Y
A43: Miniflex | B43: Mi | C43: 1 | D43: 2 | E43: Mi12Y
A44: Miniflex | B44: Mi | C44: 2 | D44: 3 | E44: Mi23Y
A45: Miniflex | B45: Mi | C45: 3 | D45: 4 | E45: Mi34Y

Sheet Businessrate NLA
H1: Back to menu
A2: Non-municipal | G2: Businessrate - Non-local Authority
J4: Energy charge [c/kWh] | L4: Ancillary service charge [c/kWh] | N4: Network demand charge [c/kWh] | P4: Network capacity charge [R/POD/day] | R4: Service and administration charge [R/POD/day] | Z4: Electrification and rural network subsidy charge [c/kWh] | AB4: Affordability subsidy charge [c/kWh] payable by non-local authority tariffs
Z6: All seasons | AB6: All seasons
A7: Tariff | B7: Tariff nameBillcode | C7: Tx zone | D7: Voltage | E7: Billcode | K7: VAT incl | M7: VAT incl | O7: VAT incl | Q7: VAT incl | S7: VAT incl | AA7: VAT incl | AC7: VAT incl
A8: Businessrate 1 | B8: B1 | C8: 0 | D8: 1 | E8: =B8&C8&D8&IF($A$2="Non-municipal","N",IF($A$2="Municiple","Y","error")) -> B101N | H8: Businessrate 1 | J8: 124.19 | K8: =ROUND(J8 * (1 + VAT), 2) -> 142.82 | L8: 0.48 | M8: =ROUND(L8 * (1 + VAT), 2) -> 0.55 | N8: 17.53 | O8: =ROUND(N8 * (1 + VAT), 2) -> 20.16 | P8: 25.18 | Q8: =ROUND(P8 * (1 + VAT), 2) -> 28.96 | R8: 21.75 | S8: =ROUND(R8 * (1 + VAT), 2) -> 25.01 | Z8: 0 | AA8: =ROUND(Z8 * (1 + VAT), 2) -> 0 | AB8: 0 | AC8: =ROUND(AB8 * (1 + VAT), 2) -> 0
A9: Businessrate 2 | B9: B2 | C9: 0 | D9: 1 | E9: =B9&C9&D9&IF($A$2="Non-municipal","N",IF($A$2="Municiple","Y","error")) -> B201N | H9: Businessrate 2 | J9: 124.19 | K9: =ROUND(J9 * (1 + VAT), 2) -> 142.82 | L9: 0.48 | M9: =ROUND(L9 * (1 + VAT), 2) -> 0.55 | N9: 17.53 | O9: =ROUND(N9 * (1 + VAT), 2) -> 20.16 | P9: 42.42 | Q9: =ROUND(P9 * (1 + VAT), 2) -> 48.78 | R9: 21.75 | S9: =ROUND(R9 * (1 + VAT), 2) -> 25.01 | Z9: =Z8 -> 0 | AA9: =ROUND(Z9 * (1 + VAT), 2) -> 0 | AB9: =AB8 -> 0 | AC9: =ROUND(AB9 * (1 + VAT), 2) -> 0
A10: Businessrate 3 | B10: B3 | C10: 0 | D10: 1 | E10: =B10&C10&D10&IF($A$2="Non-municipal","N",IF($A$2="Municiple","Y","error")) -> B301N | H10: Businessrate 3 | J10: 124.19 | K10: =ROUND(J10 * (1 + VAT), 2) -> 142.82 | L10: 0.48 | M10: =ROUND(L10 * (1 + VAT), 2) -> 0.55 | N10: 17.53 | O10: =ROUND(N10 * (1 + VAT), 2) -> 20.16 | P10: 73.29 | Q10: =ROUND(P10 * (1 + VAT), 2) -> 84.28 | R10: 21.75 | S10: =ROUND(R10 * (1 + VAT), 2) -> 25.01 | Z10: =Z8 -> 0 | AA10: =ROUND(Z10 * (1 + VAT), 2) -> 0 | AB10: =AB8 -> 0 | AC10: =ROUND(AB10 * (1 + VAT), 2) -> 0
A11: Businessrate 4 | B11: B4 | C11: 0 | D11: 1 | E11: =B11&C11&D11&IF($A$2="Non-municipal","N",IF($A$2="Municiple","Y","error")) -> B401N | H11: Businessrate 4 | J11: 334.21 | K11: =ROUND(J11 * (1 + VAT), 2) -> 384.34 | L11: 0.48 | M11: =ROUND(L11 * (1 + VAT), 2) -> 0.55 | N11: 17.53 | O11: =ROUND(N11 * (1 + VAT), 2) -> 20.16 | Z11: =Z9 -> 0 | AA11: =ROUND(Z11 * (1 + VAT), 2) -> 0 | AB11: =AB9 -> 0 | AC11: =ROUND(AB11 * (1 + VAT), 2) -> 0

Sheet Businessrate Munic
H1: Back to menu
A2: Municiple | G2: Businessrate - Local Authority
J4: Energy charge [c/kWh] | L4: Ancillary service charge [c/kWh] | N4: Network demand charge [c/kWh] | P4: Network capacity charge [R/POD/day] | R4: Service and administration charge [R/POD/day] | Z4: Electrification and rural network subsidy charge [c/kWh] | AB4: Affordability subsidy charge [c/kWh] payable by non-local authority tariffs
Z6: All seasons | AB6: All seasons
A7: Tariff | B7: Tariff nameBillcode | C7: Tx zone | D7: Voltage | E7: Billcode | K7: VAT incl | M7: VAT incl | O7: VAT incl | Q7: VAT incl | S7: VAT incl | AA7: VAT incl | AC7: VAT incl
A8: Businessrate 1 | B8: B1 | C8: 0 | D8: 1 | E8: =B8&C8&D8&IF($A$2="Non-municipal","N",IF($A$2="Municiple","Y","error")) -> B101Y | H8: Businessrate 1 | J8: 127.04 | K8: =ROUND(J8 * (1 + VAT), 2) -> 146.1 | L8: 0.48 | M8: =ROUND(L8 * (1 + VAT), 2) -> 0.55 | N8: 17.61 | O8: =ROUND(N8 * (1 + VAT), 2) -> 20.25 | P8: 25.25 | Q8: =ROUND(P8 * (1 + VAT), 2) -> 29.04 | R8: 21.62 | S8: =ROUND(R8 * (1 + VAT), 2) -> 24.86 | Z8: 0 | AA8: =ROUND(Z8 * (1 + VAT), 2) -> 0 | AB8: 0 | AC8: =ROUND(AB8 * (1 + VAT), 2) -> 0
A9: Businessrate 2 | B9: B2 | C9: 0 | D9: 1 | E9: =B9&C9&D9&IF($A$2="Non-municipal","N",IF($A$2="Municiple","Y","error")) -> B201Y | H9: Businessrate 2 | J9: 127.04 | K9: =ROUND(J9 * (1 + VAT), 2) -> 146.1 | L9: 0.48 | M9: =ROUND(L9 * (1 + VAT), 2) -> 0.55 | N9: 17.61 | O9: =ROUND(N9 * (1 + VAT), 2) -> 20.25 | P9: 42.58 | Q9: =ROUND(P9 * (1 + VAT), 2) -> 48.97 | R9: 21.62 | S9: =ROUND(R9 * (1 + VAT), 2) -> 24.86 | Z9: =Z8 -> 0 | AA9: =ROUND(Z9 * (1 + VAT), 2) -> 0 | AB9: =AB8 -> 0 | AC9: =ROUND(AB9 * (1 + VAT), 2) -> 0
A10: Businessrate 3 | B10: B3 | C10: 0 | D10: 1 | E10: =B10&C10&D10&IF($A$2="Non-municipal","N",IF($A$2="Municiple","Y","error")) -> B301Y | H10: Businessrate 3 | J10: 127.04 | K10: =ROUND(J10 * (1 + VAT), 2) -> 146.1 | L10: 0.48 | M10: =ROUND(L10 * (1 + VAT), 2) -> 0.55 | N10: 17.61 | O10: =ROUND(N10 * (1 + VAT), 2) -> 20.25 | P10: 73.58 | Q10: =ROUND(P10 * (1 + VAT), 2) -> 84.62 | R10: 21.62 | S10: =ROUND(R10 * (1 + VAT), 2) -> 24.86 | Z10: =Z8 -> 0 | AA10: =ROUND(Z10 * (1 + VAT), 2) -> 0 | AB10: =AB8 -> 0 | AC10: =ROUND(AB10 * (1 + VAT), 2) -> 0
A11: Businessrate 4 | B11: B4 | C11: 0 | D11: 1 | E11: =B11&C11&D11&IF($A$2="Non-municipal","N",IF($A$2="Municiple","Y","error")) -> B401Y | H11: Businessrate 4 | J11: 341.87 | K11: =ROUND(J11 * (1 + VAT), 2) -> 393.15 | L11: 0.48 | M11: =ROUND(L11 * (1 + VAT), 2) -> 0.55 | N11: 17.61 | O11: =ROUND(N11 * (1 + VAT), 2) -> 20.25 | Z11: =Z9 -> 0 | AA11: =ROUND(Z11 * (1 + VAT), 2) -> 0 | AB11: =AB9 -> 0 | AC11: =ROUND(AB11 * (1 + VAT), 2) -> 0

Sheet Public Lighting NLA
H1: Back to menu
A2: Non-municipal | G2: Public Lighting - Non-local Authority
K4: All Night | M4: 24 Hours
A5: Tariff | B5: Tariff nameBillcode | C5: Tx zone | D5: Voltage | E5: Billcode | L5: VAT incl | N5: VAT incl
A6: Public lighting 24 hours | B6: Pu | C6: 0 | D6: 1 | E6: =B6&C6&D6&IF($A$2="Non-municipal","N",IF($A$2="Municiple","Y","error")) -> Pu01N | H6: Public Lighting | I6: Energy charge [c/kWh] | K6: 98.83 | L6: =ROUND(K6 * (1 + VAT), 2) -> 113.65 | M6: 132.33 | N6: =ROUND(M6 * (1 + VAT), 2) -> 152.18
A7: Public lighting All Night | B7: Pa | C7: 0 | D7: 1 | E7: =B7&C7&D7&IF($A$2="Non-municipal","N",IF($A$2="Municiple","Y","error")) -> Pa01N | I7: Energy charge [R/100W/month] | K7: 30.92 | L7: =ROUND(K7 * (1 + VAT), 2) -> 35.56 | M7: 89.13 | N7: =ROUND(M7 * (1 + VAT), 2) -> 102.5
A9: Public lighting Urban fixed | B9: Pt | C9: 0 | D9: 1 | E9: =B9&C9&D9&IF($A$2="Non-municipal","N",IF($A$2="Municiple","Y","error")) -> Pt01N | H9: Public Lighting - Urban Fixed | I9: Fixed charge [R/POD/day] | K9: 6.5 | L9: =ROUND(K9 * (1 + VAT), 2) -> 7.48
H11: Maintenance charges | K11: R/month
L12: VAT incl
A13: Public Lighting - Maintenance charge - per lumanaire | B13: Plu | C13: 0 | D13: 1 | E13: =B13&C13&D13&IF($A$2="Non-municipal","N",IF($A$2="Municiple","Y","error")) -> Plu01N | J13: Per lumanaire | K13: 52.41 | L13: =ROUND(K13 * (1 + VAT), 2) -> 60.27
A14: Public Lighting - Maintenance charge - per high-mast lumanaire | B14: Plhm | C14: 0 | D14: 1 | E14: =B14&C14&D14&IF($A$2="Non-municipal","N",IF($A$2="Municiple","Y","error")) -> Plhm01N | J14: Per high-mast lumanaire | K14: 1219.96 | L14: =ROUND(K14 * (1 + VAT), 2) -> 1402.95

Sheet Public Lighting Munic
H1: Back to menu
A2: Municipal | G2: Public Lighting - Local Authority | AB2: =SUM(#REF!) ->  | AC2: check value
K4: All Night | M4: 24 Hours
A5: Tariff | B5: Tariff nameBillcode | C5: Tx zone | D5: Voltage | E5: Billcode | L5: VAT incl | N5: VAT incl
A6: Public lighting 24 hours | B6: Pu | C6: 0 | D6: 1 | E6: =B6&C6&D6&IF($A$2="Non-municipal","N",IF($A$2="Municipal","Y","error")) -> Pu01Y | H6: Public Lighting | I6: Energy charge [c/kWh] | K6: 102.55 | L6: =ROUND(K6 * (1 + VAT), 2) -> 117.93 | M6: 137.31 | N6: =ROUND(M6 * (1 + VAT), 2) -> 157.91
A7: Public lighting All Night | B7: Pa | C7: 0 | D7: 1 | E7: =B7&C7&D7&IF($A$2="Non-municipal","N",IF($A$2="Municipal","Y","error")) -> Pa01Y | I7: Energy charge [R/100W/month] | K7: 31.32 | L7: =ROUND(K7 * (1 + VAT), 2) -> 36.02 | M7: 90.27 | N7: =ROUND(M7 * (1 + VAT), 2) -> 103.81
A9: Public lighting Urban fixed | B9: Pt | C9: 0 | D9: 1 | E9: =B9&C9&D9&IF($A$2="Non-municipal","N",IF($A$2="Municipal","Y","error")) -> Pt01Y | H9: Public Lighting - Urban Fixed | I9: Fixed charge [R/POD/day] | K9: 6.743006309 | L9: =ROUND(K9 * (1 + VAT), 2) -> 7.75
H11: Maintenance charges | K11: R/month
L12: VAT incl
A13: Public Lighting - Maintenance charge - per lumanaire | B13: Plu | C13: 0 | D13: 1 | E13: =B13&C13&D13&IF($A$2="Non-municipal","N",IF($A$2="Municipal","Y","error")) -> Plu01Y | J13: Per lumanaire | K13: 54.11051625 | L13: =ROUND(K13 * (1 + VAT), 2) -> 62.23
A14: Public Lighting - Maintenance charge - per high-mast lumanaire | B14: Plhm | C14: 0 | D14: 1 | E14: =B14&C14&D14&IF($A$2="Non-municipal","N",IF($A$2="Municipal","Y","error")) -> Plhm01Y | J14: Per high-mast lumanaire | K14: 1263.71 | L14: =ROUND(K14 * (1 + VAT), 2) -> 1453.27

Sheet Homepower NLA
H1: Back to menu
A2: Non-municipal | G2: Homepower - Non-local Authority
J5: Energy charge [c/kWh] | N5: Network capacity charge [R/POD/day]
A6: Tariff | B6: Tariff nameBillcode | C6: Tx zone | D6: Voltage | E6: Billcode | J6: Block 1 [>0 - 600 kWh] | K6: VAT incl | L6: Block 2 [>600 kWh] | M6: VAT incl | O6: VAT incl
A7: Homepower 1 | B7: H1 | C7: 0 | D7: 1 | E7: =B7&C7&D7&IF($A$2="Non-municipal","N",IF($A$2="Municiple","Y","error")) -> H101N | H7: Homepower 1 | J7: 145.55 | K7: =ROUND(J7 * (1 + VAT), 2) -> 167.38 | L7: 229.83 | M7: =ROUND(L7 * (1 + VAT), 2) -> 264.3 | N7: 6.23 | O7: =ROUND(N7 * (1 + VAT), 2) -> 7.16
A8: Homepower 2 | B8: H2 | C8: 0 | D8: 1 | E8: =B8&C8&D8&IF($A$2="Non-municipal","N",IF($A$2="Municiple","Y","error")) -> H201N | H8: Homepower 2 | J8: 145.55 | K8: =ROUND(J8 * (1 + VAT), 2) -> 167.38 | L8: 224.09 | M8: =ROUND(L8 * (1 + VAT), 2) -> 257.7 | N8: 11.68 | O8: =ROUND(N8 * (1 + VAT), 2) -> 13.43
A9: Homepower 3 | B9: H3 | C9: 0 | D9: 1 | E9: =B9&C9&D9&IF($A$2="Non-municipal","N",IF($A$2="Municiple","Y","error")) -> H301N | H9: Homepower 3 | J9: 145.55 | K9: =ROUND(J9 * (1 + VAT), 2) -> 167.38 | L9: 224.09 | M9: =ROUND(L9 * (1 + VAT), 2) -> 257.7 | N9: 24.12 | O9: =ROUND(N9 * (1 + VAT), 2) -> 27.74
A10: Homepower 4 | B10: H4 | C10: 0 | D10: 1 | E10: =B10&C10&D10&IF($A$2="Non-municipal","N",IF($A$2="Municiple","Y","error")) -> H401N | H10: Homepower 4 | J10: 145.55 | K10: =ROUND(J10 * (1 + VAT), 2) -> 167.38 | L10: 234.06 | M10: =ROUND(L10 * (1 + VAT), 2) -> 269.17 | N10: 3.81 | O10: =ROUND(N10 * (1 + VAT), 2) -> 4.38
J12: Energy charge [c/kWh] | L12: Network capacity charge [R/kVA]
K13: VAT incl | M13: VAT incl
A14: Homepower Bulk < 500V | B14: HB | C14: 0 | D14: 1 | E14: =B14&C14&D14&IF($A$2="Non-municipal","N",IF($A$2="Municiple","Y","error")) -> HB01N | H14: Homepower Bulk | J14: 191.1 | K14: =ROUND(J14 * (1 + VAT), 2) -> 219.77 | L14: 39.55 | M14: =ROUND(L14 * (1 + VAT), 2) -> 45.48
H15: * The Network capacity charge is based on the NMD or on the maximum demand if measured.

Sheet Homepower Munic
H1: Back to menu
A2: Municiple | G2: Homepower - Local Authority
J4: Energy charge [c/kWh] | L4: Energy charge [c/kWh] | N4: Network capacity charge [R/POD/day]
A5: Tariff | B5: Tariff nameBillcode | C5: Tx zone | D5: Voltage | E5: Billcode | J5: Block 1 [>0 - 600 kWh] | K5: VAT incl | L5: Block 2 [>600 kWh] | M5: VAT incl | O5: VAT incl
A6: Homepower 1 | B6: H1 | C6: 0 | D6: 1 | E6: =B6&C6&D6&IF($A$2="Non-municipal","N",IF($A$2="Municiple","Y","error")) -> H101Y | H6: Homepower 1 | J6: 145.43 | K6: =ROUND(J6 * (1 + VAT), 2) -> 167.24 | L6: 229.63 | M6: =ROUND(L6 * (1 + VAT), 2) -> 264.07 | N6: 6.22 | O6: =ROUND(N6 * (1 + VAT), 2) -> 7.15
A7: Homepower 2 | B7: H2 | C7: 0 | D7: 1 | E7: =B7&C7&D7&IF($A$2="Non-municipal","N",IF($A$2="Municiple","Y","error")) -> H201Y | H7: Homepower 2 | J7: 145.43 | K7: =ROUND(J7 * (1 + VAT), 2) -> 167.24 | L7: 223.87 | M7: =ROUND(L7 * (1 + VAT), 2) -> 257.45 | N7: 11.67 | O7: =ROUND(N7 * (1 + VAT), 2) -> 13.42
A8: Homepower 3 | B8: H3 | C8: 0 | D8: 1 | E8: =B8&C8&D8&IF($A$2="Non-municipal","N",IF($A$2="Municiple","Y","error")) -> H301Y | H8: Homepower 3 | J8: 145.43 | K8: =ROUND(J8 * (1 + VAT), 2) -> 167.24 | L8: 223.87 | M8: =ROUND(L8 * (1 + VAT), 2) -> 257.45 | N8: 24.11 | O8: =ROUND(N8 * (1 + VAT), 2) -> 27.73
A9: Homepower 4 | B9: H4 | C9: 0 | D9: 1 | E9: =B9&C9&D9&IF($A$2="Non-municipal","N",IF($A$2="Municiple","Y","error")) -> H401Y | H9: Homepower 4 | J9: 145.43 | K9: =ROUND(J9 * (1 + VAT), 2) -> 167.24 | L9: 233.85 | M9: =ROUND(L9 * (1 + VAT), 2) -> 268.93 | N9: 3.81 | O9: =ROUND(N9 * (1 + VAT), 2) -> 4.38

Sheet Homelight NLA
H1: Back to menu
A2: Non-municipal | G2: Homelight - Non-local Authority
H4: Homelight 60A | J4: Energy charge [c/kWh]
A5: Tariff | B5: Tariff nameBillcode | C5: Tx zone | D5: Voltage | E5: Billcode | K5: VAT incl
A6: Homelight 1 60A | B6: HL16 | C6: 0 | D6: 1 | E6: =B6&C6&D6&IF($A$2="Non-municipal","N",IF($A$2="Municiple","Y","error")) -> HL1601N | H6: Block 1 [> 0 - 600 kWh] | J6: 137.7 | K6: =ROUND(J6 * (1 + VAT), 2) -> 158.36
A7: Homelight 2 60A | B7: HL26 | C7: 0 | D7: 1 | E7: =B7&C7&D7&IF($A$2="Non-municipal","N",IF($A$2="Municiple","Y","error")) -> HL2601N | H7: Block 2 [>600 kWh] | J7: 234.06 | K7: =ROUND(J7 * (1 + VAT), 2) -> 269.17
H10: Homelight 20A | J10: Energy charge [c/kWh]
K11: VAT incl
A12: Homelight 1 20A | B12: HL12 | C12: 0 | D12: 1 | E12: =B12&C12&D12&IF($A$2="Non-municipal","N",IF($A$2="Municiple","Y","error")) -> HL1201N | H12: Block 1 [> 0 - 350 kWh] | J12: 121.67 | K12: =ROUND(J12 * (1 + VAT), 2) -> 139.92
A13: Homelight 2 20A | B13: HL22 | C13: 0 | D13: 1 | E13: =B13&C13&D13&IF($A$2="Non-municipal","N",IF($A$2="Municiple","Y","error")) -> HL2201N | H13: Block 2 [>350 kWh] | J13: 137.86 | K13: =ROUND(J13 * (1 + VAT), 2) -> 158.54

Sheet Nightsave Rural NLA
G1: Back to menu
A2: Non-municipal | G2: Nightsave Rural - Non-local Authority | AF2: =SUM(#REF!,#REF!,#REF!,#REF!,#REF!,#REF!,#REF!,#REF!,#REF!,#REF!,#REF!,#REF!,#REF!,#REF!,#REF!) ->  | AG2: check value
J4: Active energy charge [c/kWh] | N4: Energy demand charges [R/kVA/m] | R4: Network capacity charges [R/kVA/m]
H5: Transmission zone | J5: High demand season [Jun - Aug] | L5: Low demand season [Sep - May] | N5: High demand season [Jun - Aug] | P5: Low demand season [Sep - May]
I6: Voltage
A7: Tariff | B7: Tariff nameBillcode | C7: Tx zone | D7: Voltage | E7: Billcode | K7: VAT incl | M7: VAT incl | O7: VAT incl | Q7: VAT incl | S7: VAT incl
A8: Nightsave Rural | B8: NR | C8: 0 | D8: 1 | E8: =B8&C8&D8&IF($A$2="Non-municipal","N",IF($A$2="Municiple","Y","error")) -> NR01N | H8: ≤ 300km | I8: < 500V | J8: 91.61 | K8: =ROUND(J8 * (1 + VAT), 2) -> 105.35 | L8: 71.18 | M8: =ROUND(L8 * (1 + VAT), 2) -> 81.86 | N8: 306.95 | O8: =ROUND(N8 * (1 + VAT), 2) -> 352.99 | P8: 162.45 | Q8: =ROUND(P8 * (1 + VAT), 2) -> 186.82 | R8: 15.52 | S8: =ROUND(R8 * (1 + VAT), 2) -> 17.85
A9: Nightsave Rural | B9: NR | C9: 0 | D9: 2 | E9: =B9&C9&D9&IF($A$2="Non-municipal","N",IF($A$2="Municiple","Y","error")) -> NR02N | I9: ≥ 500V & ≤ 22kV | J9: 90.53 | K9: 104.11 | L9: 70.38 | M9: 80.94 | N9: 297.44 | O9: 342.06 | P9: 156.69 | Q9: 180.19 | R9: 14.26 | S9: 16.4
A10: Nightsave Rural | B10: NR | E10: NRN | J10: 0 | L10: 0 | N10: 0 | O10: 0 | P10: 0 | Q10: 0 | R10: 0
A11: Nightsave Rural | B11: NR | E11: NRN | J11: 0 | L11: 0 | N11: 0 | O11: 0 | P11: 0 | Q11: 0 | R11: 0
A12: Nightsave Rural | B12: NR | C12: 1 | D12: 1 | E12: NR11N | H12: > 300km and ≤ 600km | I12: < 500V | J12: 92.51 | K12: 106.39 | L12: 71.9 | M12: 82.69 | N12: 310.65 | O12: 357.25 | P12: 164.72 | Q12: 189.43 | R12: 15.55 | S12: 17.88
A13: Nightsave Rural | B13: NR | C13: 1 | D13: 2 | E13: NR12N | I13: ≥ 500V & ≤ 22kV | J13: 91.46 | K13: 105.18 | L13: 71.09 | M13: 81.75 | N13: 301.07 | O13: 346.23 | P13: 158.87 | Q13: 182.7 | R13: 14.31 | S13: 16.46
A14: Nightsave Rural | B14: NR | E14: NRN | J14: 0 | L14: 0 | N14: 0 | O14: 0 | P14: 0 | Q14: 0 | R14: 0
A15: Nightsave Rural | B15: NR | E15: NRN | J15: 0 | L15: 0 | N15: 0 | O15: 0 | P15: 0 | Q15: 0 | R15: 0
A16: Nightsave Rural | B16: NR | C16: 2 | D16: 1 | E16: NR21N | H16: > 600km and ≤ 900km | I16: < 500V | J16: 93.44 | K16: 107.46 | L16: 72.6 | M16: 83.49 | N16: 314.38 | O16: 361.54 | P16: 166.94 | Q16: 191.98 | R16: 15.7 | S16: 18.06
A17: Nightsave Rural | B17: NR | C17: 2 | D17: 2 | E17: NR22N | I17: ≥ 500V & ≤ 22kV | J17: 92.36 | K17: 106.21 | L17: 71.8 | M17: 82.57 | N17: 304.68 | O17: 350.38 | P17: 161.06 | Q17: 185.22 | R17: 14.41 | S17: 16.57
A18: Nightsave Rural | B18: NR | E18: NRN | J18: 0 | L18: 0 | N18: 0 | O18: 0 | P18: 0 | Q18: 0 | R18: 0
A19: Nightsave Rural | B19: NR | E19: NRN | J19: 0 | L19: 0 | N19: 0 | O19: 0 | P19: 0 | Q19: 0 | R19: 0
A20: Nightsave Rural | B20: NR | C20: 3 | D20: 1 | E20: NR31N | H20: > 900km | I20: < 500V | J20: 94.37 | K20: 108.53 | L20: 73.33 | M20: 84.33 | N20: 318.2 | O20: =ROUND(N20 * (1 + VAT), 2) -> 365.93 | P20: 169.23 | Q20: =ROUND(P20 * (1 + VAT), 2) -> 194.61 | R20: 15.74 | S20: 18.1
A21: Nightsave Rural | B21: NR | C21: 3 | D21: 2 | E21: NR32N | I21: ≥ 500V & ≤ 22kV | J21: 93.25 | K21: 107.24 | L21: 72.5 | M21: 83.38 | N21: 308.4 | O21: 354.66 | P21: 163.31 | Q21: 187.81 | R21: 14.44 | S21: 16.61
H26: Customer categories | J26: Service charge [R/account/day] | L26: Administration charge [R/POD/day]
A28: Tariff | B28: Tariff nameBillcode | C28: Tx zone | D28: Voltage | E28: Billcode | K28: VAT incl | M28: VAT incl
A29: Nightsave Rural | B29: NR | C29: 0 | D29: 1 | E29: =B29&C29&D29&IF($A$2="Non-municipal","N",IF($A$2="Municiple","Y","error")) -> NR01N | H29: ≤ 100 kVA | J29: 21.34 | K29: =ROUND(J29 * (1 + VAT), 2) -> 24.54 | L29: 6.06 | M29: =ROUND(L29 * (1 + VAT), 2) -> 6.97
A30: Nightsave Rural | B30: NR | C30: 0 | D30: 1 | E30: NR01N | H30: > 100 kVA & ≤ 500 kVA | J30: 72.76 | K30: =ROUND(J30 * (1 + VAT), 2) -> 83.67 | L30: 33.74 | M30: =ROUND(L30 * (1 + VAT), 2) -> 38.8 | P30: Ancillary service charge [c/kWh] | R30: Network demand charge [c/kWh] in all time-of-use periods
A31: Nightsave Rural | B31: NR | C31: 0 | D31: 1 | E31: NR01N | H31: > 500 kVA & ≤ 1 MVA | J31: 223.85 | K31: =ROUND(J31 * (1 + VAT), 2) -> 257.43 | L31: 51.78 | M31: =ROUND(L31 * (1 + VAT), 2) -> 59.55 | O31: Voltage | Q31: VAT incl | S31: VAT incl
A32: Nightsave Rural | B32: NR | C32: 0 | D32: 1 | E32: NR01N | H32: > 1 MVA | J32: 223.85 | K32: =ROUND(J32 * (1 + VAT), 2) -> 257.43 | L32: 96.08 | M32: =ROUND(L32 * (1 + VAT), 2) -> 110.49 | O32: < 500V | P32: 0.48 | Q32: =ROUND(P32 * (1 + VAT), 2) -> 0.55 | R32: 30.88 | S32: =ROUND(R32 * (1 + VAT), 2) -> 35.51
A33: Nightsave Rural | B33: NR | C33: 0 | D33: 1 | E33: NR01N | H33: Key customers | J33: 4387.25 | K33: =ROUND(J33 * (1 + VAT), 2) -> 5045.34 | L33: 96.08 | M33: =ROUND(L33 * (1 + VAT), 2) -> 110.49 | O33: ≥ 500V & ≤ 22kV | P33: 0.48 | Q33: =ROUND(P33 * (1 + VAT), 2) -> 0.55 | R33: 27.07 | S33: =ROUND(R33 * (1 + VAT), 2) -> 31.13
A34: Nightsave Rural | B34: NR | C34: 0 | D34: 2 | E34: NR02N

Sheet Nightsave Rural Munic
G1: Back to menu
A2: Municiple | G2: Nightsave Rural - Local Authority | AF2: =SUM(#REF!,#REF!,#REF!,#REF!,#REF!,#REF!,#REF!,#REF!,#REF!,#REF!,#REF!,#REF!,#REF!,#REF!,#REF!) ->  | AG2: check value
J4: Active energy charge [c/kWh] | N4: Energy demand charges [R/kVA/m] | R4: Network capacity charges [R/kVA/m]
H5: Transmission zone | J5: High demand season [Jun - Aug] | L5: Low demand season [Sep - May] | N5: High demand season [Jun - Aug] | P5: Low demand season [Sep - May]
I6: Voltage
A7: Tariff | B7: Tariff nameBillcode | C7: Tx zone | D7: Voltage | E7: Billcode | K7: VAT incl | M7: VAT incl | O7: VAT incl | Q7: VAT incl | S7: VAT incl
A8: Nightsave Rural | B8: NR | C8: 0 | D8: 1 | E8: =B8&C8&D8&IF($A$2="Non-municipal","N",IF($A$2="Municiple","Y","error")) -> NR01Y | H8: ≤ 300km | I8: < 500V | J8: 93.71 | K8: =ROUND(J8 * (1 + VAT), 2) -> 107.77 | L8: 72.82 | M8: =ROUND(L8 * (1 + VAT), 2) -> 83.74 | N8: 306.66 | O8: =ROUND(N8 * (1 + VAT), 2) -> 352.66 | P8: 162.32 | Q8: =ROUND(P8 * (1 + VAT), 2) -> 186.67 | R8: 15.66 | S8: =ROUND(R8 * (1 + VAT), 2) -> 18.01
A9: Nightsave Rural | B9: NR | C9: 0 | D9: 2 | E9: =B9&C9&D9&IF($A$2="Non-municipal","N",IF($A$2="Municiple","Y","error")) -> NR02Y | I9: ≥ 500V & ≤ 22kV | J9: 92.61 | K9: 106.5 | L9: 72 | M9: 82.8 | N9: 297.17 | O9: 341.75 | P9: 156.52 | Q9: 180 | R9: 14.38 | S9: 16.54
A10: Nightsave Rural | B10: NR | E10: NRY | J10: 0 | L10: 0 | N10: 0 | O10: 0 | P10: 0 | Q10: 0 | R10: 0
A11: Nightsave Rural | B11: NR | E11: NRY | J11: 0 | L11: 0 | N11: 0 | O11: 0 | P11: 0 | Q11: 0 | R11: 0
A12: Nightsave Rural | B12: NR | C12: 1 | D12: 1 | E12: NR11Y | H12: > 300km and ≤ 600km | I12: < 500V | J12: 94.65 | K12: 108.85 | L12: 73.56 | M12: 84.59 | N12: 310.39 | O12: 356.95 | P12: 164.56 | Q12: 189.24 | R12: 15.69 | S12: 18.04
A13: Nightsave Rural | B13: NR | C13: 1 | D13: 2 | E13: NR12Y | I13: ≥ 500V & ≤ 22kV | J13: 93.53 | K13: 107.56 | L13: 72.71 | M13: 83.62 | N13: 300.81 | O13: 345.93 | P13: 158.71 | Q13: 182.52 | R13: 14.44 | S13: 16.61
A14: Nightsave Rural | B14: NR | E14: NRY | J14: 0 | L14: 0 | N14: 0 | O14: 0 | P14: 0 | Q14: 0 | R14: 0
A15: Nightsave Rural | B15: NR | E15: NRY | J15: 0 | L15: 0 | N15: 0 | O15: 0 | P15: 0 | Q15: 0 | R15: 0
A16: Nightsave Rural | B16: NR | C16: 2 | D16: 1 | E16: NR21Y | H16: > 600km and ≤ 900km | I16: < 500V | J16: 95.56 | K16: 109.89 | L16: 74.26 | M16: 85.4 | N16: 314.1 | O16: 361.22 | P16: 166.77 | Q16: 191.79 | R16: 15.84 | S16: 18.22
A17: Nightsave Rural | B17: NR | C17: 2 | D17: 2 | E17: NR22Y | I17: ≥ 500V & ≤ 22kV | J17: 94.45 | K17: 108.62 | L17: 73.44 | M17: 84.46 | N17: 304.42 | O17: 350.08 | P17: 160.92 | Q17: 185.06 | R17: 14.53 | S17: 16.71
A18: Nightsave Rural | B18: NR | E18: NRY | J18: 0 | L18: 0 | N18: 0 | O18: 0 | P18: 0 | Q18: 0 | R18: 0
A19: Nightsave Rural | B19: NR | E19: NRY | J19: 0 | L19: 0 | N19: 0 | O19: 0 | P19: 0 | Q19: 0 | R19: 0
A20: Nightsave Rural | B20: NR | C20: 3 | D20: 1 | E20: NR31Y | H20: > 900km | I20: < 500V | J20: 96.53 | K20: 111.01 | L20: 74.99 | M20: 86.24 | N20: 317.91 | O20: 365.6 | P20: 169.07 | Q20: 194.43 | R20: 15.87 | S20: 18.25
A21: Nightsave Rural | B21: NR | C21: 3 | D21: 2 | E21: NR32Y | I21: ≥ 500V & ≤ 22kV | J21: 95.38 | K21: 109.69 | L21: 74.14 | M21: 85.26 | N21: 308.13 | O21: 354.35 | P21: 163.16 | Q21: 187.63 | R21: 14.54 | S21: 16.72
H26: Customer categories | J26: Service charge [R/account/day] | L26: Administration charge [R/POD/day]
A28: Tariff | B28: Tariff nameBillcode | C28: Tx zone | D28: Voltage | E28: Billcode | K28: VAT incl | M28: VAT incl
A29: Nightsave Rural | B29: NR | C29: 0 | D29: 1 | E29: =B29&C29&D29&IF($A$2="Non-municipal","N",IF($A$2="Municiple","Y","error")) -> NR01Y | H29: ≤ 100 kVA | J29: 21.22 | K29: =ROUND(J29 * (1 + VAT), 2) -> 24.4 | L29: 6.02 | M29: =ROUND(L29 * (1 + VAT), 2) -> 6.92
A30: Nightsave Rural | B30: NR | C30: 0 | D30: 1 | E30: =B30&C30&D30&IF($A$2="Non-municipal","N",IF($A$2="Municiple","Y","error")) -> NR01Y | H30: > 100 kVA & ≤ 500 kVA | J30: 72.37 | K30: =ROUND(J30 * (1 + VAT), 2) -> 83.23 | L30: 33.55 | M30: =ROUND(L30 * (1 + VAT), 2) -> 38.58 | P30: Ancillary service charge [c/kWh] | R30: Network demand charge [c/kWh] in all time-of-use periods
A31: Nightsave Rural | B31: NR | C31: 0 | D31: 1 | E31: =B31&C31&D31&IF($A$2="Non-municipal","N",IF($A$2="Municiple","Y","error")) -> NR01Y | H31: > 500 kVA & ≤ 1 MVA | J31: 222.64 | K31: =ROUND(J31 * (1 + VAT), 2) -> 256.04 | L31: 51.48 | M31: =ROUND(L31 * (1 + VAT), 2) -> 59.2 | O31: Voltage | Q31: VAT incl | S31: VAT incl
A32: Nightsave Rural | B32: NR | C32: 0 | D32: 1 | E32: =B32&C32&D32&IF($A$2="Non-municipal","N",IF($A$2="Municiple","Y","error")) -> NR01Y | H32: > 1 MVA | J32: 222.64 | K32: =ROUND(J32 * (1 + VAT), 2) -> 256.04 | L32: 95.55 | M32: =ROUND(L32 * (1 + VAT), 2) -> 109.88 | O32: < 500V | P32: 0.48 | Q32: =ROUND(P32 * (1 + VAT), 2) -> 0.55 | R32: 31.16 | S32: =ROUND(R32 * (1 + VAT), 2) -> 35.83
A33: Nightsave Rural | B33: NR | C33: 0 | D33: 1 | E33: =B33&C33&D33&IF($A$2="Non-municipal","N",IF($A$2="Municiple","Y","error")) -> NR01Y | H33: Key customers | J33: 4363.11 | K33: =ROUND(J33 * (1 + VAT), 2) -> 5017.58 | L33: 95.55 | M33: =ROUND(L33 * (1 + VAT), 2) -> 109.88 | O33: ≥ 500V & ≤ 22kV | P33: 0.48 | Q33: =ROUND(P33 * (1 + VAT), 2) -> 0.55 | R33: 27.27 | S33: =ROUND(R33 * (1 + VAT), 2) -> 31.36

Sheet Ruraflex NLA
G1: Back to menu
A2: Non-municipal | G2: Ruraflex - Non-local Authority | AF2: =SUM(#REF!,#REF!,#REF!,#REF!,#REF!,#REF!,#REF!,#REF!,#REF!,#REF!,#REF!,#REF!) ->  | AG2: check value
J4: Active energy charge [c/kWh] | V4: Network capacity charges [R/kVA/m]
H5: Transmission zone | J5: High demand season [Jun - Aug] | P5: Low demand season [Sep - May]
I6: Voltage | J6: Peak | L6: Standard | N6: Off Peak | P6: Peak | R6: Standard | T6: Off Peak
A7: Tariff | B7: Tariff nameBillcode | C7: Tx zone | D7: Voltage | E7: Billcode | K7: VAT incl | M7: VAT incl | O7: VAT incl | Q7: VAT incl | S7: VAT incl | U7: VAT incl | W7: VAT incl
A8: Ruraflex | B8: Ru | C8: 0 | D8: 1 | E8: =B8&C8&D8&IF($A$2="Non-municipal","N",IF($A$2="Municiple","Y","error")) -> Ru01N | H8: ≤ 300km | I8: < 500V | J8: 375.58 | K8: =ROUND(J8 * (1 + VAT), 2) -> 431.92 | L8: 113.78 | M8: =ROUND(L8 * (1 + VAT), 2) -> 130.85 | N8: 61.8 | O8: =ROUND(N8 * (1 + VAT), 2) -> 71.07 | P8: 122.52 | Q8: =ROUND(P8 * (1 + VAT), 2) -> 140.9 | R8: 84.31 | S8: =ROUND(R8 * (1 + VAT), 2) -> 96.96 | T8: 53.49 | U8: =ROUND(T8 * (1 + VAT), 2) -> 61.51 | V8: 21.69 | W8: =ROUND(V8 * (1 + VAT), 2) -> 24.94
A9: Ruraflex | B9: Ru | C9: 0 | D9: 2 | E9: =B9&C9&D9&IF($A$2="Non-municipal","N",IF($A$2="Municiple","Y","error")) -> Ru02N | I9: ≥ 500V & ≤ 22kV | J9: 371.87 | K9: 427.65 | L9: 112.66 | M9: 129.56 | N9: 61.17 | O9: 70.35 | P9: 121.32 | Q9: 139.52 | R9: 83.48 | S9: 96 | T9: 52.94 | U9: 60.88 | V9: 19.88 | W9: 22.86
A10: Ruraflex | B10: Ru | E10: RuN | J10: 0 | L10: 0 | N10: 0 | P10: 0 | R10: 0 | T10: 0 | V10: 0
A11: Ruraflex | B11: Ru | E11: RuN | J11: 0 | L11: 0 | N11: 0 | P11: 0 | R11: 0 | T11: 0 | V11: 0
A12: Ruraflex | B12: Ru | C12: 1 | D12: 1 | E12: Ru11N | H12: > 300km and ≤ 600km | I12: < 500V | J12: 379.35 | K12: 436.25 | L12: 114.92 | M12: 132.16 | N12: 62.41 | O12: 71.77 | P12: 123.74 | Q12: 142.3 | R12: 85.17 | S12: 97.95 | T12: 54.04 | U12: 62.15 | V12: 21.75 | W12: 25.01
A13: Ruraflex | B13: Ru | C13: 1 | D13: 2 | E13: Ru12N | I13: ≥ 500V & ≤ 22kV | J13: 375.57 | K13: 431.91 | L13: 113.77 | M13: 130.84 | N13: 61.8 | O13: 71.07 | P13: 122.52 | Q13: 140.9 | R13: 84.3 | S13: 96.95 | T13: 53.49 | U13: 61.51 | V13: 20 | W13: 23
A14: Ruraflex | B14: Ru | E14: RuN | J14: 0 | L14: 0 | N14: 0 | P14: 0 | R14: 0 | T14: 0 | V14: 0
A15: Ruraflex | B15: Ru | E15: RuN | J15: 0 | L15: 0 | N15: 0 | P15: 0 | R15: 0 | T15: 0 | V15: 0
A16: Ruraflex | B16: Ru | C16: 2 | D16: 1 | E16: Ru21N | H16: > 600km and ≤ 900km | I16: < 500V | J16: 383.15 | K16: 440.62 | L16: 116.08 | M16: 133.49 | N16: 63.03 | O16: 72.48 | P16: 124.99 | Q16: 143.74 | R16: 86.01 | S16: 98.91 | T16: 54.58 | U16: 62.77 | V16: 21.87 | W16: 25.15
A17: Ruraflex | B17: Ru | C17: 2 | D17: 2 | E17: Ru22N | I17: ≥ 500V & ≤ 22kV | J17: 379.33 | K17: 436.23 | L17: 114.9 | M17: 132.14 | N17: 62.41 | O17: 71.77 | P17: 123.74 | Q17: 142.3 | R17: 85.17 | S17: 97.95 | T17: 54.04 | U17: 62.15 | V17: 20.09 | W17: 23.1
A18: Ruraflex | B18: Ru | E18: RuN | J18: 0 | L18: 0 | N18: 0 | P18: 0 | R18: 0 | T18: 0 | V18: 0
A19: Ruraflex | B19: Ru | E19: RuN | J19: 0 | L19: 0 | N19: 0 | P19: 0 | R19: 0 | T19: 0 | V19: 0
A20: Ruraflex | B20: Ru | C20: 3 | D20: 1 | E20: Ru31N | H20: > 900km | I20: < 500V | J20: 386.97 | K20: 445.02 | L20: 117.23 | M20: 134.81 | N20: 63.65 | O20: 73.2 | P20: 126.19 | Q20: 145.12 | R20: 86.87 | S20: 99.9 | T20: 55.12 | U20: 63.39 | V20: 21.96 | W20: 25.25
A21: Ruraflex | B21: Ru | C21: 3 | D21: 2 | E21: Ru32N | I21: ≥ 500V & ≤ 22kV | J21: 383.14 | K21: 440.61 | L21: 116.08 | M21: 133.49 | N21: 63.03 | O21: 72.48 | P21: 124.99 | Q21: 143.74 | R21: 86.01 | S21: 98.91 | T21: 54.58 | U21: 62.77 | V21: 20.1 | W21: 23.12
N22: 0
N23: 0
H26: Customer categories | J26: Service charge [R/account/day] | L26: Administration charge [R/POD/day] | Q26: Ancillary service charge [c/kWh] | S26: Network demand charge [c/kWh] in all time-of-use periods
O27: Voltage | R27: VAT incl | T27: VAT incl
A28: Tariff | B28: Tariff nameBillcode | C28: Tx zone | D28: Voltage | E28: Billcode | K28: VAT incl | M28: VAT incl | O28: < 500V | Q28: 0.48 | R28: =ROUND(Q28 * (1 + VAT), 2) -> 0.55 | S28: 30.88 | T28: =ROUND(S28 * (1 + VAT), 2) -> 35.51
A29: Ruraflex | B29: Ru | C29: 0 | D29: 1 | E29: =B29&C29&D29&IF($A$2="Non-municipal","N",IF($A$2="Municiple","Y","error")) -> Ru01N | H29: ≤ 100 kVA | J29: 21.34 | K29: =ROUND(J29 * (1 + VAT), 2) -> 24.54 | L29: 6.06 | M29: =ROUND(L29 * (1 + VAT), 2) -> 6.97 | O29: ≥ 500V & < 22kV | Q29: 0.48 | R29: =ROUND(Q29 * (1 + VAT), 2) -> 0.55 | S29: 27.07 | T29: =ROUND(S29 * (1 + VAT), 2) -> 31.13
A30: Ruraflex | B30: Ru | C30: 0 | D30: 1 | E30: =B30&C30&D30&IF($A$2="Non-municipal","N",IF($A$2="Municiple","Y","error")) -> Ru01N | H30: > 100 kVA & ≤ 500 kVA | J30: 72.76 | K30: =ROUND(J30 * (1 + VAT), 2) -> 83.67 | L30: 33.74 | M30: =ROUND(L30 * (1 + VAT), 2) -> 38.8
A31: Ruraflex | B31: Ru | C31: 0 | D31: 1 | E31: =B31&C31&D31&IF($A$2="Non-municipal","N",IF($A$2="Municiple","Y","error")) -> Ru01N | H31: > 500 kVA & ≤ 1 MVA | J31: 223.85 | K31: =ROUND(J31 * (1 + VAT), 2) -> 257.43 | L31: 51.78 | M31: =ROUND(L31 * (1 + VAT), 2) -> 59.55 | O31: Reactive energy charge [c/kVArh]
A32: Ruraflex | B32: Ru | C32: 0 | D32: 1 | E32: =B32&C32&D32&IF($A$2="Non-municipal","N",IF($A$2="Municiple","Y","error")) -> Ru01N | H32: > 1 MVA | J32: 223.85 | K32: =ROUND(J32 * (1 + VAT), 2) -> 257.43 | L32: 96.08 | M32: =ROUND(L32 * (1 + VAT), 2) -> 110.49 | O32: High season | Q32: Low season
A33: Ruraflex | B33: Ru | C33: 0 | D33: 1 | E33: =B33&C33&D33&IF($A$2="Non-municipal","N",IF($A$2="Municiple","Y","error")) -> Ru01N | H33: Key customers | J33: 4387.25 | K33: =ROUND(J33 * (1 + VAT), 2) -> 5045.34 | L33: 96.08 | M33: =ROUND(L33 * (1 + VAT), 2) -> 110.49 | P33: VAT incl | R33: VAT incl
O34: 10.43 | P34: =ROUND(O34 * (1 + VAT), 2) -> 11.99 | Q34: 0 | R34: =ROUND(Q34 * (1 + VAT), 2) -> 0

Sheet Ruraflex Munic
G1: Back to menu
A2: Municiple | G2: Ruraflex - Local Authority | AF2: =SUM(#REF!,#REF!,#REF!,#REF!,#REF!,#REF!,#REF!,#REF!,#REF!,#REF!,#REF!,#REF!) ->  | AG2: check value
J4: Active energy charge [c/kWh] | V4: Network capacity charges [R/kVA/m]
H5: Transmission zone | J5: High demand season [Jun - Aug] | P5: Low demand season [Sep - May]
I6: Voltage | J6: Peak | L6: Standard | N6: Off Peak | P6: Peak | R6: Standard | T6: Off Peak
A7: Tariff | B7: Tariff nameBillcode | C7: Tx zone | D7: Voltage | E7: Billcode | K7: VAT incl | M7: VAT incl | O7: VAT incl | Q7: VAT incl | S7: VAT incl | U7: VAT incl | W7: VAT incl
A8: Ruraflex | B8: Ru | C8: 0 | D8: 1 | E8: =B8&C8&D8&IF($A$2="Non-municipal","N",IF($A$2="Municiple","Y","error")) -> Ru01Y | H8: ≤ 300km | I8: < 500V | J8: 384.21 | K8: =ROUND(J8 * (1 + VAT), 2) -> 441.84 | L8: 116.38 | M8: =ROUND(L8 * (1 + VAT), 2) -> 133.84 | N8: 63.21 | O8: =ROUND(N8 * (1 + VAT), 2) -> 72.69 | P8: 125.34 | Q8: =ROUND(P8 * (1 + VAT), 2) -> 144.14 | R8: 86.26 | S8: =ROUND(R8 * (1 + VAT), 2) -> 99.2 | T8: 54.72 | U8: =ROUND(T8 * (1 + VAT), 2) -> 62.93 | V8: 21.85 | W8: =ROUND(V8 * (1 + VAT), 2) -> 25.13
A9: Ruraflex | B9: Ru | C9: 0 | D9: 2 | E9: =B9&C9&D9&IF($A$2="Non-municipal","N",IF($A$2="Municiple","Y","error")) -> Ru02Y | I9: ≥ 500V & ≤ 22kV | J9: 380.39 | K9: 437.45 | L9: 115.24 | M9: 132.53 | N9: 62.57 | O9: 71.96 | P9: 124.11 | Q9: 142.73 | R9: 85.38 | S9: 98.19 | T9: 54.17 | U9: 62.3 | V9: 20.05 | W9: 23.06
A10: Ruraflex | B10: Ru | E10: RuY | J10: 0 | L10: 0 | N10: 0 | P10: 0 | R10: 0 | T10: 0 | V10: 0
A11: Ruraflex | B11: Ru | E11: RuY | J11: 0 | L11: 0 | N11: 0 | P11: 0 | R11: 0 | T11: 0 | V11: 0
A12: Ruraflex | B12: Ru | C12: 1 | D12: 1 | E12: Ru11Y | H12: > 300km and ≤ 600km | I12: < 500V | J12: 388.03 | K12: 446.23 | L12: 117.57 | M12: 135.21 | N12: 63.81 | O12: 73.38 | P12: 126.56 | Q12: 145.54 | R12: 87.12 | S12: 100.19 | T12: 55.28 | U12: 63.57 | V12: 21.94 | W12: 25.23
A13: Ruraflex | B13: Ru | C13: 1 | D13: 2 | E13: Ru12Y | I13: ≥ 500V & ≤ 22kV | J13: 384.2 | K13: 441.83 | L13: 116.36 | M13: 133.81 | N13: 63.21 | O13: 72.69 | P13: 125.34 | Q13: 144.14 | R13: 86.24 | S13: 99.18 | T13: 54.72 | U13: 62.93 | V13: 20.16 | W13: 23.18
A14: Ruraflex | B14: Ru | E14: RuY | J14: 0 | L14: 0 | N14: 0 | P14: 0 | R14: 0 | T14: 0 | V14: 0
A15: Ruraflex | B15: Ru | E15: RuY | J15: 0 | L15: 0 | N15: 0 | P15: 0 | R15: 0 | T15: 0 | V15: 0
A16: Ruraflex | B16: Ru | C16: 2 | D16: 1 | E16: Ru21Y | H16: > 600km and ≤ 900km | I16: < 500V | J16: 391.93 | K16: 450.72 | L16: 118.71 | M16: 136.52 | N16: 64.47 | O16: 74.14 | P16: 127.83 | Q16: 147 | R16: 87.96 | S16: 101.15 | T16: 55.83 | U16: 64.2 | V16: 22.06 | W16: 25.37
A17: Ruraflex | B17: Ru | C17: 2 | D17: 2 | E17: Ru22Y | I17: ≥ 500V & ≤ 22kV | J17: 388.01 | K17: 446.21 | L17: 117.55 | M17: 135.18 | N17: 63.81 | O17: 73.38 | P17: 126.56 | Q17: 145.54 | R17: 87.12 | S17: 100.19 | T17: 55.28 | U17: 63.57 | V17: 20.26 | W17: 23.3
A18: Ruraflex | B18: Ru | E18: RuY | J18: 0 | L18: 0 | N18: 0 | P18: 0 | R18: 0 | T18: 0 | V18: 0
A19: Ruraflex | B19: Ru | E19: RuY | J19: 0 | L19: 0 | N19: 0 | P19: 0 | R19: 0 | T19: 0 | V19: 0
A20: Ruraflex | B20: Ru | C20: 3 | D20: 1 | E20: Ru31Y | H20: > 900km | I20: < 500V | J20: 395.84 | K20: 455.22 | L20: 119.94 | M20: 137.93 | N20: 65.08 | O20: 74.84 | P20: 129.09 | Q20: 148.45 | R20: 88.88 | S20: 102.21 | T20: 56.38 | U20: 64.84 | V20: 22.13 | W20: 25.45
A21: Ruraflex | B21: Ru | C21: 3 | D21: 2 | E21: Ru32Y | I21: ≥ 500V & ≤ 22kV | J21: 391.92 | K21: 450.71 | L21: 118.71 | M21: 136.52 | N21: 64.47 | O21: 74.14 | P21: 127.83 | Q21: 147 | R21: 87.96 | S21: 101.15 | T21: 55.83 | U21: 64.2 | V21: 20.27 | W21: 23.31
N22: 0
N23: 0
H26: Customer categories | J26: Service charge [R/account/day] | L26: Administration charge [R/POD/day] | Q26: Ancillary service charge [c/kWh] | S26: Network demand charge [c/kWh] in all time-of-use periods
O27: Voltage | R27: VAT incl | T27: VAT incl
A28: Tariff | B28: Tariff nameBillcode | C28: Tx zone | D28: Voltage | E28: Billcode | K28: VAT incl | M28: VAT incl | O28: < 500V | Q28: 0.48 | R28: =ROUND(Q28 * (1 + VAT), 2) -> 0.55 | S28: 31.16 | T28: =ROUND(S28 * (1 + VAT), 2) -> 35.83
A29: Ruraflex | B29: Ru | C29: 0 | D29: 1 | E29: =B29&C29&D29&IF($A$2="Non-municipal","N",IF($A$2="Municiple","Y","error")) -> Ru01Y | H29: ≤ 100 kVA | J29: 21.22 | K29: =ROUND(J29 * (1 + VAT), 2) -> 24.4 | L29: 6.02 | M29: =ROUND(L29 * (1 + VAT), 2) -> 6.92 | O29: ≥ 500V & < 22kV | Q29: 0.48 | R29: =ROUND(Q29 * (1 + VAT), 2) -> 0.55 | S29: 27.27 | T29: =ROUND(S29 * (1 + VAT), 2) -> 31.36
A30: Ruraflex | B30: Ru | C30: 0 | D30: 1 | E30: =B30&C30&D30&IF($A$2="Non-municipal","N",IF($A$2="Municiple","Y","error")) -> Ru01Y | H30: > 100 kVA & ≤ 500 kVA | J30: 72.37 | K30: =ROUND(J30 * (1 + VAT), 2) -> 83.23 | L30: 33.55 | M30: =ROUND(L30 * (1 + VAT), 2) -> 38.58
A31: Ruraflex | B31: Ru | C31: 0 | D31: 1 | E31: =B31&C31&D31&IF($A$2="Non-municipal","N",IF($A$2="Municiple","Y","error")) -> Ru01Y | H31: > 500 kVA & ≤ 1 MVA | J31: 222.64 | K31: =ROUND(J31 * (1 + VAT), 2) -> 256.04 | L31: 51.48 | M31: =ROUND(L31 * (1 + VAT), 2) -> 59.2 | O31: Reactive energy charge [c/kVArh]
A32: Ruraflex | B32: Ru | C32: 0 | D32: 1 | E32: =B32&C32&D32&IF($A$2="Non-municipal","N",IF($A$2="Municiple","Y","error")) -> Ru01Y | H32: > 1 MVA | J32: 222.64 | K32: =ROUND(J32 * (1 + VAT), 2) -> 256.04 | L32: 95.55 | M32: =ROUND(L32 * (1 + VAT), 2) -> 109.88 | O32: High season | Q32: Low season
A33: Ruraflex | B33: Ru | C33: 0 | D33: 1 | E33: =B33&C33&D33&IF($A$2="Non-municipal","N",IF($A$2="Municiple","Y","error")) -> Ru01Y | H33: Key customers | J33: 4363.11 | K33: =ROUND(J33 * (1 + VAT), 2) -> 5017.58 | L33: 95.55 | M33: =ROUND(L33 * (1 + VAT), 2) -> 109.88 | P33: VAT incl | R33: VAT incl
O34: 10.36 | P34: =ROUND(O34 * (1 + VAT), 2) -> 11.91 | Q34: 0 | R34: =ROUND(Q34 * (1 + VAT), 2) -> 0

Sheet Ruraflex Gen NLA
G1: Back to menu
A2: Non-municipal | G2: Ruraflex Gen - Non-Local Authority | AF2: =SUM(#REF!,#REF!,#REF!,#REF!,#REF!,#REF!,#REF!,#REF!,#REF!,#REF!,#REF!,#REF!) ->  | AG2: check value
J4: Active energy charge for loads [c/kWh] | V4: Network capacity charges [R/kVA/m]
H5: Transmission zone | J5: High demand season [Jun - Aug] | P5: Low demand season [Sep - May]
I6: Voltage | J6: Peak | L6: Standard | N6: Off Peak | P6: Peak | R6: Standard | T6: Off Peak
A7: Tariff | B7: Tariff nameBillcode | C7: Tx zone | D7: Voltage | E7: Billcode | K7: VAT incl | M7: VAT incl | O7: VAT incl | Q7: VAT incl | S7: VAT incl | U7: VAT incl | W7: VAT incl
A8: Genflex rural | B8: GR | C8: 0 | D8: 1 | E8: =B8&C8&D8&IF($A$2="Non-municipal","N",IF($A$2="Municiple","Y","error")) -> GR01N | H8: ≤ 300km | I8: < 500V | J8: 375.58 | K8: =ROUND(J8 * (1 + VAT), 2) -> 431.92 | L8: 113.78 | M8: =ROUND(L8 * (1 + VAT), 2) -> 130.85 | N8: 61.8 | O8: =ROUND(N8 * (1 + VAT), 2) -> 71.07 | P8: 122.52 | Q8: =ROUND(P8 * (1 + VAT), 2) -> 140.9 | R8: 84.31 | S8: =ROUND(R8 * (1 + VAT), 2) -> 96.96 | T8: 53.49 | U8: =ROUND(T8 * (1 + VAT), 2) -> 61.51 | V8: 21.69 | W8: =ROUND(V8 * (1 + VAT), 2) -> 24.94
A9: Genflex rural | B9: GR | C9: 0 | D9: 2 | E9: =B9&C9&D9&IF($A$2="Non-municipal","N",IF($A$2="Municiple","Y","error")) -> GR02N | I9: ≥ 500V & ≤ 22kV | J9: 371.87 | K9: 427.65 | L9: 112.66 | M9: 129.56 | N9: 61.17 | O9: 70.35 | P9: 121.32 | Q9: 139.52 | R9: 83.48 | S9: 96 | T9: 52.94 | U9: 60.88 | V9: 19.88 | W9: 22.86
A10: Genflex rural | B10: GR | E10: GRN | J10: 0 | L10: 0 | N10: 0 | P10: 0 | R10: 0 | T10: 0 | V10: 0
A11: Genflex rural | B11: GR | E11: GRN | J11: 0 | L11: 0 | N11: 0 | P11: 0 | R11: 0 | T11: 0 | V11: 0
A12: Genflex rural | B12: GR | C12: 1 | D12: 1 | E12: GR11N | H12: > 300km and ≤ 600km | I12: < 500V | J12: 379.35 | K12: 436.25 | L12: 114.92 | M12: 132.16 | N12: 62.41 | O12: 71.77 | P12: 123.74 | Q12: 142.3 | R12: 85.17 | S12: 97.95 | T12: 54.04 | U12: 62.15 | V12: 21.75 | W12: 25.01
A13: Genflex rural | B13: GR | C13: 1 | D13: 2 | E13: GR12N | I13: ≥ 500V & ≤ 22kV | J13: 375.57 | K13: 431.91 | L13: 113.77 | M13: 130.84 | N13: 61.8 | O13: 71.07 | P13: 122.52 | Q13: 140.9 | R13: 84.3 | S13: 96.95 | T13: 53.49 | U13: 61.51 | V13: 20 | W13: 23
A14: Genflex rural | B14: GR | E14: GRN | J14: 0 | L14: 0 | N14: 0 | P14: 0 | R14: 0 | T14: 0 | V14: 0
A15: Genflex rural | B15: GR | E15: GRN | J15: 0 | L15: 0 | N15: 0 | P15: 0 | R15: 0 | T15: 0 | V15: 0
A16: Genflex rural | B16: GR | C16: 2 | D16: 1 | E16: GR21N | H16: > 600km and ≤ 900km | I16: < 500V | J16: 383.15 | K16: 440.62 | L16: 116.08 | M16: 133.49 | N16: 63.03 | O16: 72.48 | P16: 124.99 | Q16: 143.74 | R16: 86.01 | S16: 98.91 | T16: 54.58 | U16: 62.77 | V16: 21.87 | W16: 25.15
A17: Genflex rural | B17: GR | C17: 2 | D17: 2 | E17: GR22N | I17: ≥ 500V & ≤ 22kV | J17: 379.33 | K17: 436.23 | L17: 114.9 | M17: 132.14 | N17: 62.41 | O17: 71.77 | P17: 123.74 | Q17: 142.3 | R17: 85.17 | S17: 97.95 | T17: 54.04 | U17: 62.15 | V17: 20.09 | W17: 23.1
A18: Genflex rural | B18: GR | E18: GRN | J18: 0 | L18: 0 | N18: 0 | P18: 0 | R18: 0 | T18: 0 | V18: 0
A19: Genflex rural | B19: GR | E19: GRN | J19: 0 | L19: 0 | N19: 0 | P19: 0 | R19: 0 | T19: 0 | V19: 0
A20: Genflex rural | B20: GR | C20: 3 | D20: 1 | E20: GR31N | H20: > 900km | I20: < 500V | J20: 386.97 | K20: 445.02 | L20: 117.23 | M20: 134.81 | N20: 63.65 | O20: 73.2 | P20: 126.19 | Q20: 145.12 | R20: 86.87 | S20: 99.9 | T20: 55.12 | U20: 63.39 | V20: 21.96 | W20: 25.25
A21: Genflex rural | B21: GR | C21: 3 | D21: 2 | E21: GR32N | I21: ≥ 500V & ≤ 22kV | J21: 383.14 | K21: 440.61 | L21: 116.08 | M21: 133.49 | N21: 63.03 | O21: 72.48 | P21: 124.99 | Q21: 143.74 | R21: 86.01 | S21: 98.91 | T21: 54.58 | U21: 62.77 | V21: 20.1 | W21: 23.12
N22: 0
N23: 0
A24: Gen-purchase | B24: NLPurchADJ | C24: 0 | D24: 4 | E24: =B24&C24&D24&IF($A$2="Non-municipal","N",IF($A$2="Municiple","Y","error")) -> NLPurchADJ04N
Q26: Ancillary service charge for loads and generators
H28: Customer categories | J28: Service charge [R/account/day] | L28: Administration charge [R/POD/day] | O28: Voltage | Q28: [c/kWh]
H29: [kVA or MVA = loads] | R29: VAT incl
A30: Tariff | B30: Tariff nameBillcode | C30: Tx zone | D30: Voltage | E30: Billcode | H30: [kW or MW = generators] | K30: VAT incl | M30: VAT incl | O30: < 500V | Q30: 0.48 | R30: =ROUND(Q30 * (1 + VAT), 2) -> 0.55
A31: Genflex rural | B31: GR | C31: 0 | D31: 1 | E31: =B31&C31&D31&IF($A$2="Non-municipal","N",IF($A$2="Municiple","Y","error")) -> GR01N | H31: ≤ 100 kVA/kW | J31: 21.34 | K31: =ROUND(J31 * (1 + VAT), 2) -> 24.54 | L31: 6.06 | M31: =ROUND(L31 * (1 + VAT), 2) -> 6.97 | O31: ≥ 500V & < 22kV | Q31: 0.48 | R31: =ROUND(Q31 * (1 + VAT), 2) -> 0.55
A32: Genflex rural | B32: GR | C32: 0 | D32: 1 | E32: =B32&C32&D32&IF($A$2="Non-municipal","N",IF($A$2="Municiple","Y","error")) -> GR01N | H32: > 100 KVA/kW & ≤ 500 kVA/kW | J32: 72.76 | K32: =ROUND(J32 * (1 + VAT), 2) -> 83.67 | L32: 33.74 | M32: =ROUND(L32 * (1 + VAT), 2) -> 38.8
A33: Genflex rural | B33: GR | C33: 0 | D33: 1 | E33: =B33&C33&D33&IF($A$2="Non-municipal","N",IF($A$2="Municiple","Y","error")) -> GR01N | H33: > 500 kVA/kW & ≤ 1 MVA/MW | J33: 223.85 | K33: =ROUND(J33 * (1 + VAT), 2) -> 257.43 | L33: 51.78 | M33: =ROUND(L33 * (1 + VAT), 2) -> 59.55 | O33: Reactive energy charge [c/kVArh] | S33: Network demand charge [c/kWh] for loads in all time-of-use periods
A34: Genflex rural | B34: GR | C34: 0 | D34: 1 | E34: =B34&C34&D34&IF($A$2="Non-municipal","N",IF($A$2="Municiple","Y","error")) -> GR01N | H34: > 1 MVA/MW | J34: 223.85 | K34: =ROUND(J34 * (1 + VAT), 2) -> 257.43 | L34: 96.08 | M34: =ROUND(L34 * (1 + VAT), 2) -> 110.49 | O34: High season | Q34: Low season | T34: VAT incl
A35: Genflex rural | B35: GR | C35: 0 | D35: 1 | E35: =B35&C35&D35&IF($A$2="Non-municipal","N",IF($A$2="Municiple","Y","error")) -> GR01N | H35: Key customers | J35: 4387.25 | K35: =ROUND(J35 * (1 + VAT), 2) -> 5045.34 | L35: 96.08 | M35: =ROUND(L35 * (1 + VAT), 2) -> 110.49 | P35: VAT incl | R35: VAT incl | S35: 30.88 | T35: =ROUND(S35 * (1 + VAT), 2) -> 35.51
O36: 10.43 | P36: =ROUND(O36 * (1 + VAT), 2) -> 11.99 | Q36: 0 | R36: =ROUND(Q36 * (1 + VAT), 2) -> 0 | S36: 27.07 | T36: =ROUND(S36 * (1 + VAT), 2) -> 31.13

Sheet Landrate NLA
H1: Back to menu
A2: Non-municipal | G2: Landrate - Non-local Authority
J4: Energy charge [c/kWh] | L4: Ancillary service charge [c/kWh] | N4: Network demand charge [c/kWh] | P4: Network capacity charge [R/POD/day] | R4: Service charge [R/POD/day]
A5: Tariff | B5: Tariff nameBillcode | C5: Tx zone | D5: Voltage | E5: Billcode | K5: VAT incl | M5: VAT incl | O5: VAT incl | Q5: VAT incl | S5: VAT incl
A6: Landrate 1 | B6: L1 | C6: 0 | D6: 1 | E6: =B6&C6&D6&IF($A$2="Non-municipal","N",IF($A$2="Municiple","Y","error")) -> L101N | H6: Landrate 1 | J6: 123.58 | K6: =ROUND(J6 * (1 + VAT), 2) -> 142.12 | L6: 0.48 | M6: =ROUND(L6 * (1 + VAT), 2) -> 0.55 | N6: 30.88 | O6: =ROUND(N6 * (1 + VAT), 2) -> 35.51 | P6: 33.01 | Q6: =ROUND(P6 * (1 + VAT), 2) -> 37.96 | R6: 27.41 | S6: =ROUND(R6 * (1 + VAT), 2) -> 31.52
A7: Landrate 2 | B7: L2 | C7: 0 | D7: 1 | E7: =B7&C7&D7&IF($A$2="Non-municipal","N",IF($A$2="Municiple","Y","error")) -> L201N | H7: Landrate 2 | J7: 123.58 | K7: 142.12 | L7: 0.48 | M7: =ROUND(L7 * (1 + VAT), 2) -> 0.55 | N7: 30.88 | O7: =ROUND(N7 * (1 + VAT), 2) -> 35.51 | P7: 50.74 | Q7: =ROUND(P7 * (1 + VAT), 2) -> 58.35 | R7: 27.41 | S7: =ROUND(R7 * (1 + VAT), 2) -> 31.52
A8: Landrate 3 | B8: L3 | C8: 0 | D8: 1 | E8: L301N | H8: Landrate 3 | J8: 123.58 | K8: 142.12 | L8: 0.48 | M8: =ROUND(L8 * (1 + VAT), 2) -> 0.55 | N8: 30.88 | O8: =ROUND(N8 * (1 + VAT), 2) -> 35.51 | P8: 81.11 | Q8: =ROUND(P8 * (1 + VAT), 2) -> 93.28 | R8: 27.41 | S8: =ROUND(R8 * (1 + VAT), 2) -> 31.52
A9: Landrate 4 | B9: L4 | C9: 0 | D9: 1 | E9: L401N | H9: Landrate 4 | J9: 266.92 | K9: 306.96 | L9: 0.48 | M9: =ROUND(L9 * (1 + VAT), 2) -> 0.55 | N9: 30.88 | O9: =ROUND(N9 * (1 + VAT), 2) -> 35.51 | P9: 26.28 | Q9: =ROUND(P9 * (1 + VAT), 2) -> 30.22 | R9: 0 | S9: =ROUND(R9 * (1 + VAT), 2) -> 0
A10: Landlight | B10: Lt | C10: 0 | D10: 1 | E10: =B10&C10&D10&IF($A$2="Non-municipal","N",IF($A$2="Municiple","Y","error")) -> Lt01N | H10: Landlight 20A | J10: 355.35 | K10: 408.65
B11: Lt60 | C11: 0 | D11: 1 | E11: =B11&C11&D11&IF($A$2="Non-municipal","N",IF($A$2="Municiple","Y","error")) -> Lt6001N | H11: Landlight 60A | J11: 458.09 | K11: 526.8
A12: Landrate Dx | B12: Ld | C12: 0 | D12: 1 | E12: Ld01N | H12: Landrate Dx* | R12: 58.7839 | S12: =ROUND(R12 * (1 + VAT), 2) -> 67.6
H13: *R/day fixed charge inclusive of the following charges; energy, ancillary service, network demand, network capacity and service charge.

Sheet Landrate Munic
H1: Back to menu
A2: Municiple | G2: Landrate - Local Authority
J4: Energy charge [c/kWh] | L4: Ancillary service charge [c/kWh] | N4: Network demand charge [c/kWh] | P4: Network capacity charge [R/POD/day] | R4: Service charge [R/POD/day]
A5: Tariff | B5: Tariff nameBillcode | C5: Tx zone | D5: Voltage | E5: Billcode | K5: VAT incl | M5: VAT incl | O5: VAT incl | Q5: VAT incl | S5: VAT incl
A6: Landrate 1 | B6: L1 | C6: 0 | D6: 1 | E6: =B6&C6&D6&IF($A$2="Non-municipal","N",IF($A$2="Municiple","Y","error")) -> L101Y | H6: Landrate 1 | J6: 126.41 | K6: =ROUND(J6 * (1 + VAT), 2) -> 145.37 | L6: 0.48 | M6: =ROUND(L6 * (1 + VAT), 2) -> 0.55 | N6: 31.16 | O6: =ROUND(N6 * (1 + VAT), 2) -> 35.83 | P6: 33.28 | Q6: =ROUND(P6 * (1 + VAT), 2) -> 38.27 | R6: 27.24 | S6: =ROUND(R6 * (1 + VAT), 2) -> 31.33
A7: Landrate 2 | B7: L2 | C7: 0 | D7: 1 | E7: =B7&C7&D7&IF($A$2="Non-municipal","N",IF($A$2="Municiple","Y","error")) -> L201Y | H7: Landrate 2 | J7: 126.41 | K7: =ROUND(J7 * (1 + VAT), 2) -> 145.37 | L7: 0.48 | M7: =ROUND(L7 * (1 + VAT), 2) -> 0.55 | N7: 31.16 | O7: =ROUND(N7 * (1 + VAT), 2) -> 35.83 | P7: 51.15 | Q7: =ROUND(P7 * (1 + VAT), 2) -> 58.82 | R7: 27.24 | S7: =ROUND(R7 * (1 + VAT), 2) -> 31.33
A8: Landrate 3 | B8: L3 | C8: 0 | D8: 1 | E8: =B8&C8&D8&IF($A$2="Non-municipal","N",IF($A$2="Municiple","Y","error")) -> L301Y | H8: Landrate 3 | J8: 126.41 | K8: =ROUND(J8 * (1 + VAT), 2) -> 145.37 | L8: 0.48 | M8: =ROUND(L8 * (1 + VAT), 2) -> 0.55 | N8: 31.16 | O8: =ROUND(N8 * (1 + VAT), 2) -> 35.83 | P8: 81.79 | Q8: =ROUND(P8 * (1 + VAT), 2) -> 94.06 | R8: 27.24 | S8: =ROUND(R8 * (1 + VAT), 2) -> 31.33
A9: Landrate 4 | B9: L4 | C9: 0 | D9: 1 | E9: =B9&C9&D9&IF($A$2="Non-municipal","N",IF($A$2="Municiple","Y","error")) -> L401Y | H9: Landrate 4 | J9: 273.03 | K9: =ROUND(J9 * (1 + VAT), 2) -> 313.98 | L9: 0.48 | M9: =ROUND(L9 * (1 + VAT), 2) -> 0.55 | N9: 31.16 | O9: =ROUND(N9 * (1 + VAT), 2) -> 35.83 | P9: 26.5 | Q9: =ROUND(P9 * (1 + VAT), 2) -> 30.48
A10: Landrate Dx | B10: Ld | C10: 0 | D10: 1 | E10: =B10&C10&D10&IF($A$2="Non-municipal","N",IF($A$2="Municiple","Y","error")) -> Ld01Y | H10: Landrate Dx* | R10: 58.9362 | S10: =ROUND(R10 * (1 + VAT), 2) -> 67.78
H11: *R/day fixed charge inclusive of the following charges; energy, ancillary service, network demand, network capacity and service charge.

Sheet TOuS Original (hidden)
B4: Reliability service charge urban | D4: Charge [c/kWh]
E5: VAT incl
B6: < 500V | D6: 0.27 | E6: =ROUND(D6 * (1 + VAT), 2) -> 0.31
B7: ≥ 500V & < 66kV | D7: 0.26 | E7: =ROUND(D7 * (1 + VAT), 2) -> 0.3
B8: ≥ 66kV & ≤ 132kV | D8: 0.25 | E8: =ROUND(D8 * (1 + VAT), 2) -> 0.29
B9: > 132kV | D9: 0.23 | E9: =ROUND(D9 * (1 + VAT), 2) -> 0.26
B12: Reliability service charge rural | D12: Charge [c/kWh]
E13: VAT incl
B14: < 500V | D14: 0.27 | E14: =ROUND(D14 * (1 + VAT), 2) -> 0.31
B15: ≥ 500V & ≤ 22kV | D15: 0.27 | E15: =ROUND(D15 * (1 + VAT), 2) -> 0.31
C18: Transmission zone | D18: Voltage | E18: R/kVA
F19: VAT incl
B20: ETUoS urban | C20: ≤ 300km | D20: < 500V | E20: 11.36438596 | F20: =ROUND(E20 * (1 + VAT), 2) -> 13.07
D21: ≥ 500V & < 66kV | E21: 11.19400536 | F21: 12.87
D22: ≥ 66kV & ≤ 132kV | E22: 10.8362061 | F22: 12.46
C23: > 300km & ≤ 600km | D23: < 500V | E23: 11.46661432 | F23: 13.19
D24: ≥ 500V & < 66kV | E24: 11.31327178 | F24: 13.01
D25: ≥ 66kV & ≤ 132kV | E25: 10.95547252 | F25: 12.6
C26: > 600km & ≤ 900km | D26: < 500V | E26: 11.58588074 | F26: 13.32
D27: ≥ 500V & < 66kV | E27: 11.4325382 | F27: 13.15
D28: ≥ 66kV & ≤ 132kV | E28: 11.05770088 | F28: 12.72
C29: > 900km | D29: < 500V | E29: 11.70514716 | F29: 13.46
D30: ≥ 500V & < 66kV | E30: 11.55180462 | F30: 13.28
D31: ≥ 66kV & ≤ 132kV | E31: 11.1769673 | F31: 12.85
C34: Transmission zone | D34: Voltage | E34: R/kVA
F35: VAT incl
B36: ETUoS rural | C36: ≤ 300km | D36: < 500V | E36: 11.7732994 | F36: =ROUND(E36 * (1 + VAT), 2) -> 13.54
D37: ≥ 500V & < 66kV | E37: 11.67107104 | F37: 13.42
C38: > 300km & ≤ 600km | D38: < 500V | E38: 11.89256582 | F38: 13.68
D39: ≥ 500V & < 66kV | E39: 11.79033746 | F39: 13.56
C40: > 600km & ≤ 900km | D40: < 500V | E40: 12.01183224 | F40: 13.81
D41: ≥ 500V & < 66kV | E41: 11.90960388 | F41: 13.7
C42: > 900km | D42: < 500V | E42: 12.13109866 | F42: 13.95
D43: ≥ 500V & < 66kV | E43: 12.0288703 | F43: 13.83
B46: Distribution network charges urban
D47: Network access charge [R/kVA/m] | F47: Network demand charge [R/kVA/m] | H47: Urban low voltage subsidy charge [R/kVA/m]
B49: Voltage | E49: VAT incl | G49: VAT incl | I49: VAT incl
B50: < 500V | D50: =#REF! ->  | E50: =ROUND(D50 * (1 + VAT), 2) ->  | F50: =#REF! ->  | G50: =ROUND(F50 * (1 + VAT), 2) ->  | H50: =#REF! ->  | I50: =ROUND(H50 * (1 + VAT), 2) -> 
B51: ≥ 500V & < 66kV | D51: =#REF! ->  | E51: =ROUND(D51 * (1 + VAT), 2) ->  | F51: =#REF! ->  | G51: =ROUND(F51 * (1 + VAT), 2) ->  | H51: =#REF! ->  | I51: =ROUND(H51 * (1 + VAT), 2) -> 
B52: ≥ 66kV & ≤ 132kV | D52: =#REF! ->  | E52: =ROUND(D52 * (1 + VAT), 2) ->  | F52: =#REF! ->  | G52: =ROUND(F52 * (1 + VAT), 2) ->  | H52: =#REF! ->  | I52: =ROUND(H52 * (1 + VAT), 2) -> 
B53: > 132kV | D53: =#REF! ->  | E53: =ROUND(D53 * (1 + VAT), 2) ->  | F53: =#REF! ->  | G53: =ROUND(F53 * (1 + VAT), 2) ->  | H53: =#REF! ->  | I53: =ROUND(H53 * (1 + VAT), 2) -> 
B56: Distribution network charges rural
D57: Network access charge [R/kVA/m] | F57: Network demand charge [c/kWh]
B59: Voltage | E59: VAT incl | G59: VAT incl
B60: < 500V | D60: 6.201664795 | E60: =ROUND(D60 * (1 + VAT), 2) -> 7.13 | F60: 19.67324725 | G60: =ROUND(F60 * (1 + VAT), 2) -> 22.62
B61: ≥ 500V & ≤ 22kV | D61: 2.297555913 | E61: =ROUND(D61 * (1 + VAT), 2) -> 2.64 | F61: 17.23886725 | G61: =ROUND(F61 * (1 + VAT), 2) -> 19.82
B64: Distribution network charges for Generators
D65: Network access charge [R/MW/m]
B67: Voltage | E67: VAT incl
B68: < 500V
B69: ≥ 500V & < 66kV
B70: ≥ 66kV & ≤ 132kV | D70: 9.4 | E70: =ROUND(D70 * (1 + VAT), 2) -> 10.81
B73: Electrification and rural network subsidy charge [c/kWh]
D74: Rural network subsidy charge [c/kWh] | F74: Electrification networks subsidy charge [c/kWh] | H74: Total electrification and rural network subsidy charge [c/kWh]
B76: Tariff | E76: VAT incl | G76: VAT incl | I76: VAT incl
B77: Megaflex, Miniflex, Nightsave Urban Large, Nightsave Urban Small, Businessrate
D78: 2.68 | E78: =ROUND(D78 * (1 + VAT), 2) -> 3.08 | F78: 0.91 | G78: =ROUND(F78 * (1 + VAT), 2) -> 1.05 | H78: 3.59 | I78: =ROUND(H78 * (1 + VAT), 2) -> 4.13
B83: Service and admin charges
B84: Customer categories | D84: Service charge [R/account/day] | F84: Administration charge [R/POD/day]
E86: VAT incl | G86: VAT incl
B87: ≤ 100 kVA | D87: 9.49 | E87: =ROUND(D87 * (1 + VAT), 2) -> 10.91 | F87: 2.08 | G87: =ROUND(F87 * (1 + VAT), 2) -> 2.39
B88: > 100 kVA & ≤ 500 kVA | D88: 43.38 | E88: =ROUND(D88 * (1 + VAT), 2) -> 49.89 | F88: 12.16 | G88: =ROUND(F88 * (1 + VAT), 2) -> 13.98
B89: > 500 kVA & ≤ 1 MVA | D89: 133.5 | E89: =ROUND(D89 * (1 + VAT), 2) -> 153.53 | F89: 24.17 | G89: =ROUND(F89 * (1 + VAT), 2) -> 27.8
B90: > 1 MVA | D90: 133.5 | E90: =ROUND(D90 * (1 + VAT), 2) -> 153.53 | F90: 60.17 | G90: =ROUND(F90 * (1 + VAT), 2) -> 69.2
B91: Key customers | D91: 2616.06 | E91: =ROUND(D91 * (1 + VAT), 2) -> 3008.47 | F91: 83.55 | G91: =ROUND(F91 * (1 + VAT), 2) -> 96.08
B94: Distribution loss factors | F94: Transmission loss factors for loads
B95: Voltage | C95: Urban loss factor | D95: Rural loss factor | F95: Distance from Johannesburg | G95: Zone | H95: Loss factor
B96: < 500V | C96: ='Loss Factors'!O6 -> 1.1111 | D96: ='Loss Factors'!P6 -> 1.1527 | F96: 0 to 300 km | G96: 0 | H96: ='Loss Factors'!T6 -> 1.0107
B97: ≥ 500V & < 66kV | C97: ='Loss Factors'!O7 -> 1.0957 | D97: ='Loss Factors'!P7 -> 1.1412 | F97: 301 to 600 km | G97: 1 | H97: ='Loss Factors'!T7 -> 1.0208
B98: ≥ 66kV & ≤ 132kV | C98: ='Loss Factors'!O8 -> 1.0611 | F98: 601 to 900 km | G98: 2 | H98: ='Loss Factors'!T8 -> 1.031
B99: > 132kV | C99: ='Loss Factors'!O9 -> 1 | F99: > 900 km | G99: 3 | H99: ='Loss Factors'!T9 -> 1.0413
K104: TUoS [ > 132kV] | M104: Charge R/kVA
N105: VAT incl
L106: ≤ 300km | M106: =#REF! ->  | N106: =ROUND(M106 * (1 + VAT), 2) -> 
L107: > 300km & ≤ 600km | M107: =#REF! ->  | N107: =ROUND(M107 * (1 + VAT), 2) -> 
L108: > 600km & ≤ 900km | M108: =#REF! ->  | N108: =ROUND(M108 * (1 + VAT), 2) -> 
L109: > 900km | M109: =#REF! ->  | N109: =ROUND(M109 * (1 + VAT), 2) -> 

Sheet TUoS NLA
H1: Back to menu
A2: Non-municipal
H3: TUoS (Transmission use of system) charges (> 132 KV or direct Transmission connected) network charge for loads
H6: Electrification and rural network subsidy charge [c/kWh]
J7: Electrification and rural network subsidy charge [c/kWh]
A9: Tariff | B9: Tariff nameBillcode | C9: Tx zone | D9: Voltage | E9: Billcode | H9: Tariff | K9: VAT incl
H10: Megaflex, Miniflex, Nightsave Urban Large, Nightsave Urban Small, Businessrate
A11: Megaflex | B11: Me | C11: 0 | D11: 1 | E11: =B11&C11&D11&IF($A$2="Non-municipal","N",IF($A$2="Municiple","Y","error")) -> Me01N | J11: 9.22 | K11: =ROUND(J11 * (1 + VAT), 2) -> 10.6
H15: Service and admin charges
H16: Utilised capacity/maximum export capacity | J16: Service charge [R/account/day] | L16: Administration charge [R/POD/day]
H19: [kVA/MVA = loads]
A20: Tariff | B20: Tariff nameBillcode | C20: Tx zone | D20: Voltage | E20: Billcode | H20: [kW/MW = generators] | K20: VAT incl | M20: VAT incl
A21: Miniflex | B21: Mi | C21: 0 | D21: 1 | E21: =B21&C21&D21&IF($B$28="Non-municipal","N",IF($B$28="Municiple","Y","error")) -> Mi01N | H21: ≤ 100 kVA/kW | J21: 16.85 | K21: =ROUND(J21 * (1+ VAT), 2) -> 19.38 | L21: 3.7 | M21: =ROUND(L21 * (1+ VAT), 2) -> 4.26
A22: Miniflex | B22: Mi | C22: 0 | D22: 1 | E22: =B22&C22&D22&IF($B$28="Non-municipal","N",IF($B$28="Municiple","Y","error")) -> Mi01N | H22: > 100 kVA/kW & ≤ 500 kVA/kW | J22: 76.94 | K22: =ROUND(J22 * (1+ VAT), 2) -> 88.48 | L22: 21.58 | M22: =ROUND(L22 * (1+ VAT), 2) -> 24.82
A23: Miniflex | B23: Mi | C23: 0 | D23: 1 | E23: =B23&C23&D23&IF($B$28="Non-municipal","N",IF($B$28="Municiple","Y","error")) -> Mi01N | H23: > 500 kVA/kW & ≤ 1 MVA/MW | J23: 236.74 | K23: =ROUND(J23 * (1+ VAT), 2) -> 272.25 | L23: 42.85 | M23: =ROUND(L23 * (1+ VAT), 2) -> 49.28
A24: Miniflex | B24: Mi | C24: 0 | D24: 1 | E24: =B24&C24&D24&IF($B$28="Non-municipal","N",IF($B$28="Municiple","Y","error")) -> Mi01N | H24: > 1 MVA/MW | J24: 236.74 | K24: =ROUND(J24 * (1+ VAT), 2) -> 272.25 | L24: 106.69 | M24: =ROUND(L24 * (1+ VAT), 2) -> 122.69
A25: Miniflex | B25: Mi | C25: 0 | D25: 1 | E25: =B25&C25&D25&IF($B$28="Non-municipal","N",IF($B$28="Municiple","Y","error")) -> Mi01N | H25: Key customers or Transmission connected generators | J25: 4639.2 | K25: =ROUND(J25 * (1+ VAT), 2) -> 5335.08 | L25: 148.16 | M25: =ROUND(L25 * (1+ VAT), 2) -> 170.38
B28: Non-municipal | H28: Transmission loss factors for loads
A29: Tariff | B29: Tariff nameBillcode | C29: Tx zone | D29: Voltage | E29: Billcode | H29: Distance from Johannesburg | I29: Zone | J29: Loss factor
A30: Transmission loss factor | B30: TxLoss | C30: 0 | D30: 4 | E30: =B30&C30&D30&IF($B$28="Non-municipal","N",IF($B$28="Municiple","Y","error")) -> TxLoss04N | H30: ≤ 300km | I30: 0 | J30: 1.0107
A31: Transmission loss factor | B31: TxLoss | C31: 1 | D31: 4 | E31: =B31&C31&D31&IF($B$28="Non-municipal","N",IF($B$28="Municiple","Y","error")) -> TxLoss14N | H31: > 300km & ≤ 600km | I31: 1 | J31: 1.0208
A32: Transmission loss factor | B32: TxLoss | C32: 2 | D32: 4 | E32: =B32&C32&D32&IF($B$28="Non-municipal","N",IF($B$28="Municiple","Y","error")) -> TxLoss24N | H32: > 600km & ≤ 900km | I32: 2 | J32: 1.031
A33: Transmission loss factor | B33: TxLoss | C33: 3 | D33: 4 | E33: =B33&C33&D33&IF($B$28="Non-municipal","N",IF($B$28="Municiple","Y","error")) -> TxLoss34N | H33: > 900km | I33: 3 | J33: 1.0413
H36: Loss factors for Transmission connected generators | J36: Loss factor
A37: Tariff | B37: Tariff nameBillcode | C37: Tx zone | D37: Voltage | E37: Billcode
A38: TUoS network charges for Transmission connected generators | B38: GenTUOS | C38: Cape | D38: 4 | E38: =B38&C38&D38&IF($A$2="Non-municipal","N",IF($A$2="Municiple","Y","error")) -> GenTUOSCape4N | I38: Cape | J38: 0.971
A39: TUoS network charges for Transmission connected generators | B39: GenTUOS | C39: Karoo | D39: 4 | E39: GenTUOSKaroo4N | I39: Karoo | J39: 0.995
A40: TUoS network charges for Transmission connected generators | B40: GenTUOS | C40: Kwazulu-Natal | D40: 4 | E40: GenTUOSKwazulu-Natal4N | I40: Kwazulu-Natal | J40: 1.004
A41: TUoS network charges for Transmission connected generators | B41: GenTUOS | C41: Vaal | D41: 4 | E41: GenTUOSVaal4N | I41: Vaal | J41: 1.02
A42: TUoS network charges for Transmission connected generators | B42: GenTUOS | C42: Waterburg | D42: 4 | E42: GenTUOSWaterburg4N | I42: Waterberg | J42: 1.023
A43: TUoS network charges for Transmission connected generators | B43: GenTUOS | C43: Mpumalanga | D43: 4 | E43: GenTUOSMpumalanga4N | I43: Mpumalanga | J43: 1.021
H46: TUoS network charge for Transmission connected loads | J46: Network capacity charge [R/kVA]
A47: Tariff | B47: Tariff nameBillcode | C47: Tx zone | D47: Voltage | E47: Billcode | K47: VAT incl
A48: WEPS | B48: We | C48: 0 | D48: 1 | E48: =B48&C48&D48&IF($A$2="Non-municipal","N",IF($A$2="Municiple","Y","error")) -> We01N | I48: ≤ 300km | J48: 11.67 | K48: =ROUND(J48 * (1+ VAT), 2) -> 13.42
A49: WEPS | B49: We | C49: 0 | D49: 2 | E49: =B49&C49&D49&IF($A$2="Non-municipal","N",IF($A$2="Municiple","Y","error")) -> We02N | I49: > 300km & ≤ 600km | J49: 11.78 | K49: =ROUND(J49 * (1+ VAT), 2) -> 13.55
A50: WEPS | B50: We | C50: 0 | D50: 3 | E50: =B50&C50&D50&IF($A$2="Non-municipal","N",IF($A$2="Municiple","Y","error")) -> We03N | I50: > 600km & ≤ 900km | J50: 11.95 | K50: =ROUND(J50 * (1+ VAT), 2) -> 13.74
A51: WEPS | B51: We | C51: 0 | D51: 4 | E51: =B51&C51&D51&IF($A$2="Non-municipal","N",IF($A$2="Municiple","Y","error")) -> We04N | I51: > 900km | J51: 12.04 | K51: =ROUND(J51 * (1+ VAT), 2) -> 13.85
H54: TUoS network charges for Transmission connected generators | J54: Network charge [R/kW]
A55: Tariff | B55: Tariff nameBillcode | C55: Tx zone | D55: Voltage | E55: Billcode | K55: VAT incl
A56: TUoS network charges for Transmission connected generators | B56: GenTUOS | C56: Cape | D56: 4 | E56: =B56&C56&D56&IF($A$2="Non-municipal","N",IF($A$2="Municiple","Y","error")) -> GenTUOSCape4N | I56: Cape | J56: 0 | K56: =ROUND(J56 * (1+ VAT), 2) -> 0
A57: TUoS network charges for Transmission connected generators | B57: GenTUOS | C57: Karoo | D57: 4 | E57: GenTUOSKaroo4N | I57: Karoo | J57: 0 | K57: 0
A58: TUoS network charges for Transmission connected generators | B58: GenTUOS | C58: Kwazulu-Natal | D58: 4 | E58: GenTUOSKwazulu-Natal4N | I58: Kwazulu-Natal | J58: 2.45 | K58: 2.82
A59: TUoS network charges for Transmission connected generators | B59: GenTUOS | C59: Vaal | D59: 4 | E59: GenTUOSVaal4N | I59: Vaal | J59: 8.16 | K59: 9.38
A60: TUoS network charges for Transmission connected generators | B60: GenTUOS | C60: Waterburg | D60: 4 | E60: GenTUOSWaterburg4N | I60: Waterberg | J60: 10.45 | K60: 12.02
A61: TUoS network charges for Transmission connected generators | B61: GenTUOS | C61: Mpumalanga | D61: 4 | E61: GenTUOSMpumalanga4N | I61: Mpumalanga | J61: 9.7 | K61: 11.16
H64: TUoS ancillary service charge for Transmission connected loads and generators | J64: Ancillary service charge [c/kWh]
A66: Tariff | B66: Tariff nameBillcode | C66: Tx zone | D66: Voltage | E66: Billcode | K66: VAT incl
A67: TUoS network charges for Transmission connected generators | B67: GenTUOS | C67: Cape | D67: 4 | E67: =B67&C67&D67&IF($A$2="Non-municipal","N",IF($A$2="Municiple","Y","error")) -> GenTUOSCape4N | H67: Generators | J67: 0.42 | K67: =ROUND(J67 * (1+ VAT), 2) -> 0.48
A68: TUoS network charges for Transmission connected generators | B68: GenTUOS | C68: Cape | D68: 4 | E68: =B68&C68&D68&IF($A$2="Non-municipal","N",IF($A$2="Municiple","Y","error")) -> GenTUOSCape4N | H68: Loads | J68: 0.42 | K68: =ROUND(J68 * (1+ VAT), 2) -> 0.48

Sheet DUoS NLA
A2: Non-Municipal | H2: Back to menu
H4: DUoS (Distribution use of system) charges
H7: DUoS ancillary service charge Urbanp | J7: Charge [c/kWh]
A8: Tariff | B8: Tariff nameBillcode | C8: Tx zone | D8: Voltage | E8: Billcode | K8: VAT incl
A9: Gen-DUoS urban | B9: NEGenDUoSU | C9: 0 | D9: 1 | E9: =B9&C9&D9&IF($A$2="Non-municipal","N",IF($A$2="Municiple","Y","error")) -> NEGenDUoSU01N | H9: < 500V | J9: 0.48 | K9: =ROUND(J9 * (1 + VAT), 2) -> 0.55
A10: Gen-DUoS urban | B10: NEGenDUoSU | C10: 0 | D10: 2 | E10: =B10&C10&D10&IF($A$2="Non-municipal","N",IF($A$2="Municiple","Y","error")) -> NEGenDUoSU02N | H10: ≥ 500V & < 66kV | J10: 0.47 | K10: =ROUND(J10 * (1 + VAT), 2) -> 0.54
A11: Gen-DUoS urban | B11: NEGenDUoSU | C11: 0 | D11: 3 | E11: =B11&C11&D11&IF($A$2="Non-municipal","N",IF($A$2="Municiple","Y","error")) -> NEGenDUoSU03N | H11: ≥ 66kV & ≤ 132kV | J11: 0.45 | K11: =ROUND(J11 * (1 + VAT), 2) -> 0.52
H15: DUoS ancillary service charge Ruralp | J15: Charge [c/kWh]
A16: Tariff | B16: Tariff nameBillcode | C16: Tx zone | D16: Voltage | E16: Billcode | K16: VAT incl
A17: Gen-DUoS rural | B17: NEGenDUoSR | C17: 0 | D17: 1 | E17: =B17&C17&D17&IF($A$2="Non-municipal","N",IF($A$2="Municiple","Y","error")) -> NEGenDUoSR01N | H17: < 500V | J17: 0.48 | K17: =ROUND(J17 * (1 + VAT), 2) -> 0.55
A18: Gen-DUoS rural | B18: NEGenDUoSR | C18: 0 | D18: 2 | E18: =B18&C18&D18&IF($A$2="Non-municipal","N",IF($A$2="Municiple","Y","error")) -> NEGenDUoSR02N | H18: ≥ 500V & ≤ 22kV | J18: 0.48 | K18: =ROUND(J18 * (1 + VAT), 2) -> 0.55
I21: Transmission zone | J21: Voltage | K21: [R/kVA]
A22: Tariff | B22: Tariff nameBillcode | C22: Tx zone | D22: Voltage | E22: Billcode | L22: VAT incl
H23: ETUoS urban | I23: ≤ 300km | J23: < 500V | K23: 10.38 | L23: =ROUND(K23 * (1 + VAT), 2) -> 11.94
J24: ≥ 500V & < 66kV | K24: 9.48 | L24: 10.9
J25: ≥ 66kV & ≤ 132kV | K25: 9.23 | L25: 10.61
I26: > 300km & ≤ 600km | J26: < 500V | K26: 10.45 | L26: 12.02
J27: ≥ 500V & < 66kV | K27: 9.57 | L27: 11.01
J28: ≥ 66kV & ≤ 132kV | K28: 9.3 | L28: 10.7
I29: > 600km & ≤ 900km | J29: < 500V | K29: 10.57 | L29: 12.16
J30: ≥ 500V & < 66kV | K30: 9.66 | L30: 11.11
J31: ≥ 66kV & ≤ 132kV | K31: 9.36 | L31: 10.76
I32: > 900km | J32: < 500V | K32: 10.64 | L32: 12.24
J33: ≥ 500V & < 66kV | K33: 9.77 | L33: 11.24
J34: ≥ 66kV & ≤ 132kV | K34: 9.45 | L34: 10.87
I37: Transmission zone | J37: Voltage | K37: [R/kVA]
A38: Tariff | B38: Tariff nameBillcode | C38: Tx zone | D38: Voltage | E38: Billcode | L38: VAT incl
H39: ETUoS rural | I39: ≤ 300km | J39: < 500V | K39: 21.69 | L39: =ROUND(K39 * (1 + VAT), 2) -> 24.94
J40: ≥ 500V & < 66kV | K40: 19.88 | L40: 22.86
I41: > 300km & ≤ 600km | J41: < 500V | K41: 21.75 | L41: 25.01
J42: ≥ 500V & < 66kV | K42: 20 | L42: 23
I43: > 600km & ≤ 900km | J43: < 500V | K43: 21.87 | L43: 25.15
J44: ≥ 500V & < 66kV | K44: 20.09 | L44: 23.1
I45: > 900km | J45: < 500V | K45: 21.96 | L45: 25.25
J46: ≥ 500V & < 66kV | K46: 20.1 | L46: 23.12
H49: DUoS network charges for urbanp loads
J50: Network capacity charge [R/kVA/m] | L50: Network demand charge [R/kVA/m] | N50: Urban low voltage subsidy charge [R/kVA/m]
A52: Tariff | B52: Tariff nameBillcode | C52: Tx zone | D52: Voltage | E52: Billcode | H52: Voltage | K52: VAT incl | M52: VAT incl | O52: VAT incl
A53: Gen-DUoS urban | B53: NEGenDUoSU | C53: 0 | D53: 1 | E53: =B53&C53&D53&IF($A$2="Non-municipal","N",IF($A$2="Municiple","Y","error")) -> NEGenDUoSU01N | H53: < 500V | J53: 20.62 | K53: =ROUND(J53 * (1 + VAT), 2) -> 23.71 | L53: 39.1 | M53: =ROUND(L53 * (1 + VAT), 2) -> 44.97 | N53: 0 | O53: =ROUND(N53 * (1 + VAT), 2) -> 0
A54: Gen-DUoS urban | B54: NEGenDUoSU | C54: 0 | D54: 2 | E54: =B54&C54&D54&IF($A$2="Non-municipal","N",IF($A$2="Municiple","Y","error")) -> NEGenDUoSU02N | H54: ≥ 500V & < 66kV | J54: 18.91 | K54: =ROUND(J54 * (1 + VAT), 2) -> 21.75 | L54: 35.87 | M54: =ROUND(L54 * (1 + VAT), 2) -> 41.25 | N54: 0 | O54: =ROUND(N54 * (1 + VAT), 2) -> 0
A55: Gen-DUoS urban | B55: NEGenDUoSU | C55: 0 | D55: 3 | E55: =B55&C55&D55&IF($A$2="Non-municipal","N",IF($A$2="Municiple","Y","error")) -> NEGenDUoSU03N | H55: ≥ 66kV & ≤ 132kV | J55: 6.75 | K55: =ROUND(J55 * (1 + VAT), 2) -> 7.76 | L55: 12.51 | M55: =ROUND(L55 * (1 + VAT), 2) -> 14.39 | N55: 16.66 | O55: =ROUND(N55 * (1 + VAT), 2) -> 19.16
A56: Gen-DUoS urban | B56: NEGenDUoSU | C56: 0 | D56: 4 | E56: =B56&C56&D56&IF($A$2="Non-municipal","N",IF($A$2="Municiple","Y","error")) -> NEGenDUoSU04N | H56: > 132kV | J56: 0 | K56: =ROUND(J56 * (1 + VAT), 2) -> 0 | L56: 0 | M56: =ROUND(L56 * (1 + VAT), 2) -> 0 | N56: 16.66 | O56: =ROUND(N56 * (1 + VAT), 2) -> 19.16
H59: DUoS network charges ruralp loads
J60: Network capacity charge [R/kVA/m] | L60: Network demand charge [c/kWh]
A62: Tariff | B62: Tariff nameBillcode | C62: Tx zone | D62: Voltage | E62: Billcode | H62: Voltage | K62: VAT incl | M62: VAT incl
A63: Gen-DUoS rural | B63: NEGenDUoSR | C63: 0 | D63: 1 | E63: =B63&C63&D63&IF($A$2="Non-municipal","N",IF($A$2="Municiple","Y","error")) -> NEGenDUoSR01N | H63: < 500V | J63: 21.69 | K63: =ROUND(J63 * (1 + VAT), 2) -> 24.94 | L63: 30.88 | M63: =ROUND(L63 * (1 + VAT), 2) -> 35.51
A64: Gen-DUoS rural | B64: NEGenDUoSR | C64: 0 | D64: 2 | E64: =B64&C64&D64&IF($A$2="Non-municipal","N",IF($A$2="Municiple","Y","error")) -> NEGenDUoSR02N | H64: ≥ 500V & ≤ 22kV | J64: 19.88 | K64: =ROUND(J64 * (1 + VAT), 2) -> 22.86 | L64: 27.07 | M64: =ROUND(L64 * (1 + VAT), 2) -> 31.13
H67: DUoS network charges for generators
J68: Network capacity charge [R/kW/m]
A70: Tariff | B70: Tariff nameBillcode | C70: Tx zone | D70: Voltage | E70: Billcode | H70: Voltage | K70: VAT incl
A71: Gen-DUoS urban | B71: NEGenDUoSU | C71: 0 | D71: 1 | E71: =B71&C71&D71&IF($A$2="Non-municipal","N",IF($A$2="Municiple","Y","error")) -> NEGenDUoSU01N | H71: < 500V
A72: Gen-DUoS urban | B72: NEGenDUoSU | C72: 0 | D72: 2 | E72: =B72&C72&D72&IF($A$2="Non-municipal","N",IF($A$2="Municiple","Y","error")) -> NEGenDUoSU02N | H72: ≥ 500V & < 66kV
A73: Gen-DUoS urban | B73: NEGenDUoSU | C73: 0 | D73: 3 | E73: =B73&C73&D73&IF($A$2="Non-municipal","N",IF($A$2="Municiple","Y","error")) -> NEGenDUoSU03N | H73: ≥ 66kV & ≤ 132kV | J73: 16.68 | K73: =ROUND(J73 * (1 + VAT), 2) -> 19.18
H75: DUoS electrification and rural network subsidy charge [c/kWh] | R75: DUoS electrification and rural network subsidy charge [c/kWh]
J77: Rural network subsidy charge [c/kWh] | L77: Electrification networks subsidy charge [c/kWh] | N77: Total electrification and rural network subsidy charge [c/kWh] | R77: Tariff | T77: Electrification and rural network subsidy charge [c/kWh]
A79: Tariff | B79: Tariff nameBillcode | C79: Tx zone | D79: Voltage | E79: Billcode | H79: Tariff | K79: VAT incl | M79: VAT incl | O79: VAT incl | U79: VAT incl
H80: Megaflex, Miniflex, Nightsave Urban Large, Nightsave Urban Small, Businessrate | R80: Megaflex, Miniflex, Nightsave Urban Large, Nightsave Urban Small, Businessrate
A81: Megaflex | B81: Me | C81: 0 | D81: 1 | E81: =B81&C81&D81&IF($A$2="Non-municipal","N",IF($A$2="Municiple","Y","error")) -> Me01N | J81: 6.12 | K81: =ROUND(J81 * (1 + VAT), 2) -> 7.04 | L81: 3.1 | M81: =ROUND(L81 * (1 + VAT), 2) -> 3.57 | N81: =SUM(J81, L81) -> 9.22 | O81: =ROUND(N81 * (1 + VAT), 2) -> 10.6 | T81: 9.22 | U81: =ROUND(T81 * (1 + VAT), 2) -> 10.6
A82: 0.6637010676
A83: 0.3362989324
H86: DUoS service and administration charges (urbanp )
H87: Customer categories utilised capacity / maximum export capacity | J87: Service charge [R/account/day] | L87: Administration charge [R/POD/day]
H90: [kVA or MVA = loads]
A91: Tariff | B91: Tariff nameBillcode | C91: Tx zone | D91: Voltage | E91: Billcode | H91: [kW or MW = generators] | K91: VAT incl | M91: VAT incl
A92: Miniflex | B92: Mi | C92: 0 | D92: 1 | E92: =B92&C92&D92&IF($A$2="Non-municipal","N",IF($A$2="Municiple","Y","error")) -> Mi01N | H92: ≤ 100 kVA/kW | J92: 16.85 | K92: =ROUND(J92 * (1 + VAT), 2) -> 19.38 | L92: 3.7 | M92: =ROUND(L92 * (1 + VAT), 2) -> 4.26
A93: Miniflex | B93: Mi | C93: 0 | D93: 1 | E93: =B93&C93&D93&IF($A$2="Non-municipal","N",IF($A$2="Municiple","Y","error")) -> Mi01N | H93: > 100 kVA/kW & ≤ 500 kVA/kW | J93: 76.94 | K93: =ROUND(J93 * (1 + VAT), 2) -> 88.48 | L93: 21.58 | M93: =ROUND(L93 * (1 + VAT), 2) -> 24.82
A94: Miniflex | B94: Mi | C94: 0 | D94: 1 | E94: =B94&C94&D94&IF($A$2="Non-municipal","N",IF($A$2="Municiple","Y","error")) -> Mi01N | H94: > 500 kVA/kW & ≤ 1 MVA/MW | J94: 236.74 | K94: =ROUND(J94 * (1 + VAT), 2) -> 272.25 | L94: 42.85 | M94: =ROUND(L94 * (1 + VAT), 2) -> 49.28
A95: Miniflex | B95: Mi | C95: 0 | D95: 1 | E95: =B95&C95&D95&IF($A$2="Non-municipal","N",IF($A$2="Municiple","Y","error")) -> Mi01N | H95: > 1 MVA/MW | J95: 236.74 | K95: =ROUND(J95 * (1 + VAT), 2) -> 272.25 | L95: 106.69 | M95: =ROUND(L95 * (1 + VAT), 2) -> 122.69
A96: Miniflex | B96: Mi | C96: 0 | D96: 1 | E96: =B96&C96&D96&IF($A$2="Non-municipal","N",IF($A$2="Municiple","Y","error")) -> Mi01N | H96: Key customers or Transmission connected | J96: 4639.2 | K96: =ROUND(J96 * (1 + VAT), 2) -> 5335.08 | L96: 148.16 | M96: =ROUND(L96 * (1 + VAT), 2) -> 170.38
H99: DUoS service and administration charges (ruralp)
H100: Customer categories utilised capacity / maximum export capacity | J100: Service charge [R/account/day] | L100: Administration charge [R/POD/day]
H103: [kVA or MVA = loads]
A104: Tariff | B104: Tariff nameBillcode | C104: Tx zone | D104: Voltage | E104: Billcode | H104: [kW or MW = generators] | K104: VAT incl | M104: VAT incl
A105: Ruraflex | B105: Ru | C105: 0 | D105: 1 | E105: =B105&C105&D105&IF($A$2="Non-municipal","N",IF($A$2="Municiple","Y","error")) -> Ru01N | H105: ≤ 100 kVA/kW | J105: 21.34 | K105: =ROUND(J105 * (1 + VAT), 2) -> 24.54 | L105: 6.06 | M105: =ROUND(L105 * (1 + VAT), 2) -> 6.97
A106: Ruraflex | B106: Ru | C106: 0 | D106: 1 | E106: =B106&C106&D106&IF($A$2="Non-municipal","N",IF($A$2="Municiple","Y","error")) -> Ru01N | H106: > 100 kVA/kW & ≤ 500 kVA/kW | J106: 72.76 | K106: =ROUND(J106 * (1 + VAT), 2) -> 83.67 | L106: 33.74 | M106: =ROUND(L106 * (1 + VAT), 2) -> 38.8
A107: Ruraflex | B107: Ru | C107: 0 | D107: 1 | E107: =B107&C107&D107&IF($A$2="Non-municipal","N",IF($A$2="Municiple","Y","error")) -> Ru01N | H107: > 500 kVA/kW & ≤ 1 MVA/MW | J107: 223.85 | K107: =ROUND(J107 * (1 + VAT), 2) -> 257.43 | L107: 51.78 | M107: =ROUND(L107 * (1 + VAT), 2) -> 59.55
A108: Ruraflex | B108: Ru | C108: 0 | D108: 1 | E108: =B108&C108&D108&IF($A$2="Non-municipal","N",IF($A$2="Municiple","Y","error")) -> Ru01N | H108: > 1 MVA/MW | J108: 223.85 | K108: =ROUND(J108 * (1 + VAT), 2) -> 257.43 | L108: 96.08 | M108: =ROUND(L108 * (1 + VAT), 2) -> 110.49
A109: Ruraflex | B109: Ru | C109: 0 | D109: 1 | E109: =B109&C109&D109&IF($A$2="Non-municipal","N",IF($A$2="Municiple","Y","error")) -> Ru01N | H109: Key customers | J109: 4387.25 | K109: =ROUND(J109 * (1 + VAT), 2) -> 5045.34 | L109: 96.08 | M109: =ROUND(L109 * (1 + VAT), 2) -> 110.49
H111: Distribution loss factors | L111: Transmission loss factors for loads
A112: Tariff | B112: Tariff nameBillcode | C112: Tx zone | D112: Voltage | E112: Billcode | H112: Voltage | I112: Urbanp loss factor | J112: Ruralp loss factor | L112: Distance from Johannesburg | M112: Zone | N112: Loss factor
A113: Distribution loss factor - Urban | B113: DxLossUrb | C113: 0 | D113: 1 | E113: =B113&C113&D113&IF($A$2="Non-municipal","N",IF($A$2="Municiple","Y","error")) -> DxLossUrb01N | H113: < 500V | I113: 1.1111 | J113: 1.1527 | L113: ≤ 300km | M113: 0 | N113: 1.0107
A114: Distribution loss factor - Urban | B114: DxLossUrb | C114: 0 | D114: 2 | E114: =B114&C114&D114&IF($A$2="Non-municipal","N",IF($A$2="Municiple","Y","error")) -> DxLossUrb02N | H114: ≥ 500V & < 66kV | I114: 1.0957 | J114: 1.1412 | L114: > 300km & ≤ 600km | M114: 1 | N114: 1.0208
A115: Distribution loss factor - Urban | B115: DxLossUrb | C115: 0 | D115: 3 | E115: =B115&C115&D115&IF($A$2="Non-municipal","N",IF($A$2="Municiple","Y","error")) -> DxLossUrb03N | H115: ≥ 66kV & ≤ 132kV | I115: 1.0611 | L115: > 600km & ≤ 900km | M115: 2 | N115: 1.031
A116: Distribution loss factor - Urban | B116: DxLossUrb | C116: 0 | D116: 4 | E116: =B116&C116&D116&IF($A$2="Non-municipal","N",IF($A$2="Municiple","Y","error")) -> DxLossUrb04N | H116: > 132kV | I116: 1 | L116: > 900km | M116: 3 | N116: 1.0413
A118: Distribution loss factor - Rural | B118: DxLossRur | C118: 0 | D118: 1 | E118: =B118&C118&D118&IF($A$2="Non-municipal","N",IF($A$2="Municiple","Y","error")) -> DxLossRur01N
A119: Distribution loss factor - Rural | B119: DxLossRur | C119: 0 | D119: 2 | E119: =B119&C119&D119&IF($A$2="Non-municipal","N",IF($A$2="Municiple","Y","error")) -> DxLossRur02N
A122: Transmission loss factor | B122: TxLoss | C122: 0 | D122: 4 | E122: =B122&C122&D122&IF($A$2="Non-municipal","N",IF($A$2="Municiple","Y","error")) -> TxLoss04N
A123: Transmission loss factor | B123: TxLoss | C123: 1 | D123: 4 | E123: =B123&C123&D123&IF($A$2="Non-municipal","N",IF($A$2="Municiple","Y","error")) -> TxLoss14N
A124: Transmission loss factor | B124: TxLoss | C124: 2 | D124: 4 | E124: =B124&C124&D124&IF($A$2="Non-municipal","N",IF($A$2="Municiple","Y","error")) -> TxLoss24N
A125: Transmission loss factor | B125: TxLoss | C125: 3 | D125: 4 | E125: =B125&C125&D125&IF($A$2="Non-municipal","N",IF($A$2="Municiple","Y","error")) -> TxLoss34N

Sheet Loss Factors
N1: Back to menu | AL1: 0.15
N2: Loss factors
A3: Non-municipal
N4: Distribution loss factors | R4: Transmission loss factors for loads
A5: Tariff | B5: Tariff nameBillcode | C5: Tx zone | D5: Voltage | E5: Billcode | G5: Tariff | H5: Tariff nameBillcode | I5: Tx zone | J5: Voltage | K5: Billcode | N5: Voltage | O5: Urban loss factor | P5: Rural loss factor | R5: Distance from Johannesburg | S5: Zone | T5: Loss factor
A6: Distribution loss factor - Urban | B6: DxLossUrb | C6: 0 | D6: 1 | E6: =B6&C6&D6&IF($A$3="Non-municipal","N",IF($A$3="Municiple","Y","error")) -> DxLossUrb01N | G6: Transmission loss factor | H6: TxLoss | I6: 0 | J6: 4 | K6: =H6&I6&J6&IF($A$3="Non-municipal","N",IF($A$3="Municiple","Y","error")) -> TxLoss04N | N6: < 500V | O6: 1.1111 | P6: 1.1527 | R6: ≤ 300km | S6: 0 | T6: 1.0107
A7: Distribution loss factor - Urban | B7: DxLossUrb | C7: 0 | D7: 2 | E7: =B7&C7&D7&IF($A$3="Non-municipal","N",IF($A$3="Municiple","Y","error")) -> DxLossUrb02N | G7: Transmission loss factor | H7: TxLoss | I7: 1 | J7: 4 | K7: =H7&I7&J7&IF($A$3="Non-municipal","N",IF($A$3="Municiple","Y","error")) -> TxLoss14N | N7: ≥ 500V & < 66kV | O7: 1.0957 | P7: 1.1412 | R7: > 300km & ≤ 600km | S7: 1 | T7: 1.0208
A8: Distribution loss factor - Urban | B8: DxLossUrb | C8: 0 | D8: 3 | E8: =B8&C8&D8&IF($A$3="Non-municipal","N",IF($A$3="Municiple","Y","error")) -> DxLossUrb03N | G8: Transmission loss factor | H8: TxLoss | I8: 2 | J8: 4 | K8: =H8&I8&J8&IF($A$3="Non-municipal","N",IF($A$3="Municiple","Y","error")) -> TxLoss24N | N8: ≥ 66kV & ≤ 132kV | O8: 1.0611 | R8: > 600km & ≤ 900km | S8: 2 | T8: 1.031
A9: Distribution loss factor - Urban | B9: DxLossUrb | C9: 0 | D9: 4 | E9: =B9&C9&D9&IF($A$3="Non-municipal","N",IF($A$3="Municiple","Y","error")) -> DxLossUrb04N | G9: Transmission loss factor | H9: TxLoss | I9: 3 | J9: 4 | K9: =H9&I9&J9&IF($A$3="Non-municipal","N",IF($A$3="Municiple","Y","error")) -> TxLoss34N | N9: > 132kV/Transmission connected | O9: 1 | R9: > 900km | S9: 3 | T9: 1.0413
A11: Distribution loss factor - Rural | B11: DxLossRur | C11: 0 | D11: 1 | E11: =B11&C11&D11&IF($A$3="Non-municipal","N",IF($A$3="Municiple","Y","error")) -> DxLossRur01N
A12: Distribution loss factor - Rural | B12: DxLossRur | C12: 0 | D12: 2 | E12: =B12&C12&D12&IF($A$3="Non-municipal","N",IF($A$3="Municiple","Y","error")) -> DxLossRur02N | N12: Loss factors for Transmission connected generators | P12: Loss factor
A13: Tariff | B13: Tariff nameBillcode | C13: Tx zone | D13: Voltage | E13: Billcode
A14: TUoS network charges for Transmission connected generators | B14: GenTUOS | C14: Cape | D14: 4 | E14: =B14&C14&D14&IF($A$3="Non-municipal","N",IF($A$3="Municiple","Y","error")) -> GenTUOSCape4N | O14: Cape | P14: 0.971
A15: TUoS network charges for Transmission connected generators | B15: GenTUOS | C15: Karoo | D15: 4 | E15: GenTUOSKaroo4N | O15: Karoo | P15: 0.995
A16: TUoS network charges for Transmission connected generators | B16: GenTUOS | C16: Kwazulu-Natal | D16: 4 | E16: GenTUOSKwazulu-Natal4N | O16: Kwazulu-Natal | P16: 1.004
A17: TUoS network charges for Transmission connected generators | B17: GenTUOS | C17: Vaal | D17: 4 | E17: GenTUOSVaal4N | O17: Vaal | P17: 1.02
A18: TUoS network charges for Transmission connected generators | B18: GenTUOS | C18: Waterburg | D18: 4 | E18: GenTUOSWaterburg4N | O18: Waterburg | P18: 1.023
A19: TUoS network charges for Transmission connected generators | B19: GenTUOS | C19: Mpumalanga | D19: 4 | E19: GenTUOSMpumalanga4N | O19: Mpumalanga | P19: 1.021

Sheet Excess NCC NLA
S1: Back to menu
R2: Excess network capacity charges (NCC) - Non-Local Authority
A4: Non-municipal | S4: Urban - Excess NCC Megaflex/Megaflex Gen [non local authorities] | X4: Urban - Excess NCC Nightsave Urban Large [non local authorities] | AD4: Urban - Excess NCC Miniflex [non local authorities] | AK4: Urban - Excess NCC WEPS [non local authorities]
U6: Excess NCC[R/kVA/m] | AA6: Excess NCC[R/kVA/m] | AG6: Excess NCC[R/kVA/m] | AM6: Excess NCC[R/kVA/m]
S7: Transmission zone | Y7: Transmission zone | AE7: Transmission zone | AK7: Transmission zone
T8: Voltage | Z8: Voltage | AF8: Voltage | AL8: Voltage
A9: Tariff | B9: Tariff nameBillcode | C9: Tx zone | D9: Voltage | E9: Billcode | G9: Tariff | H9: Tariff nameBillcode | I9: Tx zone | J9: Voltage | K9: Billcode | M9: Tariff | N9: Tariff nameBillcode | O9: Tx zone | P9: Voltage | Q9: Billcode | V9: VAT incl | AB9: VAT incl | AH9: VAT incl | AN9: VAT incl
A10: Excess NAC Megaflex | B10: ExNACMe | C10: 0 | D10: 1 | E10: =B10&C10&D10&IF($A$4="Non-municipal","N",IF($A$4="Municiple","Y","error")) -> ExNACMe01N | G10: Excess NAC Nightsave Large | H10: ExNACNL | I10: 0 | J10: 1 | K10: =H10&I10&J10&IF($A$4="Non-municipal","N",IF($A$4="Municiple","Y","error")) -> ExNACNL01N | M10: Excess NAC Miniflex | N10: ExNACMi | O10: 0 | P10: 1 | Q10: =N10&O10&P10&IF($A$4="Non-municipal","N",IF($A$4="Municiple","Y","error")) -> ExNACMi01N | S10: ≤ 300km | T10: < 500V | U10: 31 | V10: =ROUND(U10 * (1 + VAT), 2) -> 35.65 | Y10: ≤ 300km | Z10: < 500V | AA10: 31 | AB10: =ROUND(AA10 * (1 + VAT), 2) -> 35.65 | AE10: ≤ 300km | AF10: < 500V | AG10: 30.96 | AH10: =ROUND(AG10 * (1 + VAT), 2) -> 35.6 | AK10: ≤ 300km | AL10: < 500V | AM10: 31 | AN10: =ROUND(AM10 * (1 + VAT), 2) -> 35.65
A11: Excess NAC Megaflex | B11: ExNACMe | C11: 0 | D11: 2 | E11: =B11&C11&D11&IF($A$4="Non-municipal","N",IF($A$4="Municiple","Y","error")) -> ExNACMe02N | G11: Excess NAC Nightsave Large | H11: ExNACNL | I11: 0 | J11: 2 | K11: =H11&I11&J11&IF($A$4="Non-municipal","N",IF($A$4="Municiple","Y","error")) -> ExNACNL02N | M11: Excess NAC Miniflex | N11: ExNACMi | O11: 0 | P11: 2 | Q11: =N11&O11&P11&IF($A$4="Non-municipal","N",IF($A$4="Municiple","Y","error")) -> ExNACMi02N | T11: ≥ 500V & < 66kV | U11: 28.39 | V11: 32.65 | Z11: ≥ 500V & < 66kV | AA11: 28.39 | AB11: 32.65 | AF11: ≥ 500V & < 66kV | AG11: 28.38 | AH11: 32.64 | AL11: ≥ 500V & < 66kV | AM11: 28.39 | AN11: 32.65
A12: Excess NAC Megaflex | B12: ExNACMe | C12: 0 | D12: 3 | E12: ExNACMe03N | G12: Excess NAC Nightsave Large | H12: ExNACNL | I12: 0 | J12: 3 | K12: ExNACNL03N | M12: Excess NAC Miniflex | N12: ExNACMi | O12: 0 | P12: 3 | Q12: ExNACMi03N | T12: ≥ 66kV & ≤ 132kV | U12: 32.64 | V12: 37.54 | Z12: ≥ 66kV & ≤ 132kV | AA12: 32.64 | AB12: 37.54 | AF12: ≥ 66kV & ≤ 132kV | AG12: 32.6 | AH12: 37.49 | AL12: ≥ 66kV & ≤ 132kV | AM12: 32.64 | AN12: 37.54
A13: Excess NAC Megaflex | B13: ExNACMe | C13: 0 | D13: 4 | E13: ExNACMe04N | G13: Excess NAC Nightsave Large | H13: ExNACNL | I13: 0 | J13: 4 | K13: ExNACNL04N | M13: Excess NAC Miniflex | N13: ExNACMi | O13: 0 | P13: 4 | Q13: ExNACMi04N | T13: > 132kV* | U13: 28.33 | V13: 32.58 | Z13: > 132kV* | AA13: 28.33 | AB13: 32.58 | AF13: > 132kV* | AG13: 28.28 | AH13: 32.52 | AL13: > 132kV* | AM13: 28.33 | AN13: 32.58
A14: Excess NAC Megaflex | B14: ExNACMe | C14: 1 | D14: 1 | E14: ExNACMe11N | G14: Excess NAC Nightsave Large | H14: ExNACNL | I14: 1 | J14: 1 | K14: ExNACNL11N | M14: Excess NAC Miniflex | N14: ExNACMi | O14: 1 | P14: 1 | Q14: ExNACMi11N | S14: > 300km and ≤ 600km | T14: < 500V | U14: 31.07 | V14: 35.73 | Y14: > 300km and ≤ 600km | Z14: < 500V | AA14: 31.07 | AB14: 35.73 | AE14: > 300km and ≤ 600km | AF14: < 500V | AG14: 31.04 | AH14: 35.7 | AK14: > 300km and ≤ 600km | AL14: < 500V | AM14: 31.07 | AN14: 35.73
A15: Excess NAC Megaflex | B15: ExNACMe | C15: 1 | D15: 2 | E15: ExNACMe12N | G15: Excess NAC Nightsave Large | H15: ExNACNL | I15: 1 | J15: 2 | K15: ExNACNL12N | M15: Excess NAC Miniflex | N15: ExNACMi | O15: 1 | P15: 2 | Q15: ExNACMi12N | T15: ≥ 500V & < 66kV | U15: 28.48 | V15: 32.75 | Z15: ≥ 500V & < 66kV | AA15: 28.48 | AB15: 32.75 | AF15: ≥ 500V & < 66kV | AG15: 28.46 | AH15: 32.73 | AL15: ≥ 500V & < 66kV | AM15: 28.48 | AN15: 32.75
A16: Excess NAC Megaflex | B16: ExNACMe | C16: 1 | D16: 3 | E16: ExNACMe13N | G16: Excess NAC Nightsave Large | H16: ExNACNL | I16: 1 | J16: 3 | K16: ExNACNL13N | M16: Excess NAC Miniflex | N16: ExNACMi | O16: 1 | P16: 3 | Q16: ExNACMi13N | T16: ≥ 66kV & ≤ 132kV | U16: 32.71 | V16: 37.62 | Z16: ≥ 66kV & ≤ 132kV | AA16: 32.71 | AB16: 37.62 | AF16: ≥ 66kV & ≤ 132kV | AG16: 32.66 | AH16: 37.56 | AL16: ≥ 66kV & ≤ 132kV | AM16: 32.71 | AN16: 37.62
A17: Excess NAC Megaflex | B17: ExNACMe | C17: 1 | D17: 4 | E17: ExNACMe14N | G17: Excess NAC Nightsave Large | H17: ExNACNL | I17: 1 | J17: 4 | K17: ExNACNL14N | M17: Excess NAC Miniflex | N17: ExNACMi | O17: 1 | P17: 4 | Q17: ExNACMi14N | T17: > 132kV* | U17: 28.44 | V17: 32.71 | Z17: > 132kV* | AA17: 28.44 | AB17: 32.71 | AF17: > 132kV* | AG17: 28.4 | AH17: 32.66 | AL17: > 132kV* | AM17: 28.44 | AN17: 32.71
A18: Excess NAC Megaflex | B18: ExNACMe | C18: 2 | D18: 1 | E18: ExNACMe21N | G18: Excess NAC Nightsave Large | H18: ExNACNL | I18: 2 | J18: 1 | K18: ExNACNL21N | M18: Excess NAC Miniflex | N18: ExNACMi | O18: 2 | P18: 1 | Q18: ExNACMi21N | S18: > 600km and ≤ 900km | T18: < 500V | U18: 31.19 | V18: 35.87 | Y18: > 600km and ≤ 900km | Z18: < 500V | AA18: 31.19 | AB18: 35.87 | AE18: > 600km and ≤ 900km | AF18: < 500V | AG18: 31.18 | AH18: 35.86 | AK18: > 600km and ≤ 900km | AL18: < 500V | AM18: 31.19 | AN18: 35.87
A19: Excess NAC Megaflex | B19: ExNACMe | C19: 2 | D19: 2 | E19: ExNACMe22N | G19: Excess NAC Nightsave Large | H19: ExNACNL | I19: 2 | J19: 2 | K19: ExNACNL22N | M19: Excess NAC Miniflex | N19: ExNACMi | O19: 2 | P19: 2 | Q19: ExNACMi22N | T19: ≥ 500V & < 66kV | U19: 28.57 | V19: 32.86 | Z19: ≥ 500V & < 66kV | AA19: 28.57 | AB19: 32.86 | AF19: ≥ 500V & < 66kV | AG19: 28.55 | AH19: 32.83 | AL19: ≥ 500V & < 66kV | AM19: 28.57 | AN19: 32.86
A20: Excess NAC Megaflex | B20: ExNACMe | C20: 2 | D20: 3 | E20: ExNACMe23N | G20: Excess NAC Nightsave Large | H20: ExNACNL | I20: 2 | J20: 3 | K20: ExNACNL23N | M20: Excess NAC Miniflex | N20: ExNACMi | O20: 2 | P20: 3 | Q20: ExNACMi23N | T20: ≥ 66kV & ≤ 132kV | U20: 32.77 | V20: 37.69 | Z20: ≥ 66kV & ≤ 132kV | AA20: 32.77 | AB20: 37.69 | AF20: ≥ 66kV & ≤ 132kV | AG20: 32.76 | AH20: 37.67 | AL20: ≥ 66kV & ≤ 132kV | AM20: 32.77 | AN20: 37.69
A21: Excess NAC Megaflex | B21: ExNACMe | C21: 2 | D21: 4 | E21: ExNACMe24N | G21: Excess NAC Nightsave Large | H21: ExNACNL | I21: 2 | J21: 4 | K21: ExNACNL24N | M21: Excess NAC Miniflex | N21: ExNACMi | O21: 2 | P21: 4 | Q21: ExNACMi24N | T21: > 132kV* | U21: 28.61 | V21: 32.9 | Z21: > 132kV* | AA21: 28.61 | AB21: 32.9 | AF21: > 132kV* | AG21: 28.57 | AH21: 32.86 | AL21: > 132kV* | AM21: 28.61 | AN21: 32.9
A22: Excess NAC Megaflex | B22: ExNACMe | C22: 3 | D22: 1 | E22: ExNACMe31N | G22: Excess NAC Nightsave Large | H22: ExNACNL | I22: 3 | J22: 1 | K22: ExNACNL31N | M22: Excess NAC Miniflex | N22: ExNACMi | O22: 3 | P22: 1 | Q22: ExNACMi31N | S22: > 900km | T22: < 500V | U22: 31.26 | V22: 35.95 | Y22: > 900km | Z22: < 500V | AA22: 31.26 | AB22: 35.95 | AE22: > 900km | AF22: < 500V | AG22: 31.21 | AH22: 35.89 | AK22: > 900km | AL22: < 500V | AM22: 31.26 | AN22: 35.95
A23: Excess NAC Megaflex | B23: ExNACMe | C23: 3 | D23: 2 | E23: ExNACMe32N | G23: Excess NAC Nightsave Large | H23: ExNACNL | I23: 3 | J23: 2 | K23: ExNACNL32N | M23: Excess NAC Miniflex | N23: ExNACMi | O23: 3 | P23: 2 | Q23: ExNACMi32N | T23: ≥ 500V & < 66kV | U23: 28.68 | V23: 32.98 | Z23: ≥ 500V & < 66kV | AA23: 28.68 | AB23: 32.98 | AF23: ≥ 500V & < 66kV | AG23: 28.65 | AH23: 32.95 | AL23: ≥ 500V & < 66kV | AM23: 28.68 | AN23: 32.98
A24: Excess NAC Megaflex | B24: ExNACMe | C24: 3 | D24: 3 | E24: ExNACMe33N | G24: Excess NAC Nightsave Large | H24: ExNACNL | I24: 3 | J24: 3 | K24: ExNACNL33N | M24: Excess NAC Miniflex | N24: ExNACMi | O24: 3 | P24: 3 | Q24: ExNACMi33N | T24: ≥ 66kV & ≤ 132kV | U24: 32.86 | V24: 37.79 | Z24: ≥ 66kV & ≤ 132kV | AA24: 32.86 | AB24: 37.79 | AF24: ≥ 66kV & ≤ 132kV | AG24: 32.82 | AH24: 37.74 | AL24: ≥ 66kV & ≤ 132kV | AM24: 32.86 | AN24: 37.79
A25: Excess NAC Megaflex | B25: ExNACMe | C25: 3 | D25: 4 | E25: ExNACMe34N | G25: Excess NAC Nightsave Large | H25: ExNACNL | I25: 3 | J25: 4 | K25: ExNACNL34N | M25: Excess NAC Miniflex | N25: ExNACMi | O25: 3 | P25: 4 | Q25: ExNACMi34N | T25: > 132kV* | U25: 28.7 | V25: 33.01 | Z25: > 132kV* | AA25: 28.7 | AB25: 33.01 | AF25: > 132kV* | AG25: 28.65 | AH25: 32.95 | AL25: > 132kV* | AM25: 28.7 | AN25: 33.01
T26: * 132 kV or Transmission connected | Z26: * 132 kV or Transmission connected | AF26: * 132 kV or Transmission connected | AL26: * 132 kV or Transmission connected
S28: Urban - Excess NCC Nightsave Urban Small [non local authorities] | X28: Rural - Excess NCC Nightsave Rural [non local authorities] | AD28: Rural - Excess NCC Ruraflex/Ruraflex Gen [non local authorities]
U30: Excess NCC[R/kVA/m] | AA30: Excess NCC[R/kVA/m] | AG30: Excess NCC[R/kVA/m]
S31: Transmission zone | Y31: Transmission zone | AE31: Transmission zone
T32: Voltage | Z32: Voltage | AF32: Voltage
A33: Tariff | B33: Tariff nameBillcode | C33: Tx zone | D33: Voltage | E33: Billcode | G33: Tariff | H33: Tariff nameBillcode | I33: Tx zone | J33: Voltage | K33: Billcode | M33: Tariff | N33: Tariff nameBillcode | O33: Tx zone | P33: Voltage | Q33: Billcode | V33: VAT incl | AB33: VAT incl | AH33: VAT incl
A34: Excess NAC Nightsave Small | B34: ExNACNS | C34: 0 | D34: 1 | E34: =B34&C34&D34&IF($A$4="Non-municipal","N",IF($A$4="Municiple","Y","error")) -> ExNACNS01N | G34: Excess NAC Nightsave Rural | H34: ExNACNR | I34: 0 | J34: 1 | K34: =H34&I34&J34&IF($A$4="Non-municipal","N",IF($A$4="Municiple","Y","error")) -> ExNACNR01N | M34: Excess NAC Ruraflex | N34: ExNACRu | O34: 0 | P34: 1 | Q34: =N34&O34&P34&IF($A$4="Non-municipal","N",IF($A$4="Municiple","Y","error")) -> ExNACRu01N | S34: ≤ 300km | T34: < 500V | U34: 31 | V34: =ROUND(U34 * (1 + VAT), 2) -> 35.65 | Y34: ≤ 300km | Z34: < 500V | AA34: 15.52 | AB34: =ROUND(AA34 * (1 + VAT), 2) -> 17.85 | AE34: ≤ 300km | AF34: < 500V | AG34: 21.69 | AH34: =ROUND(AG34 * (1 + VAT), 2) -> 24.94
A35: Excess NAC Nightsave Small | B35: ExNACNS | C35: 0 | D35: 2 | E35: =B35&C35&D35&IF($A$4="Non-municipal","N",IF($A$4="Municiple","Y","error")) -> ExNACNS02N | G35: Excess NAC Nightsave Rural | H35: ExNACNR | I35: 0 | J35: 2 | K35: =H35&I35&J35&IF($A$4="Non-municipal","N",IF($A$4="Municiple","Y","error")) -> ExNACNR02N | M35: Excess NAC Ruraflex | N35: ExNACRu | O35: 0 | P35: 2 | Q35: =N35&O35&P35&IF($A$4="Non-municipal","N",IF($A$4="Municiple","Y","error")) -> ExNACRu02N | T35: ≥ 500V & < 66kV | U35: 28.39 | V35: 32.65 | Z35: ≥ 500V & ≤ 22kV | AA35: 14.26 | AB35: 16.4 | AF35: ≥ 500V & ≤ 22kV | AG35: 19.88 | AH35: 22.86
A36: Excess NAC Nightsave Small | B36: ExNACNS | C36: 0 | D36: 3 | E36: ExNACNS03N | G36: Excess NAC Nightsave Rural | H36: ExNACNR | I36: 0 | J36: 3 | K36: ExNACNR03N | M36: Excess NAC Ruraflex | N36: ExNACRu | O36: 0 | P36: 3 | Q36: ExNACRu03N | T36: ≥ 66kV & ≤ 132kV | U36: 32.64 | V36: 37.54
A37: Excess NAC Nightsave Small | B37: ExNACNS | C37: 0 | D37: 4 | E37: ExNACNS04N | G37: Excess NAC Nightsave Rural | H37: ExNACNR | I37: 0 | J37: 4 | K37: ExNACNR04N | M37: Excess NAC Ruraflex | N37: ExNACRu | O37: 0 | P37: 4 | Q37: ExNACRu04N | T37: > 132kV* | U37: 28.33 | V37: 32.58
A38: Excess NAC Nightsave Small | B38: ExNACNS | C38: 1 | D38: 1 | E38: ExNACNS11N | G38: Excess NAC Nightsave Rural | H38: ExNACNR | I38: 1 | J38: 1 | K38: ExNACNR11N | M38: Excess NAC Ruraflex | N38: ExNACRu | O38: 1 | P38: 1 | Q38: ExNACRu11N | S38: > 300km and ≤ 600km | T38: < 500V | U38: 31.07 | V38: 35.73 | Y38: > 300km and ≤ 600km | Z38: < 500V | AA38: 15.55 | AB38: =ROUND(AA38 * (1 + VAT), 2) -> 17.88 | AE38: > 300km and ≤ 600km | AF38: < 500V | AG38: 21.75 | AH38: =ROUND(AG38 * (1 + VAT), 2) -> 25.01
A39: Excess NAC Nightsave Small | B39: ExNACNS | C39: 1 | D39: 2 | E39: ExNACNS12N | G39: Excess NAC Nightsave Rural | H39: ExNACNR | I39: 1 | J39: 2 | K39: ExNACNR12N | M39: Excess NAC Ruraflex | N39: ExNACRu | O39: 1 | P39: 2 | Q39: ExNACRu12N | T39: ≥ 500V & < 66kV | U39: 28.48 | V39: 32.75 | Z39: ≥ 500V & ≤ 22kV | AA39: 14.31 | AB39: 16.46 | AF39: ≥ 500V & ≤ 22kV | AG39: 20 | AH39: 23
A40: Excess NAC Nightsave Small | B40: ExNACNS | C40: 1 | D40: 3 | E40: ExNACNS13N | G40: Excess NAC Nightsave Rural | H40: ExNACNR | I40: 1 | J40: 3 | K40: ExNACNR13N | M40: Excess NAC Ruraflex | N40: ExNACRu | O40: 1 | P40: 3 | Q40: ExNACRu13N | T40: ≥ 66kV & ≤ 132kV | U40: 32.71 | V40: 37.62
A41: Excess NAC Nightsave Small | B41: ExNACNS | C41: 1 | D41: 4 | E41: ExNACNS14N | G41: Excess NAC Nightsave Rural | H41: ExNACNR | I41: 1 | J41: 4 | K41: ExNACNR14N | M41: Excess NAC Ruraflex | N41: ExNACRu | O41: 1 | P41: 4 | Q41: ExNACRu14N | T41: > 132kV* | U41: 28.44 | V41: 32.71
A42: Excess NAC Nightsave Small | B42: ExNACNS | C42: 2 | D42: 1 | E42: ExNACNS21N | G42: Excess NAC Nightsave Rural | H42: ExNACNR | I42: 2 | J42: 1 | K42: ExNACNR21N | M42: Excess NAC Ruraflex | N42: ExNACRu | O42: 2 | P42: 1 | Q42: ExNACRu21N | S42: > 600km and ≤ 900km | T42: < 500V | U42: 31.19 | V42: 35.87 | Y42: > 600km and ≤ 900km | Z42: < 500V | AA42: 15.7 | AB42: =ROUND(AA42 * (1 + VAT), 2) -> 18.06 | AE42: > 600km and ≤ 900km | AF42: < 500V | AG42: 21.87 | AH42: =ROUND(AG42 * (1 + VAT), 2) -> 25.15
A43: Excess NAC Nightsave Small | B43: ExNACNS | C43: 2 | D43: 2 | E43: ExNACNS22N | G43: Excess NAC Nightsave Rural | H43: ExNACNR | I43: 2 | J43: 2 | K43: ExNACNR22N | M43: Excess NAC Ruraflex | N43: ExNACRu | O43: 2 | P43: 2 | Q43: ExNACRu22N | T43: ≥ 500V & < 66kV | U43: 28.57 | V43: 32.86 | Z43: ≥ 500V & ≤ 22kV | AA43: 14.41 | AB43: 16.57 | AF43: ≥ 500V & ≤ 22kV | AG43: 20.09 | AH43: 23.1
A44: Excess NAC Nightsave Small | B44: ExNACNS | C44: 2 | D44: 3 | E44: ExNACNS23N | G44: Excess NAC Nightsave Rural | H44: ExNACNR | I44: 2 | J44: 3 | K44: ExNACNR23N | M44: Excess NAC Ruraflex | N44: ExNACRu | O44: 2 | P44: 3 | Q44: ExNACRu23N | T44: ≥ 66kV & ≤ 132kV | U44: 32.77 | V44: 37.69
A45: Excess NAC Nightsave Small | B45: ExNACNS | C45: 2 | D45: 4 | E45: ExNACNS24N | G45: Excess NAC Nightsave Rural | H45: ExNACNR | I45: 2 | J45: 4 | K45: ExNACNR24N | M45: Excess NAC Ruraflex | N45: ExNACRu | O45: 2 | P45: 4 | Q45: ExNACRu24N | T45: > 132kV* | U45: 28.61 | V45: 32.9
A46: Excess NAC Nightsave Small | B46: ExNACNS | C46: 3 | D46: 1 | E46: ExNACNS31N | G46: Excess NAC Nightsave Rural | H46: ExNACNR | I46: 3 | J46: 1 | K46: ExNACNR31N | M46: Excess NAC Ruraflex | N46: ExNACRu | O46: 3 | P46: 1 | Q46: ExNACRu31N | S46: > 900km | T46: < 500V | U46: 31.26 | V46: 35.95 | Y46: > 900km | Z46: < 500V | AA46: 15.74 | AB46: =ROUND(AA46 * (1 + VAT), 2) -> 18.1 | AE46: > 900km | AF46: < 500V | AG46: 21.96 | AH46: =ROUND(AG46 * (1 + VAT), 2) -> 25.25
A47: Excess NAC Nightsave Small | B47: ExNACNS | C47: 3 | D47: 2 | E47: ExNACNS32N | G47: Excess NAC Nightsave Rural | H47: ExNACNR | I47: 3 | J47: 2 | K47: ExNACNR32N | M47: Excess NAC Ruraflex | N47: ExNACRu | O47: 3 | P47: 2 | Q47: ExNACRu32N | T47: ≥ 500V & < 66kV | U47: 28.68 | V47: 32.98 | Z47: ≥ 500V & ≤ 22kV | AA47: 14.44 | AB47: 16.61 | AF47: ≥ 500V & ≤ 22kV | AG47: 20.1 | AH47: 23.12
A48: Excess NAC Nightsave Small | B48: ExNACNS | C48: 3 | D48: 3 | E48: ExNACNS33N | G48: Excess NAC Nightsave Rural | H48: ExNACNR | I48: 3 | J48: 3 | K48: ExNACNR33N | M48: Excess NAC Ruraflex | N48: ExNACRu | O48: 3 | P48: 3 | Q48: ExNACRu33N | T48: ≥ 66kV & ≤ 132kV | U48: 32.86 | V48: 37.79
A49: Excess NAC Nightsave Small | B49: ExNACNS | C49: 3 | D49: 4 | E49: ExNACNS34N | G49: Excess NAC Nightsave Rural | H49: ExNACNR | I49: 3 | J49: 4 | K49: ExNACNR34N | M49: Excess NAC Ruraflex | N49: ExNACRu | O49: 3 | P49: 4 | Q49: ExNACRu34N | T49: > 132kV* | U49: 28.7 | V49: 33.01
T50: * 132 kV or Transmission connected
S53: Excess MEC- Transmission connected generators | Y53: Excess MEC- Distribution connected Generators
T55: Excess Network capacity charge[R/kW/m] | Z55: Excess Network capacity charge[R/kW/m]
U56: VAT incl | AA56: VAT incl
S57: Cape | T57: =T58 -> 2.45 | U57: =ROUND(T57 * (1 + VAT), 2) -> 2.82 | Y57: Voltage
S58: Karoo | T58: =T59 -> 2.45 | U58: 2.82 | Y58: < 500V | Z58: 0 | AA58: =ROUND(Z58 * (1 + VAT), 2) -> 0
S59: Kwazulu-Natal | T59: =' TUoS NLA'!J58 -> 2.45 | U59: 2.82 | Y59: ≥ 500V & < 66kV | Z59: =Z60 -> 16.68 | AA59: =ROUND(Z59 * (1 + VAT), 2) -> 19.18
S60: Vaal | T60: =' TUoS NLA'!J59 -> 8.16 | U60: 9.38 | Y60: ≥ 66kV & ≤ 132kV | Z60: ='DUoS NLA'!J73 -> 16.68 | AA60: =ROUND(Z60 * (1 + VAT), 2) -> 19.18
S61: Waterberg | T61: =' TUoS NLA'!J60 -> 10.45 | U61: 12.02
S62: Mpumalanga | T62: =' TUoS NLA'!J61 -> 9.7 | U62: 11.16

Sheet Excess NCC Munic
S1: Back to menu
R2: Excess network capacity charges (NCC) - Non-Local Authority
A4: Municiple | S4: Urban - Excess NCC Megaflex [Local authorities] | X4: Urban - Excess NCC Nightsave Urban Large [Local authorities] | AD4: Urban - Excess NCC Miniflex [Local authorities] | AK4: Urban - Excess NCC WEPS [Local authorities]
U6: Excess NCC[R/kVA/m] | AA6: Excess NCC[R/kVA/m] | AG6: Excess NCC[R/kVA/m] | AM6: Excess NCC[R/kVA/m]
S7: Transmission zone | Y7: Transmission zone | AE7: Transmission zone | AK7: Transmission zone
T8: Voltage | Z8: Voltage | AF8: Voltage | AL8: Voltage
A9: Tariff | B9: Tariff nameBillcode | C9: Tx zone | D9: Voltage | E9: Billcode | G9: Tariff | H9: Tariff nameBillcode | I9: Tx zone | J9: Voltage | K9: Billcode | M9: Tariff | N9: Tariff nameBillcode | O9: Tx zone | P9: Voltage | Q9: Billcode | V9: VAT incl | AB9: VAT incl | AH9: VAT incl | AN9: VAT incl
A10: Excess NAC Megaflex | B10: ExNACMe | C10: 0 | D10: 1 | E10: =B10&C10&D10&IF($A$4="Non-municipal","N",IF($A$4="Municiple","Y","error")) -> ExNACMe01Y | G10: Excess NAC Nightsave Large | H10: ExNACNL | I10: 0 | J10: 1 | K10: =H10&I10&J10&IF($A$4="Non-municipal","N",IF($A$4="Municiple","Y","error")) -> ExNACNL01Y | M10: Excess NAC Miniflex | N10: ExNACMi | O10: 0 | P10: 1 | Q10: =N10&O10&P10&IF($A$4="Non-municipal","N",IF($A$4="Municiple","Y","error")) -> ExNACMi01Y | S10: ≤ 300km | T10: < 500V | U10: 30.96 | V10: =ROUND(U10 * (1 + VAT), 2) -> 35.6 | Y10: ≤ 300km | Z10: < 500V | AA10: 30.96 | AB10: =ROUND(AA10 * (1 + VAT), 2) -> 35.6 | AE10: ≤ 300km | AF10: < 500V | AG10: 30.94 | AH10: =ROUND(AG10 * (1 + VAT), 2) -> 35.58 | AK10: ≤ 300km | AL10: < 500V | AM10: 30.96 | AN10: =ROUND(AM10 * (1 + VAT), 2) -> 35.6
A11: Excess NAC Megaflex | B11: ExNACMe | C11: 0 | D11: 2 | E11: =B11&C11&D11&IF($A$4="Non-municipal","N",IF($A$4="Municiple","Y","error")) -> ExNACMe02Y | G11: Excess NAC Nightsave Large | H11: ExNACNL | I11: 0 | J11: 2 | K11: =H11&I11&J11&IF($A$4="Non-municipal","N",IF($A$4="Municiple","Y","error")) -> ExNACNL02Y | M11: Excess NAC Miniflex | N11: ExNACMi | O11: 0 | P11: 2 | Q11: =N11&O11&P11&IF($A$4="Non-municipal","N",IF($A$4="Municiple","Y","error")) -> ExNACMi02Y | T11: ≥ 500V & < 66kV | U11: 28.33 | V11: 32.58 | Z11: ≥ 500V & < 66kV | AA11: 28.33 | AB11: 32.58 | AF11: ≥ 500V & < 66kV | AG11: 28.34 | AH11: 32.59 | AL11: ≥ 500V & < 66kV | AM11: 28.33 | AN11: 32.58
A12: Excess NAC Megaflex | B12: ExNACMe | C12: 0 | D12: 3 | E12: ExNACMe03Y | G12: Excess NAC Nightsave Large | H12: ExNACNL | I12: 0 | J12: 3 | K12: ExNACNL03Y | M12: Excess NAC Miniflex | N12: ExNACMi | O12: 0 | P12: 3 | Q12: ExNACMi03Y | T12: ≥ 66kV & ≤ 132kV | U12: 32.49 | V12: 37.36 | Z12: ≥ 66kV & ≤ 132kV | AA12: 32.49 | AB12: 37.36 | AF12: ≥ 66kV & ≤ 132kV | AG12: 32.47 | AH12: 37.34 | AL12: ≥ 66kV & ≤ 132kV | AM12: 32.49 | AN12: 37.36
A13: Excess NAC Megaflex | B13: ExNACMe | C13: 0 | D13: 4 | E13: ExNACMe04Y | G13: Excess NAC Nightsave Large | H13: ExNACNL | I13: 0 | J13: 4 | K13: ExNACNL04Y | M13: Excess NAC Miniflex | N13: ExNACMi | O13: 0 | P13: 4 | Q13: ExNACMi04Y | T13: > 132kV* | U13: 28.17 | V13: 32.4 | Z13: > 132kV* | AA13: 28.17 | AB13: 32.4 | AF13: > 132kV* | AG13: 28.17 | AH13: 32.4 | AL13: > 132kV* | AM13: 28.17 | AN13: 32.4
A14: Excess NAC Megaflex | B14: ExNACMe | C14: 1 | D14: 1 | E14: ExNACMe11Y | G14: Excess NAC Nightsave Large | H14: ExNACNL | I14: 1 | J14: 1 | K14: ExNACNL11Y | M14: Excess NAC Miniflex | N14: ExNACMi | O14: 1 | P14: 1 | Q14: ExNACMi11Y | S14: > 300km and ≤ 600km | T14: < 500V | U14: 31 | V14: 35.65 | Y14: > 300km and ≤ 600km | Z14: < 500V | AA14: 31 | AB14: 35.65 | AE14: > 300km and ≤ 600km | AF14: < 500V | AG14: 31 | AH14: 35.65 | AK14: > 300km and ≤ 600km | AL14: < 500V | AM14: 31 | AN14: 35.65
A15: Excess NAC Megaflex | B15: ExNACMe | C15: 1 | D15: 2 | E15: ExNACMe12Y | G15: Excess NAC Nightsave Large | H15: ExNACNL | I15: 1 | J15: 2 | K15: ExNACNL12Y | M15: Excess NAC Miniflex | N15: ExNACMi | O15: 1 | P15: 2 | Q15: ExNACMi12Y | T15: ≥ 500V & < 66kV | U15: 28.44 | V15: 32.71 | Z15: ≥ 500V & < 66kV | AA15: 28.44 | AB15: 32.71 | AF15: ≥ 500V & < 66kV | AG15: 28.45 | AH15: 32.72 | AL15: ≥ 500V & < 66kV | AM15: 28.44 | AN15: 32.71
A16: Excess NAC Megaflex | B16: ExNACMe | C16: 1 | D16: 3 | E16: ExNACMe13Y | G16: Excess NAC Nightsave Large | H16: ExNACNL | I16: 1 | J16: 3 | K16: ExNACNL13Y | M16: Excess NAC Miniflex | N16: ExNACMi | O16: 1 | P16: 3 | Q16: ExNACMi13Y | T16: ≥ 66kV & ≤ 132kV | U16: 32.56 | V16: 37.44 | Z16: ≥ 66kV & ≤ 132kV | AA16: 32.56 | AB16: 37.44 | AF16: ≥ 66kV & ≤ 132kV | AG16: 32.55 | AH16: 37.43 | AL16: ≥ 66kV & ≤ 132kV | AM16: 32.56 | AN16: 37.44
A17: Excess NAC Megaflex | B17: ExNACMe | C17: 1 | D17: 4 | E17: ExNACMe14Y | G17: Excess NAC Nightsave Large | H17: ExNACNL | I17: 1 | J17: 4 | K17: ExNACNL14Y | M17: Excess NAC Miniflex | N17: ExNACMi | O17: 1 | P17: 4 | Q17: ExNACMi14Y | T17: > 132kV* | U17: 28.28 | V17: 32.52 | Z17: > 132kV* | AA17: 28.28 | AB17: 32.52 | AF17: > 132kV* | AG17: 28.28 | AH17: 32.52 | AL17: > 132kV* | AM17: 28.28 | AN17: 32.52
A18: Excess NAC Megaflex | B18: ExNACMe | C18: 2 | D18: 1 | E18: ExNACMe21Y | G18: Excess NAC Nightsave Large | H18: ExNACNL | I18: 2 | J18: 1 | K18: ExNACNL21Y | M18: Excess NAC Miniflex | N18: ExNACMi | O18: 2 | P18: 1 | Q18: ExNACMi21Y | S18: > 600km and ≤ 900km | T18: < 500V | U18: 31.14 | V18: 35.81 | Y18: > 600km and ≤ 900km | Z18: < 500V | AA18: 31.14 | AB18: 35.81 | AE18: > 600km and ≤ 900km | AF18: < 500V | AG18: 31.16 | AH18: 35.83 | AK18: > 600km and ≤ 900km | AL18: < 500V | AM18: 31.14 | AN18: 35.81
A19: Excess NAC Megaflex | B19: ExNACMe | C19: 2 | D19: 2 | E19: ExNACMe22Y | G19: Excess NAC Nightsave Large | H19: ExNACNL | I19: 2 | J19: 2 | K19: ExNACNL22Y | M19: Excess NAC Miniflex | N19: ExNACMi | O19: 2 | P19: 2 | Q19: ExNACMi22Y | T19: ≥ 500V & < 66kV | U19: 28.5 | V19: 32.78 | Z19: ≥ 500V & < 66kV | AA19: 28.5 | AB19: 32.78 | AF19: ≥ 500V & < 66kV | AG19: 28.52 | AH19: 32.8 | AL19: ≥ 500V & < 66kV | AM19: 28.5 | AN19: 32.78
A20: Excess NAC Megaflex | B20: ExNACMe | C20: 2 | D20: 3 | E20: ExNACMe23Y | G20: Excess NAC Nightsave Large | H20: ExNACNL | I20: 2 | J20: 3 | K20: ExNACNL23Y | M20: Excess NAC Miniflex | N20: ExNACMi | O20: 2 | P20: 3 | Q20: ExNACMi23Y | T20: ≥ 66kV & ≤ 132kV | U20: 32.63 | V20: 37.52 | Z20: ≥ 66kV & ≤ 132kV | AA20: 32.63 | AB20: 37.52 | AF20: ≥ 66kV & ≤ 132kV | AG20: 32.63 | AH20: 37.52 | AL20: ≥ 66kV & ≤ 132kV | AM20: 32.63 | AN20: 37.52
A21: Excess NAC Megaflex | B21: ExNACMe | C21: 2 | D21: 4 | E21: ExNACMe24Y | G21: Excess NAC Nightsave Large | H21: ExNACNL | I21: 2 | J21: 4 | K21: ExNACNL24Y | M21: Excess NAC Miniflex | N21: ExNACMi | O21: 2 | P21: 4 | Q21: ExNACMi24Y | T21: > 132kV* | U21: 28.44 | V21: 32.71 | Z21: > 132kV* | AA21: 28.44 | AB21: 32.71 | AF21: > 132kV* | AG21: 28.44 | AH21: 32.71 | AL21: > 132kV* | AM21: 28.44 | AN21: 32.71
A22: Excess NAC Megaflex | B22: ExNACMe | C22: 3 | D22: 1 | E22: ExNACMe31Y | G22: Excess NAC Nightsave Large | H22: ExNACNL | I22: 3 | J22: 1 | K22: ExNACNL31Y | M22: Excess NAC Miniflex | N22: ExNACMi | O22: 3 | P22: 1 | Q22: ExNACMi31Y | S22: > 900km | T22: < 500V | U22: 31.19 | V22: 35.87 | Y22: > 900km | Z22: < 500V | AA22: 31.19 | AB22: 35.87 | AE22: > 900km | AF22: < 500V | AG22: 31.18 | AH22: 35.86 | AK22: > 900km | AL22: < 500V | AM22: 31.19 | AN22: 35.87
A23: Excess NAC Megaflex | B23: ExNACMe | C23: 3 | D23: 2 | E23: ExNACMe32Y | G23: Excess NAC Nightsave Large | H23: ExNACNL | I23: 3 | J23: 2 | K23: ExNACNL32Y | M23: Excess NAC Miniflex | N23: ExNACMi | O23: 3 | P23: 2 | Q23: ExNACMi32Y | T23: ≥ 500V & < 66kV | U23: 28.61 | V23: 32.9 | Z23: ≥ 500V & < 66kV | AA23: 28.61 | AB23: 32.9 | AF23: ≥ 500V & < 66kV | AG23: 28.64 | AH23: 32.94 | AL23: ≥ 500V & < 66kV | AM23: 28.61 | AN23: 32.9
A24: Excess NAC Megaflex | B24: ExNACMe | C24: 3 | D24: 3 | E24: ExNACMe33Y | G24: Excess NAC Nightsave Large | H24: ExNACNL | I24: 3 | J24: 3 | K24: ExNACNL33Y | M24: Excess NAC Miniflex | N24: ExNACMi | O24: 3 | P24: 3 | Q24: ExNACMi33Y | T24: ≥ 66kV & ≤ 132kV | U24: 32.71 | V24: 37.62 | Z24: ≥ 66kV & ≤ 132kV | AA24: 32.71 | AB24: 37.62 | AF24: ≥ 66kV & ≤ 132kV | AG24: 32.68 | AH24: 37.58 | AL24: ≥ 66kV & ≤ 132kV | AM24: 32.71 | AN24: 37.62
A25: Excess NAC Megaflex | B25: ExNACMe | C25: 3 | D25: 4 | E25: ExNACMe34Y | G25: Excess NAC Nightsave Large | H25: ExNACNL | I25: 3 | J25: 4 | K25: ExNACNL34Y | M25: Excess NAC Miniflex | N25: ExNACMi | O25: 3 | P25: 4 | Q25: ExNACMi34Y | T25: > 132kV* | U25: 28.52 | V25: 32.8 | Z25: > 132kV* | AA25: 28.52 | AB25: 32.8 | AF25: > 132kV* | AG25: 28.52 | AH25: 32.8 | AL25: > 132kV* | AM25: 28.52 | AN25: 32.8
T26: * 132 kV or Transmission connected | Z26: * 132 kV or Transmission connected | AF26: * 132 kV or Transmission connected | AL26: * 132 kV or Transmission connected
S28: Urban - Excess NCC Nightsave Urban Small [Local authorities] | X28: Rural - Excess NCC Nightsave Rural [Local authorities] | AD28: Rural - Excess NCC Ruraflex [Local authorities]
U30: Excess NCC[R/kVA/m] | AA30: Excess NCC[R/kVA/m] | AG30: Excess NCC[R/kVA/m]
S31: Transmission zone | Y31: Transmission zone | AE31: Transmission zone
T32: Voltage | Z32: Voltage | AF32: Voltage
A33: Tariff | B33: Tariff nameBillcode | C33: Tx zone | D33: Voltage | E33: Billcode | G33: Tariff | H33: Tariff nameBillcode | I33: Tx zone | J33: Voltage | K33: Billcode | M33: Tariff | N33: Tariff nameBillcode | O33: Tx zone | P33: Voltage | Q33: Billcode | V33: VAT incl | AB33: VAT incl | AH33: VAT incl
A34: Excess NAC Nightsave Small | B34: ExNACNS | C34: 0 | D34: 1 | E34: =B34&C34&D34&IF($A$4="Non-municipal","N",IF($A$4="Municiple","Y","error")) -> ExNACNS01Y | G34: Excess NAC Nightsave Rural | H34: ExNACNR | I34: 0 | J34: 1 | K34: =H34&I34&J34&IF($A$4="Non-municipal","N",IF($A$4="Municiple","Y","error")) -> ExNACNR01Y | M34: Excess NAC Ruraflex | N34: ExNACRu | O34: 0 | P34: 1 | Q34: =N34&O34&P34&IF($A$4="Non-municipal","N",IF($A$4="Municiple","Y","error")) -> ExNACRu01Y | S34: ≤ 300km | T34: < 500V | U34: 30.96 | V34: =ROUND(U34 * (1 + VAT), 2) -> 35.6 | Y34: ≤ 300km | Z34: < 500V | AA34: 15.66 | AB34: =ROUND(AA34 * (1 + VAT), 2) -> 18.01 | AE34: ≤ 300km | AF34: < 500V | AG34: 21.85 | AH34: =ROUND(AG34 * (1 + VAT), 2) -> 25.13
A35: Excess NAC Nightsave Small | B35: ExNACNS | C35: 0 | D35: 2 | E35: =B35&C35&D35&IF($A$4="Non-municipal","N",IF($A$4="Municiple","Y","error")) -> ExNACNS02Y | G35: Excess NAC Nightsave Rural | H35: ExNACNR | I35: 0 | J35: 2 | K35: =H35&I35&J35&IF($A$4="Non-municipal","N",IF($A$4="Municiple","Y","error")) -> ExNACNR02Y | M35: Excess NAC Ruraflex | N35: ExNACRu | O35: 0 | P35: 2 | Q35: =N35&O35&P35&IF($A$4="Non-municipal","N",IF($A$4="Municiple","Y","error")) -> ExNACRu02Y | T35: ≥ 500V & < 66kV | U35: 28.33 | V35: 32.58 | Z35: ≥ 500V & ≤ 22kV | AA35: 14.38 | AB35: 16.54 | AF35: ≥ 500V & ≤ 22kV | AG35: 20.05 | AH35: 23.06
A36: Excess NAC Nightsave Small | B36: ExNACNS | C36: 0 | D36: 3 | E36: ExNACNS03Y | G36: Excess NAC Nightsave Rural | H36: ExNACNR | I36: 0 | J36: 3 | K36: ExNACNR03Y | M36: Excess NAC Ruraflex | N36: ExNACRu | O36: 0 | P36: 3 | Q36: ExNACRu03Y | T36: ≥ 66kV & ≤ 132kV | U36: 32.49 | V36: 37.36
A37: Excess NAC Nightsave Small | B37: ExNACNS | C37: 0 | D37: 4 | E37: ExNACNS04Y | G37: Excess NAC Nightsave Rural | H37: ExNACNR | I37: 0 | J37: 4 | K37: ExNACNR04Y | M37: Excess NAC Ruraflex | N37: ExNACRu | O37: 0 | P37: 4 | Q37: ExNACRu04Y | T37: > 132kV* | U37: 28.17 | V37: 32.4
A38: Excess NAC Nightsave Small | B38: ExNACNS | C38: 1 | D38: 1 | E38: ExNACNS11Y | G38: Excess NAC Nightsave Rural | H38: ExNACNR | I38: 1 | J38: 1 | K38: ExNACNR11Y | M38: Excess NAC Ruraflex | N38: ExNACRu | O38: 1 | P38: 1 | Q38: ExNACRu11Y | S38: > 300km and ≤ 600km | T38: < 500V | U38: 31 | V38: 35.65 | Y38: > 300km and ≤ 600km | Z38: < 500V | AA38: 15.69 | AB38: =ROUND(AA38 * (1 + VAT), 2) -> 18.04 | AE38: > 300km and ≤ 600km | AF38: < 500V | AG38: 21.94 | AH38: =ROUND(AG38 * (1 + VAT), 2) -> 25.23
A39: Excess NAC Nightsave Small | B39: ExNACNS | C39: 1 | D39: 2 | E39: ExNACNS12Y | G39: Excess NAC Nightsave Rural | H39: ExNACNR | I39: 1 | J39: 2 | K39: ExNACNR12Y | M39: Excess NAC Ruraflex | N39: ExNACRu | O39: 1 | P39: 2 | Q39: ExNACRu12Y | T39: ≥ 500V & < 66kV | U39: 28.44 | V39: 32.71 | Z39: ≥ 500V & ≤ 22kV | AA39: 14.44 | AB39: 16.61 | AF39: ≥ 500V & ≤ 22kV | AG39: 20.16 | AH39: 23.18
A40: Excess NAC Nightsave Small | B40: ExNACNS | C40: 1 | D40: 3 | E40: ExNACNS13Y | G40: Excess NAC Nightsave Rural | H40: ExNACNR | I40: 1 | J40: 3 | K40: ExNACNR13Y | M40: Excess NAC Ruraflex | N40: ExNACRu | O40: 1 | P40: 3 | Q40: ExNACRu13Y | T40: ≥ 66kV & ≤ 132kV | U40: 32.56 | V40: 37.44
A41: Excess NAC Nightsave Small | B41: ExNACNS | C41: 1 | D41: 4 | E41: ExNACNS14Y | G41: Excess NAC Nightsave Rural | H41: ExNACNR | I41: 1 | J41: 4 | K41: ExNACNR14Y | M41: Excess NAC Ruraflex | N41: ExNACRu | O41: 1 | P41: 4 | Q41: ExNACRu14Y | T41: > 132kV* | U41: 28.28 | V41: 32.52
A42: Excess NAC Nightsave Small | B42: ExNACNS | C42: 2 | D42: 1 | E42: ExNACNS21Y | G42: Excess NAC Nightsave Rural | H42: ExNACNR | I42: 2 | J42: 1 | K42: ExNACNR21Y | M42: Excess NAC Ruraflex | N42: ExNACRu | O42: 2 | P42: 1 | Q42: ExNACRu21Y | S42: > 600km and ≤ 900km | T42: < 500V | U42: 31.14 | V42: 35.81 | Y42: > 600km and ≤ 900km | Z42: < 500V | AA42: 15.84 | AB42: =ROUND(AA42 * (1 + VAT), 2) -> 18.22 | AE42: > 600km and ≤ 900km | AF42: < 500V | AG42: 22.06 | AH42: =ROUND(AG42 * (1 + VAT), 2) -> 25.37
A43: Excess NAC Nightsave Small | B43: ExNACNS | C43: 2 | D43: 2 | E43: ExNACNS22Y | G43: Excess NAC Nightsave Rural | H43: ExNACNR | I43: 2 | J43: 2 | K43: ExNACNR22Y | M43: Excess NAC Ruraflex | N43: ExNACRu | O43: 2 | P43: 2 | Q43: ExNACRu22Y | T43: ≥ 500V & < 66kV | U43: 28.5 | V43: 32.78 | Z43: ≥ 500V & ≤ 22kV | AA43: 14.53 | AB43: 16.71 | AF43: ≥ 500V & ≤ 22kV | AG43: 20.26 | AH43: 23.3
A44: Excess NAC Nightsave Small | B44: ExNACNS | C44: 2 | D44: 3 | E44: ExNACNS23Y | G44: Excess NAC Nightsave Rural | H44: ExNACNR | I44: 2 | J44: 3 | K44: ExNACNR23Y | M44: Excess NAC Ruraflex | N44: ExNACRu | O44: 2 | P44: 3 | Q44: ExNACRu23Y | T44: ≥ 66kV & ≤ 132kV | U44: 32.63 | V44: 37.52
A45: Excess NAC Nightsave Small | B45: ExNACNS | C45: 2 | D45: 4 | E45: ExNACNS24Y | G45: Excess NAC Nightsave Rural | H45: ExNACNR | I45: 2 | J45: 4 | K45: ExNACNR24Y | M45: Excess NAC Ruraflex | N45: ExNACRu | O45: 2 | P45: 4 | Q45: ExNACRu24Y | T45: > 132kV* | U45: 28.44 | V45: 32.71
A46: Excess NAC Nightsave Small | B46: ExNACNS | C46: 3 | D46: 1 | E46: ExNACNS31Y | G46: Excess NAC Nightsave Rural | H46: ExNACNR | I46: 3 | J46: 1 | K46: ExNACNR31Y | M46: Excess NAC Ruraflex | N46: ExNACRu | O46: 3 | P46: 1 | Q46: ExNACRu31Y | S46: > 900km | T46: < 500V | U46: 31.19 | V46: 35.87 | Y46: > 900km | Z46: < 500V | AA46: 15.87 | AB46: =ROUND(AA46 * (1 + VAT), 2) -> 18.25 | AE46: > 900km | AF46: < 500V | AG46: 22.13 | AH46: =ROUND(AG46 * (1 + VAT), 2) -> 25.45
A47: Excess NAC Nightsave Small | B47: ExNACNS | C47: 3 | D47: 2 | E47: ExNACNS32Y | G47: Excess NAC Nightsave Rural | H47: ExNACNR | I47: 3 | J47: 2 | K47: ExNACNR32Y | M47: Excess NAC Ruraflex | N47: ExNACRu | O47: 3 | P47: 2 | Q47: ExNACRu32Y | T47: ≥ 500V & < 66kV | U47: 28.61 | V47: 32.9 | Z47: ≥ 500V & ≤ 22kV | AA47: 14.54 | AB47: 16.72 | AF47: ≥ 500V & ≤ 22kV | AG47: 20.27 | AH47: 23.31
A48: Excess NAC Nightsave Small | B48: ExNACNS | C48: 3 | D48: 3 | E48: ExNACNS33Y | G48: Excess NAC Nightsave Rural | H48: ExNACNR | I48: 3 | J48: 3 | K48: ExNACNR33Y | M48: Excess NAC Ruraflex | N48: ExNACRu | O48: 3 | P48: 3 | Q48: ExNACRu33Y | T48: ≥ 66kV & ≤ 132kV | U48: 32.71 | V48: 37.62
A49: Excess NAC Nightsave Small | B49: ExNACNS | C49: 3 | D49: 4 | E49: ExNACNS34Y | G49: Excess NAC Nightsave Rural | H49: ExNACNR | I49: 3 | J49: 4 | K49: ExNACNR34Y | M49: Excess NAC Ruraflex | N49: ExNACRu | O49: 3 | P49: 4 | Q49: ExNACRu34Y | T49: > 132kV* | U49: 28.52 | V49: 32.8
T50: * 132 kV or Transmission connected

Sheet Gen Reconciliatons
B2: Generator reconciliations
C4: Gen-wheeling tariff | G4: Gen-purchase tariff
C5: Tariff name | D5: Tariff rate | E5: Source | G5: Tariff name | H5: Tariff rate | I5: Source
C6: Gen-wheeling non Munic urban | D6: Energy: | E6: WEPS energy rate excluding losses | G6: Gen-purchase- urban | H6: Energy: | I6: WEPS energy rate excluding losses
D7: Affordability subsidy: | E7: same as WEPS | H7: Affordability subsidy: | I7: same as WEPS
D8: Admin charge: | E8: same as WEPS | H8: Admin charge: | I8: same as WEPS
D9: Other components: | E9: not applicable | H9: Other components: | I9: not applicable
C10: Gen-wheeling non Munic rural | D10: Energy: | E10: WEPS energy rate excluding losses | G10: Gen-purchase-rural | H10: Energy: | I10: WEPS energy rate excluding losses
D11: Admin charge: | E11: same as Ruraflex | H11: Admin charge: | I11: same as Ruraflex
D12: Other components: | E12: not applicable | H12: Other components: | I12: not applicable
C13: Gen-wheeling Munic urban | D13: Energy (Local): | E13: WEPS energy rate excluding losses (Local) | G13: Gen-purchase Munic urban | H13: Energy: | I13: WEPS energy rate excluding losses(Local)
D14: Admin charge: | E14: same as WEPS (local) | H14: Admin charge: | I14: same as WEPS (Local)
D15: Other components: | E15: not applicable | H15: Other components: | I15: not applicable
C16: Gen-wheeling Munic rural | D16: Energy (Local): | E16: WEPS energy rate excluding losses (Local) | G16: Gen-purchase Munic rural | H16: Energy: | I16: WEPS energy rate excluding losses(Local)
D17: Admin charge: | E17: same as same as Ruraflex (local) | H17: Admin charge: | I17: same as Ruraflex (Local)
D18: Other components: | E18: not applicable | H18: Other components: | I18: not applicable
C21: Gen-offset tariff
C22: Tariff name | D22: Tariff rate | E22: Source
C23: Gen-offset urban | D23: Energy: | E23: WEPS energy rate including losses (per Tx and voltage zone)
D24: Affordability subsidy: | E24: same as WEPS
D25: Admin charge: | E25: same as WEPS
D26: Other components: | E26: not applicable
C27: Gen-offset rural | D27: Energy: | E27: Ruraflex energy rate (per Tx and voltage zone)
D28: Affordability subsidy: | E28: same as WEPS
D29: Admin charge: | E29: same as WEPS
D30: Other components: | E30: not applicable
